Department Family,Entity,Transaction Date,Expense Type,Expense Area,Supplier Name,Transaction Number,Amount,Invoice Description
DFID,DFID,01/04/2014,Contract & Agency Staff ,International Finance Division ,Hays Specialist Recruitment Ltd ,100120-101 ,"1,939.08",
DFID,DFID,01/04/2014,Project delivery costs - supplier services ,Middle East & North Africa Division (MENAD) ,Crown Agents Bank ,201828-101 ,"37,777.12",
DFID,DFID,01/04/2014,Aid Programme - Joint programme contribution ,West and Southern Africa ,UNICEF ,203330-106 ,"73,403.50",
DFID,DFID,01/04/2014,Training - Course Fees ,Human Resources ,Capita  Business Services ,100269-158 ,"1,033.00",
DFID,DFID,01/04/2014,Project delivery costs - supplier services ,Research and Evidence Division ,ROYAL TROPICAL INSTITUTE ,201727-101 ,"19,108.70",
DFID,DFID,01/04/2014,Bank Charges/Services ,Finance and Corporate Performance Division ,BANK OF ENGLAND ,100008-101 ,"12,495.00",
DFID,DFID,01/04/2014,Project delivery costs - supplier services ,Asia  Caribbean and Overseas Territories ,DELOITTE TOUCHE TOHAMATSU INDIA PRIVATE LTD (DTTIPL) ,107891-102 ,"4,494.87",
DFID,DFID,01/04/2014,Project delivery costs - supplier services ,Research and Evidence Division ,Crown Agents. ,114010-101 ,"52,734.97",
DFID,DFID,01/04/2014,Hotels - Accommodation only ,Western Asia and Stabilisation Division ,PEARL CONTINENTAL HOTEL LAHORE ,101624-101 ,716.48,
DFID,DFID,01/04/2014,Training - Course Fees ,Western Asia and Stabilisation Division ,Supplier Name withheld ,101601-110 ,"3,900.00",
DFID,DFID,01/04/2014,Oil - Other Utilities ,West and Southern Africa ,British Embassy ,101638-101 ,"2,019.23",
DFID,DFID,01/04/2014,Aid Programme - Trust Funds contributions ,West and Southern Africa ,IBRD (HSBC)  C/O THE WORLD BANK ,202427-101 ,"2,854,882.00",
DFID,DFID,01/04/2014,Aid Programme - Other Financial Aid to Government ,Asia  Caribbean and Overseas Territories ,Jamaica Constabulary Force ,202591-101 ,"220,000.00",
DFID,DFID,01/04/2014,Aid Programme - Other Financial Aid to Government ,Asia  Caribbean and Overseas Territories ,Jamaica Constabulary Force ,202591-101 ,"205,000.00",
DFID,DFID,01/04/2014,Aid Programme - Trust Funds contributions ,Western Asia and Stabilisation Division ,IBRD HSBC T ,201453-102 ,"200,000.00",
DFID,DFID,01/04/2014,Aid Programme - Accountable Grant Payments ,Communications Division ,BRITISH COUNCIL ,203378-101 ,"2,320,940.00",
DFID,DFID,01/04/2014,Aid Programme - Accountable Grant Payments ,Asia  Caribbean and Overseas Territories ,MDRI-CESD ,203601-109 ,"61,723.27",
DFID,DFID,01/04/2014,FCO shared service charges ,West and Southern Africa ,Ryalls Hotel ,100144-101 ,"1,080.19",
DFID,DFID,01/04/2014,Repairs  Maintenance and Alterations - Other Building Costs ,West and Southern Africa ,CashBuild Lilongwe ,101618-101 ,663.95,
DFID,DFID,01/04/2014,Repairs  Maintenance and Alterations - Other Building Costs ,West and Southern Africa ,Durobloc Construction & Joinery ,101618-101 ,"1,236.50",
DFID,DFID,01/04/2014,Repairs  Maintenance and Alterations - Other Building Costs ,West and Southern Africa ,Durobloc Construction & Joinery ,101618-101 ,"1,048.40",
DFID,DFID,01/04/2014,Repairs  Maintenance and Alterations - Other Building Costs ,West and Southern Africa ,Durobloc Construction & Joinery ,101618-101 ,"2,900.27",
DFID,DFID,01/04/2014,Air fares ,Middle East & North Africa Division (MENAD) ,Corporate Travel Provider ,204084-101 ,552.95,
DFID,DFID,01/04/2014,Hotels - Accommodation only ,Policy Division ,Recipient name withheld ,100275-101 ,"1,322.72",
DFID,DFID,01/04/2014,Hotels - Accommodation only ,Policy Division ,Recipient name withheld ,100275-101 ,660.16,
DFID,DFID,01/04/2014,Air fares ,International Relations Division ,Corporate Travel Provider ,100262-101 ,827.44,
DFID,DFID,01/04/2014,Air fares ,Human Resources ,Corporate Travel Provider ,100266-101 ,788.70,
DFID,DFID,01/04/2014,Hotels - Accommodation only ,Human Resources ,Corporate Travel Provider ,100268-101 ,780.98,
DFID,DFID,01/04/2014,Air fares ,Human Resources ,Corporate Travel Provider ,100269-128 ,"1,167.35",
DFID,DFID,01/04/2014,Training - Course Fees ,Research and Evidence Division ,Capita  Business Services ,100039-108 ,932.40,
DFID,DFID,01/04/2014,Air fares ,Research and Evidence Division ,Corporate Travel Provider ,100039-108 ,954.25,
DFID,DFID,01/04/2014,Air fares ,Research and Evidence Division ,Corporate Travel Provider ,100039-108 ,809.15,
DFID,DFID,01/04/2014,Air fares ,Research and Evidence Division ,Corporate Travel Provider ,100039-108 ,565.42,
DFID,DFID,01/04/2014,Air fares ,Policy Division ,Corporate Travel Provider ,100274-107 ,877.25,
DFID,DFID,01/04/2014,Air fares ,Asia  Caribbean and Overseas Territories ,Corporate Travel Provider ,101604-101 ,"1,062.57",
DFID,DFID,01/04/2014,Air fares ,Asia  Caribbean and Overseas Territories ,Corporate Travel Provider ,101604-101 ,"1,062.57",
DFID,DFID,01/04/2014,Air fares ,Asia  Caribbean and Overseas Territories ,Corporate Travel Provider ,101604-101 ,882.77,
DFID,DFID,01/04/2014,Air fares ,West and Southern Africa ,Corporate Travel Provider ,101610-101 ,797.42,
DFID,DFID,01/04/2014,Air fares ,West and Southern Africa ,Corporate Travel Provider ,101610-101 ,701.40,
DFID,DFID,01/04/2014,Air fares ,West and Southern Africa ,Corporate Travel Provider ,101610-101 ,847.37,
DFID,DFID,01/04/2014,Air fares ,West and Southern Africa ,Corporate Travel Provider ,101610-101 ,606.10,
DFID,DFID,01/04/2014,Secure Staff Accommodation ,East and Central Africa ,Supplier Name withheld ,101612-101 ,"7,479.01",
DFID,DFID,01/04/2014,Hotels - Accommodation only ,Middle East & North Africa Division (MENAD) ,Corporate Travel Provider ,101619-101 ,555.83,
DFID,DFID,01/04/2014,Hotels - Accommodation only ,Middle East & North Africa Division (MENAD) ,Recipient name withheld ,101619-101 ,554.18,
DFID,DFID,01/04/2014,Air fares ,West and Southern Africa ,Corporate Travel Provider ,101620-101 ,785.90,
DFID,DFID,01/04/2014,Air fares ,West and Southern Africa ,Corporate Travel Provider ,101620-101 ,906.90,
DFID,DFID,01/04/2014,Air fares ,West and Southern Africa ,Corporate Travel Provider ,101620-101 ,785.90,
DFID,DFID,01/04/2014,Air fares ,Asia  Caribbean and Overseas Territories ,Corporate Travel Provider ,101621-101 ,817.16,
DFID,DFID,01/04/2014,Air fares ,Asia  Caribbean and Overseas Territories ,Corporate Travel Provider ,101621-101 ,"1,356.66",
DFID,DFID,01/04/2014,Air fares ,Asia  Caribbean and Overseas Territories ,Corporate Travel Provider ,101621-101 ,874.89,
DFID,DFID,01/04/2014,Air fares ,Western Asia and Stabilisation Division ,Corporate Travel Provider ,101624-101 ,527.40,
DFID,DFID,01/04/2014,Travel documentation costs ,Western Asia and Stabilisation Division ,Corporate Travel Provider ,101624-101 ,509.79,
DFID,DFID,01/04/2014,Air fares ,East and Central Africa ,Corporate Travel Provider ,101625-101 ,838.32,
DFID,DFID,01/04/2014,Air fares ,West and Southern Africa ,Corporate Travel Provider ,101629-101 ,810.10,
DFID,DFID,01/04/2014,Air fares ,Policy Division ,Corporate Travel Provider ,100274-108 ,"1,215.03",
DFID,DFID,01/04/2014,Air fares ,Middle East & North Africa Division (MENAD) ,Corporate Travel Provider ,100303-101 ,638.25,
DFID,DFID,01/04/2014,Air fares ,West and Southern Africa ,Corporate Travel Provider ,201763-101 ,733.03,
DFID,DFID,01/04/2014,Hotels - Accommodation only ,West and Southern Africa ,Corporate Travel Provider ,201763-101 ,588.57,
DFID,DFID,01/04/2014,Hotels - Accommodation only ,Policy Division ,Corporate Travel Provider ,201724-136 ,783.02,
DFID,DFID,01/04/2014,Hotels - Accommodation only ,East and Central Africa ,Recipient name withheld ,202851-102 ,500.07,
DFID,DFID,01/04/2014,Air fares ,Finance and Corporate Performance Division ,Corporate Travel Provider ,202836-103 ,925.63,
DFID,DFID,01/04/2014,Air fares ,Finance and Corporate Performance Division ,Corporate Travel Provider ,202836-103 ,826.87,
DFID,DFID,01/04/2014,Air fares ,Finance and Corporate Performance Division ,Corporate Travel Provider ,202836-103 ,"1,092.32",
DFID,DFID,01/04/2014,Air fares ,Finance and Corporate Performance Division ,Corporate Travel Provider ,202836-103 ,782.82,
DFID,DFID,01/04/2014,Air fares ,Western Asia and Stabilisation Division ,Corporate Travel Provider ,100011-110 ,674.29,
DFID,DFID,01/04/2014,Air fares ,Western Asia and Stabilisation Division ,Corporate Travel Provider ,100011-110 ,569.07,
DFID,DFID,01/04/2014,Air fares ,Research and Evidence Division ,Corporate Travel Provider ,203874-102 ,586.02,
DFID,DFID,01/04/2014,Air fares ,Research and Evidence Division ,Corporate Travel Provider ,203874-102 ,864.35,
DFID,DFID,01/04/2014,Air fares ,Research and Evidence Division ,Corporate Travel Provider ,203874-102 ,766.95,
DFID,DFID,01/04/2014,Air fares ,Research and Evidence Division ,Corporate Travel Provider ,203874-102 ,586.02,
DFID,DFID,01/04/2014,Air fares ,Research and Evidence Division ,Corporate Travel Provider ,203874-102 ,864.35,
DFID,DFID,01/04/2014,Air fares ,Research and Evidence Division ,Corporate Travel Provider ,202392-102 ,954.25,
DFID,DFID,01/04/2014,Air fares ,Research and Evidence Division ,Corporate Travel Provider ,202392-102 ,660.18,
DFID,DFID,01/04/2014,Hotels - Accommodation only ,Research and Evidence Division ,Recipient name withheld ,202392-102 ,772.42,
DFID,DFID,01/04/2014,Air fares ,Research and Evidence Division ,Corporate Travel Provider ,202392-103 ,807.05,
DFID,DFID,01/04/2014,Air fares ,Research and Evidence Division ,Corporate Travel Provider ,202392-104 ,924.55,
DFID,DFID,01/04/2014,Air fares ,Research and Evidence Division ,Corporate Travel Provider ,202392-107 ,807.05,
DFID,DFID,01/04/2014,Air fares ,West and Southern Africa ,Supplier Name withheld ,101622-106 ,650.33,
DFID,DFID,01/04/2014,Air fares ,Middle East & North Africa Division (MENAD) ,Corporate Travel Provider ,201701-101 ,578.41,
DFID,DFID,01/04/2014,Air fares ,Policy Division ,Corporate Travel Provider ,100277-108 ,798.80,
DFID,DFID,01/04/2014,Air fares ,Policy Division ,Corporate Travel Provider ,100277-108 ,616.50,
DFID,DFID,01/04/2014,Hotels - Accommodation only ,East and Central Africa ,Corporate Travel Provider ,101630-101 ,731.85,
DFID,DFID,01/04/2014,Air fares ,West and Southern Africa ,Corporate Travel Provider ,101631-101 ,830.15,
DFID,DFID,01/04/2014,Air fares ,East and Central Africa ,Corporate Travel Provider ,101633-101 ,644.99,
DFID,DFID,01/04/2014,Air fares ,East and Central Africa ,Corporate Travel Provider ,101634-101 ,544.75,
DFID,DFID,01/04/2014,Hotels - Accommodation only ,Asia  Caribbean and Overseas Territories ,Corporate Travel Provider ,201689-105 ,826.01,
DFID,DFID,01/04/2014,Air fares ,Middle East & North Africa Division (MENAD) ,Corporate Travel Provider ,201705-101 ,547.45,
DFID,DFID,01/04/2014,Hotels - Accommodation only ,Western Asia and Stabilisation Division ,Corporate Travel Provider ,201699-101 ,655.10,
DFID,DFID,01/04/2014,Air fares ,Western Asia and Stabilisation Division ,Corporate Travel Provider ,201699-101 ,"1,321.40",
DFID,DFID,01/04/2014,Air fares ,Western Asia and Stabilisation Division ,Corporate Travel Provider ,201699-101 ,609.95,
DFID,DFID,01/04/2014,Air fares ,Policy Division ,Corporate Travel Provider ,100277-103 ,"1,550.95",
DFID,DFID,01/04/2014,Air fares ,Policy Division ,Corporate Travel Provider ,100277-103 ,959.95,
DFID,DFID,01/04/2014,Hotels - Accommodation only ,Research and Evidence Division ,Recipient name withheld ,100039-110 ,944.91,
DFID,DFID,01/04/2014,Air fares ,Policy Division ,Corporate Travel Provider ,100277-104 ,807.05,
DFID,DFID,01/04/2014,Air fares ,East and Central Africa ,Corporate Travel Provider ,101625-104 ,918.35,
DFID,DFID,01/04/2014,Air fares ,East and Central Africa ,Corporate Travel Provider ,101625-105 ,954.25,
DFID,DFID,01/04/2014,Air fares ,Western Asia and Stabilisation Division ,Corporate Travel Provider ,101601-110 ,"1,659.09",
DFID,DFID,01/04/2014,Air fares ,Western Asia and Stabilisation Division ,Corporate Travel Provider ,101601-110 ,"1,525.49",
DFID,DFID,01/04/2014,Air fares ,Western Asia and Stabilisation Division ,Corporate Travel Provider ,101601-110 ,696.48,
DFID,DFID,01/04/2014,Air fares ,Western Asia and Stabilisation Division ,Corporate Travel Provider ,101601-110 ,"1,631.89",
DFID,DFID,01/04/2014,Air fares ,Western Asia and Stabilisation Division ,Corporate Travel Provider ,101601-110 ,"1,635.89",
DFID,DFID,01/04/2014,Air fares ,Western Asia and Stabilisation Division ,Corporate Travel Provider ,101601-110 ,"1,622.43",
DFID,DFID,01/04/2014,Air fares ,Western Asia and Stabilisation Division ,Corporate Travel Provider ,101601-110 ,527.54,
DFID,DFID,01/04/2014,Air fares ,Western Asia and Stabilisation Division ,Corporate Travel Provider ,101601-110 ,"1,622.43",
DFID,DFID,01/04/2014,Air fares ,Conflict Humanitarian and Security Division ,Corporate Travel Provider ,202410-101 ,"1,005.75",
DFID,DFID,01/04/2014,Air fares ,Conflict Humanitarian and Security Division ,Corporate Travel Provider ,202410-101 ,"1,163.35",
DFID,DFID,01/04/2014,Air fares ,Conflict Humanitarian and Security Division ,Corporate Travel Provider ,202410-101 ,742.35,
DFID,DFID,01/04/2014,Air fares ,International Finance Division ,Corporate Travel Provider ,202259-101 ,879.95,
DFID,DFID,01/04/2014,Air fares ,Policy Division ,Corporate Travel Provider ,202402-104 ,563.03,
DFID,DFID,01/04/2014,Air fares ,Policy Division ,Corporate Travel Provider ,202402-104 ,976.05,
DFID,DFID,01/04/2014,Air fares ,Policy Division ,Corporate Travel Provider ,202402-104 ,563.03,
DFID,DFID,01/04/2014,Air fares ,Policy Division ,Corporate Travel Provider ,202402-106 ,"1,215.03",
DFID,DFID,01/04/2014,Air fares ,Policy Division ,Corporate Travel Provider ,202419-103 ,600.30,
DFID,DFID,01/04/2014,Air fares ,Policy Division ,Corporate Travel Provider ,202373-101 ,870.45,
DFID,DFID,01/04/2014,Hotels - Accommodation only ,Asia  Caribbean and Overseas Territories ,Corporate Travel Provider ,201689-113 ,603.93,
DFID,DFID,01/04/2014,Air fares ,Finance and Corporate Performance Division ,Corporate Travel Provider ,202836-102 ,546.45,
DFID,DFID,01/04/2014,Air fares ,Policy Division ,Corporate Travel Provider ,100274-103 ,935.69,
DFID,DFID,01/04/2014,Hotels - Accommodation only ,Human Resources ,Corporate Travel Provider ,100269-158 ,721.62,
DFID,DFID,01/04/2014,Hotels - Accommodation only ,Human Resources ,Corporate Travel Provider ,100269-158 ,"1,794.72",
DFID,DFID,01/04/2014,Air fares ,Policy Division ,Corporate Travel Provider ,100277-102 ,641.89,
DFID,DFID,01/04/2014,Air fares ,Conflict Humanitarian and Security Division ,Corporate Travel Provider ,100049-101 ,827.06,
DFID,DFID,01/04/2014,Air fares ,Conflict Humanitarian and Security Division ,Corporate Travel Provider ,100049-101 ,535.04,
DFID,DFID,01/04/2014,Air fares ,Conflict Humanitarian and Security Division ,Corporate Travel Provider ,100049-101 ,614.20,
DFID,DFID,01/04/2014,Hotels - Accommodation only ,Conflict Humanitarian and Security Division ,Recipient name withheld ,100049-101 ,915.53,
DFID,DFID,01/04/2014,Repairs  Maint  Alter - Property & Constrct. Services ,East and Central Africa ,NOLOT Consultancy and Professional Business ,100082-101 ,"1,341.62",
DFID,DFID,01/04/2014,Air fares ,Asia  Caribbean and Overseas Territories ,Corporate Travel Provider ,100084-101 ,895.65,
DFID,DFID,01/04/2014,Air fares ,International Relations Division ,Corporate Travel Provider ,100086-101 ,541.23,
DFID,DFID,01/04/2014,Air fares ,International Relations Division ,Corporate Travel Provider ,100086-101 ,686.74,
DFID,DFID,01/04/2014,Air fares ,Research and Evidence Division ,Corporate Travel Provider ,100088-101 ,901.10,
DFID,DFID,01/04/2014,Air fares ,International Finance Division ,Corporate Travel Provider ,100098-101 ,"3,052.00",
DFID,DFID,01/04/2014,Air fares ,International Finance Division ,Corporate Travel Provider ,100098-101 ,"1,903.70",
DFID,DFID,01/04/2014,Air fares ,International Finance Division ,Corporate Travel Provider ,100098-101 ,703.77,
DFID,DFID,01/04/2014,Air fares ,International Finance Division ,Corporate Travel Provider ,100098-101 ,531.62,
DFID,DFID,01/04/2014,Air fares ,International Finance Division ,Corporate Travel Provider ,100098-101 ,"1,333.00",
DFID,DFID,01/04/2014,Air fares ,International Finance Division ,Corporate Travel Provider ,100111-101 ,505.65,
DFID,DFID,01/04/2014,Air fares ,Western Asia and Stabilisation Division ,BONDS TRAVEL BUREAU ,100185-101 ,719.75,
DFID,DFID,01/04/2014,Air fares ,West and Southern Africa ,Corporate Travel Provider ,100214-101 ,693.00,
DFID,DFID,01/04/2014,Air fares ,West and Southern Africa ,Corporate Travel Provider ,100214-101 ,603.70,
DFID,DFID,01/04/2014,Air fares ,Top Management Group ,Corporate Travel Provider ,100232-105 ,"3,174.25",
DFID,DFID,01/04/2014,Air fares ,Top Management Group ,Corporate Travel Provider ,100232-105 ,"1,262.05",
DFID,DFID,01/04/2014,Air fares ,Top Management Group ,Corporate Travel Provider ,100232-106 ,"2,087.54",
DFID,DFID,01/04/2014,Air fares ,Top Management Group ,Corporate Travel Provider ,100232-106 ,"2,087.54",
DFID,DFID,01/04/2014,Travel - Subsistence ,Top Management Group ,Recipient name withheld ,100232-106 ,968.60,
DFID,DFID,01/04/2014,Air fares ,Top Management Group ,Corporate Travel Provider ,100232-102 ,"3,332.45",
DFID,DFID,01/04/2014,Air fares ,Top Management Group ,Corporate Travel Provider ,100232-102 ,"3,332.45",
DFID,DFID,01/04/2014,Air fares ,Top Management Group ,Corporate Travel Provider ,100232-103 ,"3,332.45",
DFID,DFID,01/04/2014,Air fares ,Western Asia and Stabilisation Division ,Corporate Travel Provider ,203938-103 ,"1,071.15",
DFID,DFID,01/04/2014,Air fares ,Western Asia and Stabilisation Division ,Corporate Travel Provider ,203938-101 ,726.05,
DFID,DFID,01/04/2014,Air fares ,Western Asia and Stabilisation Division ,Corporate Travel Provider ,203944-104 ,"1,513.34",
DFID,DFID,01/04/2014,Air fares ,Western Asia and Stabilisation Division ,Corporate Travel Provider ,203944-104 ,587.45,
DFID,DFID,01/04/2014,Air fares ,Western Asia and Stabilisation Division ,Corporate Travel Provider ,203944-106 ,"1,513.34",
DFID,DFID,01/04/2014,Air fares ,Western Asia and Stabilisation Division ,Corporate Travel Provider ,203944-108 ,728.95,
DFID,DFID,01/04/2014,Air fares ,Western Asia and Stabilisation Division ,Corporate Travel Provider ,203944-108 ,"1,513.34",
DFID,DFID,01/04/2014,Air fares ,Western Asia and Stabilisation Division ,Corporate Travel Provider ,204304-101 ,608.75,
DFID,DFID,01/04/2014,Air fares ,Western Asia and Stabilisation Division ,Corporate Travel Provider ,204304-103 ,"1,267.44",
DFID,DFID,01/04/2014,Air fares ,Western Asia and Stabilisation Division ,Corporate Travel Provider ,204304-103 ,"5,084.45",
DFID,DFID,01/04/2014,Air fares ,Western Asia and Stabilisation Division ,Corporate Travel Provider ,204304-103 ,"1,267.44",
DFID,DFID,01/04/2014,Air fares ,Western Asia and Stabilisation Division ,Corporate Travel Provider ,204304-103 ,"5,084.45",
DFID,DFID,01/04/2014,Air fares ,Western Asia and Stabilisation Division ,Corporate Travel Provider ,204304-103 ,"1,271.11",
DFID,DFID,01/04/2014,Air fares ,Western Asia and Stabilisation Division ,Corporate Travel Provider ,204304-103 ,"1,271.11",
DFID,DFID,01/04/2014,Air fares ,Western Asia and Stabilisation Division ,Corporate Travel Provider ,204304-103 ,633.72,
DFID,DFID,01/04/2014,Air fares ,Western Asia and Stabilisation Division ,Corporate Travel Provider ,204304-103 ,"1,271.11",
DFID,DFID,01/04/2014,Air fares ,Research and Evidence Division ,Corporate Travel Provider ,202392-113 ,571.75,
DFID,DFID,01/04/2014,Hotels - Accommodation only ,Research and Evidence Division ,Corporate Travel Provider ,202392-113 ,757.44,
DFID,DFID,01/04/2014,Air fares ,International Relations Division ,Corporate Travel Provider ,202319-101 ,555.60,
DFID,DFID,01/04/2014,Air fares ,International Relations Division ,Corporate Travel Provider ,202319-101 ,555.60,
DFID,DFID,01/04/2014,Aid Programme - Accountable Grant Payments ,Policy Division ,Open Society Foundation ,204180-101 ,"40,971.83",
DFID,DFID,01/04/2014,Project delivery costs - supplier services ,Asia  Caribbean and Overseas Territories ,INFRASTRUCTURE PROFESSIONALS ENTERPRISE ,114040-101 ,"140,405.06",
DFID,DFID,01/04/2014,Project delivery costs - supplier services ,Asia  Caribbean and Overseas Territories ,INFRASTRUCTURE PROFESSIONALS ENTERPRISE ,202765-101 ,"109,479.75",
DFID,DFID,01/04/2014,Training - Course Fees ,Western Asia and Stabilisation Division ,Supplier Name withheld ,101601-110 ,740.55,
DFID,DFID,01/04/2014,Project delivery costs - supplier services ,East and Central Africa ,HTSPE LTD ,203574-106 ,"42,060.01",
DFID,DFID,01/04/2014,Project delivery costs - supplier services ,East and Central Africa ,HTSPE LTD ,203574-112 ,"4,913.00",
DFID,DFID,01/04/2014,Project delivery costs - supplier services ,East and Central Africa ,HTSPE LTD ,203574-103 ,"6,593.79",
DFID,DFID,02/04/2014,Project delivery costs - supplier services ,Western Asia and Stabilisation Division ,Supplier Name withheld ,204158-101 ,"5,137.98",
DFID,DFID,02/04/2014,Project delivery costs - supplier services ,Western Asia and Stabilisation Division ,Supplier Name withheld ,204158-101 ,"17,983.18",
DFID,DFID,02/04/2014,Hostile Environment Training ,Middle East & North Africa Division (MENAD) ,Pilgrims Group ,100146-101 ,802.14,
DFID,DFID,02/04/2014,Project delivery costs - supplier services ,Conflict Humanitarian and Security Division ,Crown Agents. ,203416-101 ,"159,838.00",
DFID,DFID,02/04/2014,Aid Programme - Accountable Grant Payments ,Policy Division ,THE TIDES CENTER ,204178-101 ,"62,144.00",
DFID,DFID,02/04/2014,Project delivery costs - supplier services ,East and Central Africa ,ATOS CONSULTING LIMITED ,202574-104 ,"135,021.22",
DFID,DFID,02/04/2014,Project delivery costs - supplier services ,Asia  Caribbean and Overseas Territories ,OPTIONS CONSULTANCY SERVICES LIMITED ,201375-103 ,"25,732.65",
DFID,DFID,02/04/2014,Project delivery costs - supplier services ,Asia  Caribbean and Overseas Territories ,OPTIONS CONSULTANCY SERVICES LIMITED ,201375-103 ,"60,886.00",
DFID,DFID,02/04/2014,Project delivery costs - supplier services ,West and Southern Africa ,ADAM SMITH INTERNATIONAL  LTD ,203824-103 ,"11,538.11",
DFID,DFID,02/04/2014,Project delivery costs - supplier services ,West and Southern Africa ,ADAM SMITH INTERNATIONAL  LTD ,203824-103 ,"119,700.00",
DFID,DFID,02/04/2014,Research & Development costs ,Research and Evidence Division ,Crown Agents Bank ,114010-102 ,"204,257.02",
DFID,DFID,02/04/2014,Training - Travel & Subsistence ,East and Central Africa ,Courtyard Hotel ,101612-101 ,515.70,
DFID,DFID,02/04/2014,Project delivery costs - supplier services ,Policy Division ,IMPERIAL COLLEGE LONDON ,200706-101 ,"94,303.17",
DFID,DFID,02/04/2014,Project delivery costs - supplier services ,Policy Division ,Crown Agents. ,203146-102 ,"17,570.71",
DFID,DFID,02/04/2014,Project delivery costs - supplier services ,West and Southern Africa ,Ibidapo Oyewole ,203920-101 ,"5,833.00",
DFID,DFID,02/04/2014,Hostile Environment Training ,International Relations Division ,Pilgrims Group ,100238-101 ,968.28,
DFID,DFID,02/04/2014,Vehicle Petrol & Oil ,West and Southern Africa ,Lynnwood Motors ,101631-101 ,574.26,
DFID,DFID,02/04/2014,Aid Programme - Humanitarian Material Relief Assistance and Services ,Conflict Humanitarian and Security Division ,Crown Agents. ,204351-101 ,"28,720.28",
DFID,DFID,02/04/2014,Aid Programme - Humanitarian Material Relief Assistance and Services ,Conflict Humanitarian and Security Division ,Crown Agents. ,204351-101 ,"23,662.25",
DFID,DFID,02/04/2014,Aid Programme - Humanitarian Material Relief Assistance and Services ,Conflict Humanitarian and Security Division ,Crown Agents. ,204351-101 ,"84,638.40",
DFID,DFID,02/04/2014,Project delivery costs - supplier services ,East and Central Africa ,ADAM SMITH INTERNATIONAL  LTD ,202698-106 ,"231,575.26",
DFID,DFID,02/04/2014,Project delivery costs - supplier services ,Communications Division ,INTERN DEVEL EDUC ASSOC OF SCOTLAND ,201469-105 ,"91,021.00",
DFID,DFID,02/04/2014,Encashment of Promissory Notes ,International Finance Division ,Asian Development Fund,110992-104 ,"969,000.00",
DFID,DFID,02/04/2014,Training - Course Fees ,Group Operations ,Capita  Business Services ,201157-102 ,"1,558.80",
DFID,DFID,02/04/2014,Storage & Distribution costs ,Middle East & North Africa Division (MENAD) ,PICKFORDS LTD ,101619-101 ,"1,995.92",
DFID,DFID,02/04/2014,Encashment of Promissory Notes ,International Finance Division ,Asian Development Fund,203547-101 ,"5,580,000.00",
DFID,DFID,02/04/2014,Storage & Distribution costs ,Middle East & North Africa Division (MENAD) ,PICKFORDS LTD ,201705-101 ,"1,995.92",
DFID,DFID,02/04/2014,Training - Course Fees ,Human Resources ,Capita  Business Services ,100269-153 ,"11,877.71",
DFID,DFID,02/04/2014,DFID Purchased Relief Supplies ,West and Southern Africa ,Crown Agents. ,114230-102 ,"2,972.03",
DFID,DFID,02/04/2014,Encashment of Promissory Notes ,International Finance Division ,Asian Development Fund,200614-103 ,"4,466,000.00",
DFID,DFID,02/04/2014,Contract & Agency Staff ,Finance and Corporate Performance Division ,Hays Specialist Recruitment Ltd ,100008-101 ,"1,010.99",
DFID,DFID,02/04/2014,Contract & Agency Staff ,Finance and Corporate Performance Division ,Hays Specialist Recruitment Ltd ,100008-101 ,"1,684.98",
DFID,DFID,02/04/2014,Contract & Agency Staff ,Finance and Corporate Performance Division ,Hays Specialist Recruitment Ltd ,100008-101 ,"1,684.98",
DFID,DFID,02/04/2014,Training Providers/Facilitation Services ,Communications Division ,Pilgrims Group ,100138-101 ,802.14,
DFID,DFID,02/04/2014,Contract & Agency Staff ,Finance and Corporate Performance Division ,Search Consultancy Ltd ,100201-101 ,"1,663.20",
DFID,DFID,02/04/2014,Aid Programme - Programme Contribution ,Policy Division ,FCO SERVICES ,204628-101 ,"99,147.72",
DFID,DFID,02/04/2014,Project delivery costs - supplier services ,West and Southern Africa ,THE SAVE THE CHILDREN FUND ,202637-104 ,"57,000.00",
DFID,DFID,02/04/2014,Project delivery costs - supplier services ,West and Southern Africa ,DAI Europe ,201958-102 ,"355,830.74",
DFID,DFID,02/04/2014,Project delivery costs - supplier services ,East and Central Africa ,COFFEY INTERNATIONAL DEVELOPMENT LTD ,202974-105 ,"5,922.26",
DFID,DFID,02/04/2014,Project delivery costs - supplier services ,East and Central Africa ,COFFEY INTERNATIONAL DEVELOPMENT LTD ,202974-105 ,"66,882.94",
DFID,DFID,02/04/2014,Print Services ,Research and Evidence Division ,UNIVERSITY OF LONDON INSTIT ,203339-103 ,"5,195.00",
DFID,DFID,02/04/2014,Project delivery costs - supplier services ,East and Central Africa ,COFFEY INTERNATIONAL DEVELOPMENT LTD ,202596-101 ,"12,531.94",
DFID,DFID,02/04/2014,Project delivery costs - supplier services ,Human Resources ,MTB CONSULTING ,100269-130 ,"1,451.04",
DFID,DFID,02/04/2014,Project delivery costs - supplier services ,Asia  Caribbean and Overseas Territories ,INFRASTRUCTURE PROFESSIONALS ENTERPRISE ,202765-101 ,"61,166.15",
DFID,DFID,02/04/2014,Project delivery costs - supplier services ,West and Southern Africa ,COFFEY INTERNATIONAL DEVELOPMENT LTD ,104190-109 ,"3,428.88",
DFID,DFID,02/04/2014,Project delivery costs - supplier services ,West and Southern Africa ,COFFEY INTERNATIONAL DEVELOPMENT LTD ,104190-109 ,"219,558.13",
DFID,DFID,02/04/2014,Project delivery costs - supplier services ,East and Central Africa ,COFFEY INTERNATIONAL DEVELOPMENT LTD ,101635-101 ,"10,700.00",
DFID,DFID,02/04/2014,Project delivery costs - supplier services ,East and Central Africa ,COFFEY INTERNATIONAL DEVELOPMENT LTD ,202747-103 ,"21,956.70",
DFID,DFID,02/04/2014,Air fares ,Western Asia and Stabilisation Division ,Pace Travels ,101624-101 ,909.21,
DFID,DFID,02/04/2014,Research & Development costs ,Research and Evidence Division ,African Institute for Development Policy (AFIDEP) ,204320-101 ,"124,860.00",
DFID,DFID,02/04/2014,Project delivery costs - supplier services ,Asia  Caribbean and Overseas Territories ,Social Development Direct Ltd ,201286-101 ,"33,000.00",
DFID,DFID,02/04/2014,Project delivery costs - supplier services ,Western Asia and Stabilisation Division ,Supplier Name withheld ,114488-101 ,"31,317.00",
DFID,DFID,02/04/2014,Project delivery costs - supplier services ,Western Asia and Stabilisation Division ,Supplier Name withheld ,114488-101 ,"23,822.66",
DFID,DFID,02/04/2014,Contract Catering Services ,East and Central Africa ,Desset Resort ,202913-101 ,"4,569.92",
DFID,DFID,02/04/2014,Project delivery costs - supplier services ,Research and Evidence Division ,GHK CONSULTING LTD ,201433-106 ,"18,398.50",
DFID,DFID,02/04/2014,Project delivery costs - supplier services ,Policy Division ,IMC Worldwide Ltd. ,202628-102 ,"76,872.00",
DFID,DFID,02/04/2014,Aid Programme - Accountable Grant Payments ,Asia  Caribbean and Overseas Territories ,THE ASIA FOUNDATION ,202798-102 ,"48,134.18",
DFID,DFID,02/04/2014,Project delivery costs - supplier services ,International Finance Division ,GBRW LIMITED ,100111-101 ,"3,285.00",
DFID,DFID,02/04/2014,Project delivery costs - supplier services ,East and Central Africa ,CHARLES KENDALL & PARTNERS LIMITED (PROCUREMENT) ,202513-101 ,"6,750.00",
DFID,DFID,02/04/2014,DFID Purchased Relief Supplies ,West and Southern Africa ,CHARLES KENDALL & PARTNERS LIMITED (PROCUREMENT) ,202214-106 ,"78,451.89",
DFID,DFID,02/04/2014,DFID Purchased Relief Supplies ,West and Southern Africa ,CHARLES KENDALL & PARTNERS LIMITED (PROCUREMENT) ,202214-106 ,720.57,
DFID,DFID,02/04/2014,DFID Purchased Relief Supplies ,West and Southern Africa ,CHARLES KENDALL & PARTNERS LIMITED (PROCUREMENT) ,202214-106 ,"140,113.91",
DFID,DFID,02/04/2014,DFID Purchased Relief Supplies ,West and Southern Africa ,CHARLES KENDALL & PARTNERS LIMITED (PROCUREMENT) ,202214-106 ,"12,723.94",
DFID,DFID,02/04/2014,DFID Purchased Relief Supplies ,West and Southern Africa ,CHARLES KENDALL & PARTNERS LIMITED (PROCUREMENT) ,202214-106 ,806.00,
DFID,DFID,02/04/2014,Project delivery costs - supplier services ,West and Southern Africa ,OXFORD POLICY MANAGEMENT ,200341-101 ,"144,423.40",
DFID,DFID,02/04/2014,Project delivery costs - supplier services ,West and Southern Africa ,CHARLES KENDALL & PARTNERS LIMITED (PROCUREMENT) ,113961-106 ,726.20,
DFID,DFID,02/04/2014,Project delivery costs - supplier services ,Policy Division ,OXFORD POLICY MANAGEMENT ,203368-101 ,"10,435.75",
DFID,DFID,03/04/2014,Air fares ,East and Central Africa ,Recipient name withheld ,202594-101 ,511.03,
DFID,DFID,03/04/2014,Project delivery costs - supplier services ,East and Central Africa ,ADAM SMITH INTERNATIONAL  LTD ,202657-102 ,"112,455.00",
DFID,DFID,03/04/2014,Project delivery costs - supplier services ,East and Central Africa ,ADAM SMITH INTERNATIONAL  LTD ,202657-102 ,"87,493.00",
DFID,DFID,03/04/2014,Project delivery costs - supplier services ,East and Central Africa ,ADAM SMITH INTERNATIONAL  LTD ,202657-102 ,"37,497.00",
DFID,DFID,03/04/2014,Project delivery costs - supplier services ,East and Central Africa ,ADAM SMITH INTERNATIONAL  LTD ,202657-102 ,"48,195.00",
DFID,DFID,03/04/2014,Project delivery costs - supplier services ,Middle East & North Africa Division (MENAD) ,ADAM SMITH INTERNATIONAL  LTD ,204061-101 ,"216,386.00",
DFID,DFID,03/04/2014,Hostile Environment Training ,Middle East & North Africa Division (MENAD) ,Pilgrims Group ,101619-101 ,802.14,
DFID,DFID,03/04/2014,Project delivery costs - supplier services ,Conflict Humanitarian and Security Division ,Crown Agents. ,203249-102 ,958.00,
DFID,DFID,03/04/2014,Aid Programme - Core contributions ,Research and Evidence Division ,INTERNATIONAL CENTRE FOR DIARRO ,202767-101 ,"1,250,000.00",
DFID,DFID,03/04/2014,Aid Programme - Core contributions ,Research and Evidence Division ,INTERNATIONAL CENTRE FOR DIARRO ,202767-101 ,"625,000.00",
DFID,DFID,03/04/2014,other information and communication technologies ,East and Central Africa ,RCS - Radio & Satellite Communication ,202594-101 ,525.83,
DFID,DFID,03/04/2014,other information and communication technologies ,East and Central Africa ,RCS - Radio & Satellite Communication ,202586-101 ,"1,208.80",
DFID,DFID,03/04/2014,Training - Course Fees ,Human Resources ,Capita  Business Services ,100269-155 ,"1,406.00",
DFID,DFID,03/04/2014,Training - Course Fees ,Human Resources ,Capita  Business Services ,100269-155 ,"2,109.00",
DFID,DFID,03/04/2014,Training - Course Fees ,Human Resources ,Capita  Business Services ,100269-155 ,"8,530.91",
DFID,DFID,03/04/2014,Taxi costs ,Business Solutions Division Level ,d&m taxis ,200001-101 ,600.00,
DFID,DFID,03/04/2014,Project delivery costs - supplier services ,Asia  Caribbean and Overseas Territories ,Md. Saifuddin Khaled ,114175-108 ,"2,853.17",
DFID,DFID,03/04/2014,Project delivery costs - supplier services ,Western Asia and Stabilisation Division ,Supplier Name withheld ,114488-101 ,"421,768.00",
DFID,DFID,03/04/2014,Repairs  Maint  Alter - Property & Constrct. Services ,East and Central Africa ,SAFECON Electro Mechanical Works PLC ,100082-101 ,"6,442.97",
DFID,DFID,03/04/2014,Repairs  Maint  Alter - Property & Constrct. Services ,East and Central Africa ,SAFECON Electro Mechanical Works PLC ,100082-101 ,"6,303.51",
DFID,DFID,03/04/2014,Repairs  Maint  Alter - Property & Constrct. Services ,East and Central Africa ,SAFECON Electro Mechanical Works PLC ,101612-101 ,"1,363.36",
DFID,DFID,03/04/2014,Repairs  Maint  Alter - Property & Constrct. Services ,East and Central Africa ,SAFECON Electro Mechanical Works PLC ,101612-101 ,"2,619.79",
DFID,DFID,03/04/2014,Research & Development costs ,Research and Evidence Division ,CENTRE FOR ECONOMIC POLICY RESEARCH ,202835-101 ,"201,428.58",
DFID,DFID,03/04/2014,Research & Development costs ,Research and Evidence Division ,CENTRE FOR ECONOMIC POLICY RESEARCH ,202835-101 ,"43,858.18",
DFID,DFID,03/04/2014,Aid Programme - Core contributions ,Policy Division ,IBRD HSBC T ,202870-102 ,"130,000.00",
DFID,DFID,03/04/2014,Project delivery costs - supplier services ,West and Southern Africa ,HEALTH PARTNERS INTERNATIONAL ,104227-102 ,"26,657.20",
DFID,DFID,03/04/2014,Aid Programme - Accountable Grant Payments ,West and Southern Africa ,INTERNATIONAL RESCUE COMMITTEE UK ,105862-103 ,"5,855,614.00",
DFID,DFID,03/04/2014,Contract & Agency Staff ,Finance and Corporate Performance Division ,Computer Futures ,200173-102 ,"1,680.12",
DFID,DFID,03/04/2014,Project delivery costs - supplier services ,Western Asia and Stabilisation Division ,Supplier Name withheld ,202190-105 ,"33,386.00",
DFID,DFID,03/04/2014,Project delivery costs - supplier services ,Western Asia and Stabilisation Division ,Supplier Name withheld ,202190-105 ,"95,894.00",
DFID,DFID,03/04/2014,Project delivery costs - supplier services ,Western Asia and Stabilisation Division ,Supplier Name withheld ,202190-105 ,"14,708.00",
DFID,DFID,03/04/2014,Subscriptions ,Communications Division ,THE PRESS ASSOCIATION ,100197-101 ,574.70,
DFID,DFID,03/04/2014,Research & Development costs ,Research and Evidence Division ,University of Johannesburg ,204156-101 ,"62,707.52",
DFID,DFID,03/04/2014,Project delivery costs - supplier services ,Asia  Caribbean and Overseas Territories ,OPTIONS CONSULTANCY SERVICES LIMITED ,113963-101 ,"77,300.31",
DFID,DFID,03/04/2014,Hotels - Accommodation only ,International Relations Division ,Recipient name withheld ,100262-101 ,507.46,
DFID,DFID,03/04/2014,Secure Staff Accommodation ,West and Southern Africa ,Supplier Name withheld ,101610-101 ,"9,520.88",
DFID,DFID,03/04/2014,Secure Staff Accommodation ,West and Southern Africa ,Supplier Name withheld ,101610-101 ,"9,520.88",
DFID,DFID,03/04/2014,Storage & Distribution costs ,Western Asia and Stabilisation Division ,PICKFORDS LTD ,101624-101 ,"2,420.50",
DFID,DFID,03/04/2014,Repairs  Maint  Alter - Property & Constrct. Services ,East and Central Africa ,SAFECON Electro Mechanical Works PLC ,202913-104 ,"1,045.17",
DFID,DFID,03/04/2014,Aid Programme - Voluntary contributions ,Middle East & North Africa Division (MENAD) ,IBRD (HSBC)  C/O THE WORLD BANK ,203238-101 ,"1,000,000.00",
DFID,DFID,03/04/2014,Project delivery costs - supplier services ,Asia  Caribbean and Overseas Territories ,GH Associates ,202708-103 ,"9,306.52",
DFID,DFID,03/04/2014,Repairs  Maintenance and Alterations - Other Building Costs ,Group Operations ,EVAC+CHAIR INTERNATIONAL LTD ,203717-101 ,515.00,
DFID,DFID,03/04/2014,Storage & Distribution costs ,East and Central Africa ,PICKFORDS LTD ,101633-101 ,"2,420.50",
DFID,DFID,03/04/2014,Training - Course Fees ,Conflict Humanitarian and Security Division ,INSTITUTE OF DEVELOPMENT STUDIES ,202410-101 ,"1,450.00",
DFID,DFID,03/04/2014,Training - Course Fees ,Conflict Humanitarian and Security Division ,INSTITUTE OF DEVELOPMENT STUDIES ,100049-101 ,"1,450.00",
DFID,DFID,03/04/2014,Property rates ,Group Operations ,CITY OF WESTMINSTER ,203717-101 ,"124,496.00",Property Rates for DFID HQ 22 Whitehall 
DFID,DFID,03/04/2014,Hotels - Accommodation only ,International Relations Division ,Recipient name withheld ,100240-101 ,750.03,
DFID,DFID,03/04/2014,Fund monies to be managed and dispersed by the supplier ,East and Central Africa ,Crown Agents. ,203382-115 ,"13,557.43",
DFID,DFID,03/04/2014,Aid Programme - Joint programme contribution ,Research and Evidence Division ,Engineering & Physical Sciences Research Council ,203781-104 ,"397,474.07",
DFID,DFID,03/04/2014,Aid Programme - Joint programme contribution ,Research and Evidence Division ,Engineering & Physical Sciences Research Council ,203781-104 ,"49,702.50",
DFID,DFID,03/04/2014,Aid Programme - Accountable Grant Payments ,Middle East & North Africa Division (MENAD) ,CARE INTERNATIONAL UK ,202719-104 ,"27,767.00",
DFID,DFID,03/04/2014,Training - Course Fees ,International Finance Division ,EML Learning Ltd. ,100111-101 ,780.00,
DFID,DFID,03/04/2014,Project delivery costs - supplier services ,Western Asia and Stabilisation Division ,Dr Farzana Bari ,202289-102 ,"7,632.64",
DFID,DFID,03/04/2014,Project delivery costs - supplier services ,Policy Division ,WORLD VISION ,202035-103 ,"153,600.00",
DFID,DFID,03/04/2014,Project delivery costs - supplier services ,West and Southern Africa ,GRM INTERNATIONAL LTD (1) ,202098-101 ,"802,716.44",
DFID,DFID,03/04/2014,Project delivery costs - supplier services ,East and Central Africa ,Coffey International Development (Do not use) ,200250-111 ,"5,005.00",
DFID,DFID,03/04/2014,Secure Staff Accommodation ,West and Southern Africa ,Supplier Name withheld ,101610-101 ,"12,447.00",
DFID,DFID,03/04/2014,Secure Staff Accommodation ,West and Southern Africa ,Supplier Name withheld ,101610-101 ,"12,447.00",
DFID,DFID,03/04/2014,Secure Staff Accommodation ,West and Southern Africa ,Supplier Name withheld ,101610-101 ,"10,952.04",
DFID,DFID,03/04/2014,Aid Programme - Accountable Grant Payments ,Policy Division ,Triple Line Crown Agents JV ,202035-101 ,"88,227.48",
DFID,DFID,03/04/2014,Aid Programme - Accountable Grant Payments ,Policy Division ,Triple Line Crown Agents JV ,202035-101 ,"89,444.80",
DFID,DFID,03/04/2014,Aid Programme - Accountable Grant Payments ,Asia  Caribbean and Overseas Territories ,ROBERT GORDON UNIVERSITY ,202833-111 ,"12,000.00",
DFID,DFID,03/04/2014,Project delivery costs - supplier services ,Research and Evidence Division ,GHK CONSULTING LTD ,201433-106 ,"63,011.37",
DFID,DFID,03/04/2014,Air fares ,East and Central Africa ,Safeway Travel and Tour ,101612-101 ,"1,286.97",
DFID,DFID,03/04/2014,Project delivery costs - supplier services ,West and Southern Africa ,GHK CONSULTING LTD ,201433-107 ,"81,409.88",
DFID,DFID,03/04/2014,Training - Travel & Subsistence ,East and Central Africa ,Safeway Travel and Tour ,101612-101 ,"1,376.87",
DFID,DFID,03/04/2014,Air fares ,East and Central Africa ,Safeway Travel and Tour ,101612-101 ,"1,336.96",
DFID,DFID,04/04/2014,DFID Purchased Relief Supplies ,East and Central Africa ,IPA-International Procurement Agency (BV) ,200787-109 ,"252,790.33",
DFID,DFID,04/04/2014,DFID Purchased Relief Supplies ,East and Central Africa ,IPA-International Procurement Agency (BV) ,200787-109 ,"7,457.31",
DFID,DFID,04/04/2014,Aid Programme - Humanitarian Material Relief Assistance and Services ,Middle East & North Africa Division (MENAD) ,Crown Agents. ,203216-110 ,"11,150.24",
DFID,DFID,04/04/2014,Aid Programme - Humanitarian Material Relief Assistance and Services ,Middle East & North Africa Division (MENAD) ,Crown Agents. ,204007-102 ,"22,188.00",
DFID,DFID,04/04/2014,Aid Programme - Humanitarian Material Relief Assistance and Services ,Middle East & North Africa Division (MENAD) ,Crown Agents. ,204007-102 ,"36,292.80",
DFID,DFID,04/04/2014,Aid Programme - Humanitarian Material Relief Assistance and Services ,Conflict Humanitarian and Security Division ,Crown Agents. ,204351-101 ,"38,397.60",
DFID,DFID,04/04/2014,Project delivery costs - supplier services ,International Finance Division ,MAXWELL STAMP PLC ,200634-102 ,"19,189.68",
DFID,DFID,04/04/2014,Project delivery costs - supplier services ,International Finance Division ,MAXWELL STAMP PLC ,200634-102 ,"6,392.35",
DFID,DFID,04/04/2014,Encashment of Promissory Notes ,International Finance Division ,International Development Association,200018-103 ,"19,660,000.00",
DFID,DFID,04/04/2014,Encashment of Promissory Notes ,International Finance Division ,International Development Association,202969-103 ,"118,547,500.00",
DFID,DFID,04/04/2014,Aid Programme - Core contributions ,International Finance Division ,International Monetary Fund (GBP) ,203442-103 ,"73,296,397.43",
DFID,DFID,04/04/2014,Contract & Agency Staff ,Human Resources ,Anderson Knight Ltd ,100270-104 ,597.18,
DFID,DFID,04/04/2014,Contract & Agency Staff ,Human Resources ,Anderson Knight Ltd ,100270-104 ,597.18,
DFID,DFID,04/04/2014,Contract & Agency Staff ,Human Resources ,Anderson Knight Ltd ,100270-104 ,597.18,
DFID,DFID,04/04/2014,Contract & Agency Staff ,Finance and Corporate Performance Division ,Anderson Knight Ltd ,200173-103 ,597.18,
DFID,DFID,04/04/2014,Project delivery costs - supplier services ,Asia  Caribbean and Overseas Territories ,Crown Agents. ,203275-102 ,"27,742.93",
DFID,DFID,04/04/2014,Project delivery costs - supplier services ,East and Central Africa ,DPGE ,202534-103 ,"1,257.15",
DFID,DFID,04/04/2014,Hardware - networking equipment ,Asia  Caribbean and Overseas Territories ,Crown Agents. ,201652-106 ,"19,394.55",
DFID,DFID,04/04/2014,Hostile Environment Training ,Western Asia and Stabilisation Division ,Supplier Name withheld ,101601-110 ,802.14,
DFID,DFID,04/04/2014,Aid Programme - Voluntary contributions ,East and Central Africa ,FAO ,204400-101 ,"8,300,000.00",
DFID,DFID,04/04/2014,DFID Purchased Relief Supplies ,West and Southern Africa ,Crown Agents. ,114206-102 ,"2,952.38",
DFID,DFID,04/04/2014,Relocation costs ,East and Central Africa ,PICKFORDS LTD ,101628-101 ,"12,072.02",
DFID,DFID,04/04/2014,Repairs  Maintenance and Alterations - Other Building Costs ,West and Southern Africa ,Genmec Limited ,101618-101 ,"1,988.88",
DFID,DFID,04/04/2014,Aid Programme - Accountable Grant Payments ,Conflict Humanitarian and Security Division ,Eastern Alliance for Safe and Sustainable Transport ,203423-101 ,"6,955.60",
DFID,DFID,04/04/2014,Project delivery costs - supplier services ,Western Asia and Stabilisation Division ,SPECTRA  GROUP UK LTD ,203940-104 ,"9,126.29",
DFID,DFID,04/04/2014,Project delivery costs - supplier services ,Western Asia and Stabilisation Division ,Tsamota ,204304-103 ,"65,878.73",
DFID,DFID,04/04/2014,Project delivery costs - supplier services ,Joint Trade Policy Division ,Crown Agents. ,202089-102 ,"429,019.95",
DFID,DFID,04/04/2014,Repairs  Maint  Alter - Property & Constrct. Services ,West and Southern Africa ,Mercury Construction Management Company ,203824-101 ,"13,569.91",
DFID,DFID,04/04/2014,Hostile Environment Training ,Conflict Humanitarian and Security Division ,Pilgrims Group ,202410-101 ,802.14,
DFID,DFID,04/04/2014,Aid Programme - Accountable Grant Payments ,Western Asia and Stabilisation Division ,SAVE THE CHILDREN ,203101-101 ,"156,564.87",
DFID,DFID,04/04/2014,Contract & Agency Staff ,Human Resources ,Anderson Knight Ltd ,100270-103 ,597.18,
DFID,DFID,04/04/2014,Water charges ,Group Operations ,BUSINESS STREAM ,100106-101 ,"9,698.80",
DFID,DFID,04/04/2014,Contract & Agency Staff ,Finance and Corporate Performance Division ,Hays Specialist Recruitment Ltd ,100201-101 ,"1,790.58",
DFID,DFID,04/04/2014,Project delivery costs - supplier services ,Western Asia and Stabilisation Division ,Crown Agents. ,203941-102 ,"2,498.50",
DFID,DFID,04/04/2014,Recruitment costs ,Human Resources ,MTB CONSULTING ,100269-130 ,"1,547.60",
DFID,DFID,04/04/2014,Recruitment costs ,Human Resources ,MTB CONSULTING ,100269-130 ,"3,005.01",
DFID,DFID,04/04/2014,Project delivery costs - supplier services ,Human Resources ,MidlandHR ,100269-141 ,"12,993.64",
DFID,DFID,04/04/2014,Project delivery costs - supplier services ,West and Southern Africa ,CAMBRIDGE EDUCATION CONSUL ,202678-102 ,"64,127.29",
DFID,DFID,04/04/2014,Project delivery costs - supplier services ,Policy Division ,PATH ,202674-101 ,"34,752.02",
DFID,DFID,04/04/2014,Conferences  Seminars & Meeting/Event Resource ,Finance and Corporate Performance Division ,Femi Oke ,204296-103 ,"1,822.87",
DFID,DFID,04/04/2014,Project delivery costs - supplier services ,West and Southern Africa ,Baker Tilly Business Services Limited ,200469-117 ,"280,711.66",
DFID,DFID,04/04/2014,Aid Programme - Accountable Grant Payments ,Research and Evidence Division ,PRACTICAL ACTION ,200490-103 ,"24,759.00",
DFID,DFID,04/04/2014,Conference Travel & Subsistence ,Conflict Humanitarian and Security Division ,HiIL ,100049-101 ,537.33,
DFID,DFID,04/04/2014,Project delivery costs - supplier services ,Policy Division ,Jeremy Shiffman ,203368-104 ,704.18,
DFID,DFID,04/04/2014,Aid Programme - Accountable Grant Payments ,West and Southern Africa ,Catholic Relief Services/Ghana ,201629-109 ,"28,387.80",
DFID,DFID,04/04/2014,Project delivery costs - supplier services ,Asia  Caribbean and Overseas Territories ,FAMILY HEALTH INTERNATIONAL ,113707-101 ,"165,902.63",
DFID,DFID,04/04/2014,Legal costs ,Asia  Caribbean and Overseas Territories ,Marriott Davies Yapp LLP ,202744-101 ,828.00,
DFID,DFID,04/04/2014,Project delivery costs - supplier services ,East and Central Africa ,ORGUT UK ,200284-105 ,"24,920.00",
DFID,DFID,06/04/2014,Air fares ,Western Asia and Stabilisation Division ,Recipient name withheld ,101601-110 ,784.60,
DFID,DFID,07/04/2014,Contract & Agency Staff ,International Finance Division ,Hays Specialist Recruitment Ltd ,100120-101 ,"2,603.52",
DFID,DFID,07/04/2014,DFID Purchased Relief Supplies ,East and Central Africa ,IPA-International Procurement Agency (BV) ,200787-109 ,"533,929.03",
DFID,DFID,07/04/2014,Project delivery costs - supplier services ,East and Central Africa ,IPA-International Procurement Agency (BV) ,200787-109 ,"7,457.31",
DFID,DFID,07/04/2014,Aid Programme - Voluntary contributions ,Joint Trade Policy Division ,INTERNATIONAL TRADE CENTRE ,203984-101 ,"246,484.47",
DFID,DFID,07/04/2014,Training - Course Fees ,Human Resources ,Capita  Business Services ,100269-153 ,850.00,
DFID,DFID,07/04/2014,Project delivery costs - supplier services ,West and Southern Africa ,ADAM SMITH INTERNATIONAL  LTD ,202539-106 ,"14,991.10",
DFID,DFID,07/04/2014,Project delivery costs - supplier services ,West and Southern Africa ,ADAM SMITH INTERNATIONAL  LTD ,202539-106 ,"100,742.40",
DFID,DFID,07/04/2014,Project delivery costs - supplier services ,West and Southern Africa ,ORGUT UK LTD ,113971-102 ,"14,557.28",
DFID,DFID,07/04/2014,Vehicle Repairs & Maintenance ,West and Southern Africa ,British  High Commission Abuja ,101622-101 ,"1,423.34",
DFID,DFID,07/04/2014,Vehicle Petrol & Oil ,Asia  Caribbean and Overseas Territories ,Sikder Filling and Serivce Station ,100025-101 ,546.55,
DFID,DFID,07/04/2014,Project delivery costs - supplier services ,West and Southern Africa ,ADAM SMITH INTERNATIONAL  LTD ,203824-103 ,"17,686.42",
DFID,DFID,07/04/2014,Electricity ,East and Central Africa ,Tanzania Electric supply company Ltd ,101634-101 ,"4,882.81",
DFID,DFID,07/04/2014,Project delivery costs - supplier services ,West and Southern Africa ,HEALTH PARTNERS INTERNATIONAL ,104227-105 ,"30,869.76",
DFID,DFID,07/04/2014,Project delivery costs - supplier services ,Asia  Caribbean and Overseas Territories ,Atia Hossain ,201645-109 ,"8,149.32",
DFID,DFID,07/04/2014,Repairs  Maint  Alter - Property & Constrct. Services ,West and Southern Africa ,Petliz Enterprise ,101637-101 ,731.49,
DFID,DFID,07/04/2014,Project delivery costs - supplier services ,Western Asia and Stabilisation Division ,Crown Agents. ,204308-105 ,"3,800.84",
DFID,DFID,07/04/2014,Project delivery costs - supplier services ,Western Asia and Stabilisation Division ,Crown Agents. ,204308-105 ,"2,879.42",
DFID,DFID,07/04/2014,Data Network - land lines ,West and Southern Africa ,MICRO COM Sprl ,101610-101 ,"9,798.07",
DFID,DFID,07/04/2014,Data Network - land lines ,East and Central Africa ,CallKey (E.A) Ltd ,202913-104 ,"1,365.25",
DFID,DFID,07/04/2014,Aid Programme - Accountable Grant Payments ,Asia  Caribbean and Overseas Territories ,Dolma Development Fund ,203426-101 ,"11,216.80",
DFID,DFID,07/04/2014,Computer Consumables ,Asia  Caribbean and Overseas Territories ,Crown Agents. ,201739-101 ,642.52,
DFID,DFID,07/04/2014,Air fares ,West and Southern Africa ,Recipient name withheld ,201763-101 ,"1,174.80",
DFID,DFID,07/04/2014,Project delivery costs - supplier services ,East and Central Africa ,Crown Agents. ,203928-101 ,"1,252.00",
DFID,DFID,07/04/2014,Project delivery costs - supplier services ,East and Central Africa ,Crown Agents. ,203928-101 ,"6,565.00",
DFID,DFID,07/04/2014,Project delivery costs - supplier services ,Western Asia and Stabilisation Division ,FCO SERVICES ,203939-101 ,889.78,
DFID,DFID,07/04/2014,Project delivery costs - supplier services ,Western Asia and Stabilisation Division ,Crown Agents. ,203939-103 ,581.00,
DFID,DFID,07/04/2014,Legal costs ,West and Southern Africa ,Victoria Dean Advocates ,101637-101 ,"1,392.92",
DFID,DFID,07/04/2014,Contract & Agency Staff ,Finance and Corporate Performance Division ,Hays Specialist Recruitment Ltd ,100008-101 ,"1,684.98",
DFID,DFID,07/04/2014,Hotels - Accommodation only ,Conflict Humanitarian and Security Division ,Recipient name withheld ,100049-101 ,708.22,
DFID,DFID,07/04/2014,Hotels - Accommodation only ,Conflict Humanitarian and Security Division ,Recipient name withheld ,100049-101 ,537.08,
DFID,DFID,07/04/2014,Contract & Agency Staff ,Finance and Corporate Performance Division ,Hays Specialist Recruitment Ltd ,100201-101 ,"1,106.10",
DFID,DFID,07/04/2014,Contract & Agency Staff ,Finance and Corporate Performance Division ,Hays Specialist Recruitment Ltd ,100201-101 ,"1,165.50",
DFID,DFID,07/04/2014,Contract & Agency Staff ,Finance and Corporate Performance Division ,Hays Specialist Recruitment Ltd ,100201-101 ,"1,322.28",
DFID,DFID,07/04/2014,Contract & Agency Staff ,Finance and Corporate Performance Division ,Hays Specialist Recruitment Ltd ,100201-101 ,"1,790.58",
DFID,DFID,07/04/2014,Legal costs ,West and Southern Africa ,Victoria Dean Advocates ,100254-101 ,"1,373.87",
DFID,DFID,07/04/2014,Legal costs ,West and Southern Africa ,Victoria Dean Advocates ,100254-101 ,655.49,
DFID,DFID,07/04/2014,Project delivery costs - supplier services ,Western Asia and Stabilisation Division ,Crown Agents. ,203938-101 ,"1,262.40",
DFID,DFID,07/04/2014,Project delivery costs - supplier services ,Western Asia and Stabilisation Division ,Crown Agents. ,203938-101 ,526.75,
DFID,DFID,07/04/2014,Project delivery costs - supplier services ,Western Asia and Stabilisation Division ,Crown Agents. ,203938-101 ,"1,197.40",
DFID,DFID,07/04/2014,Vehicle Hire Charges,West and Southern Africa ,Countrywide Car Hire (2007) Limited ,200469-117 ,685.25,
DFID,DFID,07/04/2014,Project delivery costs - supplier services ,Asia  Caribbean and Overseas Territories ,Crown Agents Bank ,201645-105 ,"59,799.81",
DFID,DFID,07/04/2014,Aid Programme - Challenge Fund payments ,Western Asia and Stabilisation Division ,Supplier Name withheld ,200898-116 ,"67,717.32",
DFID,DFID,07/04/2014,Project delivery costs - supplier services ,West and Southern Africa ,OVERSEAS DEVELOPMENT INSTITUTE ,203993-101 ,"40,122.46",
DFID,DFID,07/04/2014,Air fares ,West and Southern Africa ,UNHAS - WFP (DRC) ,101610-101 ,"2,049.43",
DFID,DFID,07/04/2014,Project delivery costs - supplier services ,Policy Division ,OXFORD POLICY MANAGEMENT ,203126-101 ,"13,580.00",
DFID,DFID,07/04/2014,Aid Programme - Accountable Grant Payments ,International Finance Division ,Results for Development Institute ,203314-101 ,"264,580.00",
DFID,DFID,07/04/2014,other information and communication technologies ,West and Southern Africa ,ISAT (SL) ,101629-101 ,600.96,
DFID,DFID,07/04/2014,Project delivery costs - supplier services ,Policy Division ,OXFORD POLICY MANAGEMENT ,202627-102 ,"13,580.00",
DFID,DFID,07/04/2014,Computer software maintenance ,Finance and Corporate Performance Division ,REAL ASSET MANAGEMENT PLC ,100008-101 ,"1,764.00",
DFID,DFID,07/04/2014,Aid Programme - Accountable Grant Payments ,Policy Division ,NIKE FOUNDATION ,201086-104 ,"697,715.86",
DFID,DFID,07/04/2014,Project delivery costs - supplier services ,Asia  Caribbean and Overseas Territories ,GHK CONSULTING LTD ,107891-102 ,"13,649.00",
DFID,DFID,07/04/2014,Project delivery costs - supplier services ,Asia  Caribbean and Overseas Territories ,GHK CONSULTING LTD ,107891-102 ,"17,370.00",
DFID,DFID,07/04/2014,Training - Travel & Subsistence ,East and Central Africa ,Safeway Travel and Tour ,101612-101 ,"4,040.53",
DFID,DFID,07/04/2014,Project delivery costs - supplier services ,West and Southern Africa ,OXFORD POLICY MANAGEMENT ,201874-103 ,"99,239.28",
DFID,DFID,07/04/2014,Project delivery costs - supplier services ,Middle East & North Africa Division (MENAD) ,OXFORD POLICY MANAGEMENT ,202241-104 ,"146,522.50",
DFID,DFID,08/04/2014,Professional member subscriptions ,Business Solutions Division Level ,Cabinet Office RM Shared Services ,200001-107 ,"7,297.20",
DFID,DFID,08/04/2014,Computer software maintenance ,Business Solutions Division Level ,SOFTWARE BOX LTD (SBL) ,200003-171 ,"51,989.04",
DFID,DFID,08/04/2014,Computer Software Licenses ,Business Solutions Division Level ,VODAFONE CORPORATE ,200002-194 ,"3,636.00",
DFID,DFID,08/04/2014,Training - Course Fees ,Business Solutions Division Level ,QA Limited ,200001-101 ,"3,561.50",
DFID,DFID,08/04/2014,Contract & Agency Staff ,International Finance Division ,Hays Specialist Recruitment Ltd ,100120-101 ,"1,925.52",
DFID,DFID,08/04/2014,Office Equipment - Purchases ,Business Solutions Division Level ,FCO SERVICES ,200003-154 ,"47,236.41",
DFID,DFID,08/04/2014,Project delivery costs - supplier services ,Middle East & North Africa Division (MENAD) ,Sussex Police ,202486-113 ,"8,846.70",
DFID,DFID,08/04/2014,Project delivery costs - supplier services ,West and Southern Africa ,Cambridge  Education Limited ,104200-101 ,"979,688.78",
DFID,DFID,08/04/2014,Training - Course Fees ,Human Resources ,Capita  Business Services ,100269-153 ,"5,817.07",
DFID,DFID,08/04/2014,Air fares ,East and Central Africa ,Bon Voyage Travel Centre Ltd(USD) ,101625-102 ,612.98,
DFID,DFID,08/04/2014,Aid Programme - Accountable Grant Payments ,Joint Trade Policy Division ,International Centre for Trade and Sustainable Development ,203524-101 ,"425,000.00",
DFID,DFID,08/04/2014,Aid Programme - Core contributions ,Policy Division ,FAO ,203159-101 ,"225,469.88",
DFID,DFID,08/04/2014,Data network- remote working ,East and Central Africa ,Recipient name withheld ,202594-101 ,"1,585.34",
DFID,DFID,08/04/2014,Aid Programme - Accountable Grant Payments ,East and Central Africa ,Save the Children Fund UK ,204400-101 ,"241,019.00",
DFID,DFID,08/04/2014,Training - Course Fees ,Human Resources ,Capita  Business Services ,100269-153 ,"1,974.05",
DFID,DFID,08/04/2014,Aid Programme - Voluntary contributions ,West and Southern Africa ,IBRD HSBC T ,202531-105 ,"1,000,000.00",
DFID,DFID,08/04/2014,Air fares ,West and Southern Africa ,Harvey World Travel Centurion ,101631-101 ,576.95,
DFID,DFID,08/04/2014,Aid Programme - Joint programme contribution ,East and Central Africa ,IBRD HSBC T ,203574-108 ,"250,000.00",
DFID,DFID,08/04/2014,Hotels - Accommodation only ,East and Central Africa ,Southern Sun Hotels(T) Ltd (USD) ,101634-101 ,"1,699.52",
DFID,DFID,08/04/2014,Hotels - Accommodation only ,East and Central Africa ,Southern Sun Hotels(T) Ltd (USD) ,101634-101 ,859.98,
DFID,DFID,08/04/2014,Training - Travel & Subsistence ,East and Central Africa ,Bon Voyage Travel Centre Ltd(USD) ,100230-101 ,525.84,
DFID,DFID,08/04/2014,Project delivery costs - supplier services ,Asia  Caribbean and Overseas Territories ,Crown Agents. ,202433-103 ,"22,470.00",
DFID,DFID,08/04/2014,Vehicle Petrol & Oil ,West and Southern Africa ,ENGEN DRC ,100068-101 ,506.33,
DFID,DFID,08/04/2014,Project delivery costs - supplier services ,West and Southern Africa ,HEALTH PARTNERS INTERNATIONAL ,104227-105 ,"513,671.89",
DFID,DFID,08/04/2014,Project delivery costs - supplier services ,Western Asia and Stabilisation Division ,Aamir Riaz ,202697-109 ,"1,545.53",
DFID,DFID,08/04/2014,Air fares ,West and Southern Africa ,SATGURU TRAVEL & TOURS SERVICE ,101610-101 ,657.02,
DFID,DFID,08/04/2014,Bank Charges/Services ,Finance and Corporate Performance Division ,Crown Agents. ,100008-101 ,"3,162.00",
DFID,DFID,08/04/2014,Contract & Agency Staff ,West and Southern Africa ,Supplier Name withheld ,100254-101 ,552.27,
DFID,DFID,08/04/2014,Vehicle Repairs & Maintenance ,West and Southern Africa ,Alliance Motors Zambia  ,100254-101 ,597.53,
DFID,DFID,08/04/2014,Vehicle Repairs & Maintenance ,West and Southern Africa ,Alliance Motors Zambia  ,101637-101 ,"1,269.75",
DFID,DFID,08/04/2014,Hotels - Accommodation only ,West and Southern Africa ,Southern Sun Ridgeway ,101637-101 ,582.42,
DFID,DFID,08/04/2014,Repairs  Maint  Alter - Property & Constrct. Services ,West and Southern Africa ,Robertson & CO ,101637-101 ,556.60,
DFID,DFID,08/04/2014,Secure Staff Accommodation ,East and Central Africa ,Supplier Name withheld ,101628-101 ,"9,041.59",
DFID,DFID,08/04/2014,Secure Staff Accommodation ,East and Central Africa ,Supplier Name withheld ,101628-101 ,"9,041.59",
DFID,DFID,08/04/2014,Secure Staff Accommodation ,East and Central Africa ,Supplier Name withheld ,101628-101 ,"7,233.27",
DFID,DFID,08/04/2014,Secure Staff Accommodation ,East and Central Africa ,Supplier Name withheld ,101628-101 ,"7,956.60",
DFID,DFID,08/04/2014,Office Equipment - Maintenance ,West and Southern Africa ,GLOBETECH ZAMBIA ,100254-101 ,506.46,
DFID,DFID,08/04/2014,Vehicle Repairs & Maintenance ,West and Southern Africa ,Tyre King Enterprises ,101637-101 ,802.33,
DFID,DFID,08/04/2014,Furniture & Fittings ,West and Southern Africa ,Aldwyn & Hampton Limited ,101637-101 ,696.76,
DFID,DFID,08/04/2014,Office Equipment - Maintenance ,West and Southern Africa ,Swissco Properties Ltd ,101637-101 ,"1,962.70",
DFID,DFID,08/04/2014,Hostile Environment Training ,Western Asia and Stabilisation Division ,Pilgrims Group ,203940-102 ,"2,406.42",
DFID,DFID,08/04/2014,Hostile Environment Training ,Western Asia and Stabilisation Division ,Pilgrims Group ,204305-103 ,540.00,
DFID,DFID,08/04/2014,Air fares ,Top Management Group ,Corporate Travel Provider ,100232-108 ,"3,030.65",
DFID,DFID,08/04/2014,Air fares ,Top Management Group ,Corporate Travel Provider ,100232-108 ,"3,030.65",
DFID,DFID,08/04/2014,Air fares ,Middle East & North Africa Division (MENAD) ,Corporate Travel Provider ,204084-101 ,540.85,
DFID,DFID,08/04/2014,Project delivery costs - supplier services ,Asia  Caribbean and Overseas Territories ,OPTIONS CONSULTANCY SERVICES LIMITED ,113963-101 ,"75,224.45",
DFID,DFID,08/04/2014,Air fares ,Policy Division ,Corporate Travel Provider ,100275-101 ,584.25,
DFID,DFID,08/04/2014,Air fares ,Policy Division ,Corporate Travel Provider ,100277-101 ,750.95,
DFID,DFID,08/04/2014,Air fares ,International Relations Division ,Corporate Travel Provider ,100262-101 ,881.95,
DFID,DFID,08/04/2014,Air fares ,Human Resources ,Corporate Travel Provider ,100268-101 ,"1,199.24",
DFID,DFID,08/04/2014,Hotels - Accommodation only ,Asia  Caribbean and Overseas Territories ,Corporate Travel Provider ,101605-101 ,585.60,
DFID,DFID,08/04/2014,Air fares ,Asia  Caribbean and Overseas Territories ,Corporate Travel Provider ,101605-101 ,792.98,
DFID,DFID,08/04/2014,Secure Staff Accommodation ,West and Southern Africa ,Supplier Name withheld ,101610-101 ,"1,548.73",
DFID,DFID,08/04/2014,Secure Staff Accommodation ,West and Southern Africa ,Supplier Name withheld ,101610-101 ,"10,715.11",
DFID,DFID,08/04/2014,Air fares ,West and Southern Africa ,Corporate Travel Provider ,101610-101 ,549.95,
DFID,DFID,08/04/2014,Hotels - Accommodation only ,East and Central Africa ,Corporate Travel Provider ,101612-101 ,731.85,
DFID,DFID,08/04/2014,Air fares ,East and Central Africa ,Corporate Travel Provider ,101612-101 ,735.70,
DFID,DFID,08/04/2014,Air fares ,East and Central Africa ,Corporate Travel Provider ,101612-101 ,735.70,
DFID,DFID,08/04/2014,Air fares ,West and Southern Africa ,Corporate Travel Provider ,101613-101 ,702.75,
DFID,DFID,08/04/2014,Hotels - Accommodation only ,Asia  Caribbean and Overseas Territories ,Corporate Travel Provider ,101615-101 ,877.16,
DFID,DFID,08/04/2014,Air fares ,West and Southern Africa ,Corporate Travel Provider ,101618-101 ,"1,162.53",
DFID,DFID,08/04/2014,Air fares ,West and Southern Africa ,Corporate Travel Provider ,101618-101 ,"1,454.53",
DFID,DFID,08/04/2014,Air fares ,Middle East & North Africa Division (MENAD) ,Corporate Travel Provider ,101619-101 ,525.95,
DFID,DFID,08/04/2014,Air fares ,Asia  Caribbean and Overseas Territories ,Corporate Travel Provider ,101621-101 ,540.93,
DFID,DFID,08/04/2014,Office Supplies ,Asia  Caribbean and Overseas Territories ,DIPLOMATIC MISSION SUPPLIES ,101621-101 ,"60,965.75",Emergency food ration packs
DFID,DFID,08/04/2014,Air fares ,West and Southern Africa ,Supplier Name withheld ,101622-101 ,677.35,
DFID,DFID,08/04/2014,Air fares ,Western Asia and Stabilisation Division ,Corporate Travel Provider ,101624-101 ,892.17,
DFID,DFID,08/04/2014,Air fares ,Western Asia and Stabilisation Division ,Corporate Travel Provider ,101624-101 ,"1,048.10",
DFID,DFID,08/04/2014,Air fares ,Western Asia and Stabilisation Division ,Corporate Travel Provider ,101624-101 ,696.10,
DFID,DFID,08/04/2014,Air fares ,Western Asia and Stabilisation Division ,Corporate Travel Provider ,101624-101 ,519.39,
DFID,DFID,08/04/2014,Air fares ,East and Central Africa ,Corporate Travel Provider ,101625-101 ,529.54,
DFID,DFID,08/04/2014,Air fares ,West and Southern Africa ,Corporate Travel Provider ,101629-101 ,720.15,
DFID,DFID,08/04/2014,Air fares ,Middle East & North Africa Division (MENAD) ,Corporate Travel Provider ,100303-101 ,789.55,
DFID,DFID,08/04/2014,Air fares ,Middle East & North Africa Division (MENAD) ,Corporate Travel Provider ,100303-101 ,718.55,
DFID,DFID,08/04/2014,Clothing - Uniforms ,East and Central Africa ,Abdushekur Mohammed General Importer ,202913-104 ,890.61,
DFID,DFID,08/04/2014,Air fares ,Asia  Caribbean and Overseas Territories ,Corporate Travel Provider ,201739-101 ,702.19,
DFID,DFID,08/04/2014,Air fares ,Asia  Caribbean and Overseas Territories ,Corporate Travel Provider ,201739-101 ,670.79,
DFID,DFID,08/04/2014,Aid Programme - Joint programme contribution ,East and Central Africa ,USAID/Cambodia ,203343-102 ,"1,500,000.00",
DFID,DFID,08/04/2014,Air fares ,Western Asia and Stabilisation Division ,Corporate Travel Provider ,100011-110 ,"2,480.30",
DFID,DFID,08/04/2014,Air fares ,Research and Evidence Division ,Corporate Travel Provider ,203874-102 ,599.82,
DFID,DFID,08/04/2014,Air fares ,Research and Evidence Division ,Corporate Travel Provider ,203874-102 ,599.82,
DFID,DFID,08/04/2014,Air fares ,Research and Evidence Division ,Corporate Travel Provider ,203874-102 ,912.83,
DFID,DFID,08/04/2014,Air fares ,Research and Evidence Division ,Corporate Travel Provider ,203874-102 ,671.66,
DFID,DFID,08/04/2014,Air fares ,Research and Evidence Division ,Corporate Travel Provider ,203874-102 ,873.45,
DFID,DFID,08/04/2014,Air fares ,Research and Evidence Division ,Corporate Travel Provider ,203874-102 ,873.45,
DFID,DFID,08/04/2014,Air fares ,Research and Evidence Division ,Corporate Travel Provider ,203874-102 ,671.66,
DFID,DFID,08/04/2014,Air fares ,Research and Evidence Division ,Corporate Travel Provider ,202392-107 ,516.89,
DFID,DFID,08/04/2014,Air fares ,Research and Evidence Division ,Corporate Travel Provider ,202392-107 ,"1,247.65",
DFID,DFID,08/04/2014,Air fares ,West and Southern Africa ,Supplier Name withheld ,101622-106 ,793.18,
DFID,DFID,08/04/2014,Project delivery costs - supplier services ,Western Asia and Stabilisation Division ,Crown Agents. ,203939-107 ,"3,637.00",
DFID,DFID,08/04/2014,Air fares ,Middle East & North Africa Division (MENAD) ,Corporate Travel Provider ,201701-101 ,"1,135.85",
DFID,DFID,08/04/2014,Air fares ,Middle East & North Africa Division (MENAD) ,Corporate Travel Provider ,201701-101 ,951.55,
DFID,DFID,08/04/2014,Air fares ,East and Central Africa ,Corporate Travel Provider ,203598-105 ,"1,210.22",
DFID,DFID,08/04/2014,Air fares ,West and Southern Africa ,Corporate Travel Provider ,101629-101 ,546.90,
DFID,DFID,08/04/2014,Air fares ,West and Southern Africa ,Corporate Travel Provider ,101629-101 ,720.15,
DFID,DFID,08/04/2014,Air fares ,East and Central Africa ,Corporate Travel Provider ,101630-101 ,956.45,
DFID,DFID,08/04/2014,Air fares ,East and Central Africa ,Corporate Travel Provider ,101630-101 ,956.45,
DFID,DFID,08/04/2014,Air fares ,West and Southern Africa ,Corporate Travel Provider ,101631-101 ,646.54,
DFID,DFID,08/04/2014,Air fares ,West and Southern Africa ,Corporate Travel Provider ,101631-101 ,"1,436.04",
DFID,DFID,08/04/2014,Air fares ,West and Southern Africa ,Corporate Travel Provider ,101631-101 ,"1,103.21",
DFID,DFID,08/04/2014,Air fares ,East and Central Africa ,Corporate Travel Provider ,101633-101 ,764.21,
DFID,DFID,08/04/2014,Air fares ,East and Central Africa ,Corporate Travel Provider ,101633-101 ,"1,083.65",
DFID,DFID,08/04/2014,Air fares ,East and Central Africa ,Corporate Travel Provider ,101633-101 ,764.31,
DFID,DFID,08/04/2014,Air fares ,East and Central Africa ,Corporate Travel Provider ,101634-101 ,"1,023.65",
DFID,DFID,08/04/2014,Air fares ,Asia  Caribbean and Overseas Territories ,Corporate Travel Provider ,101636-101 ,"1,001.39",
DFID,DFID,08/04/2014,Air fares ,West and Southern Africa ,Corporate Travel Provider ,101638-101 ,"1,052.96",
DFID,DFID,08/04/2014,Air fares ,West and Southern Africa ,Corporate Travel Provider ,101638-101 ,"1,052.96",
DFID,DFID,08/04/2014,Air fares ,Middle East & North Africa Division (MENAD) ,Corporate Travel Provider ,201705-101 ,521.45,
DFID,DFID,08/04/2014,Hotels - Accommodation only ,Asia  Caribbean and Overseas Territories ,Corporate Travel Provider ,101621-108 ,549.77,
DFID,DFID,08/04/2014,Hotels - Accommodation only ,Western Asia and Stabilisation Division ,Corporate Travel Provider ,201699-101 ,"1,269.14",
DFID,DFID,08/04/2014,Air fares ,Research and Evidence Division ,Corporate Travel Provider ,100039-110 ,792.98,
DFID,DFID,08/04/2014,Project delivery costs - supplier services ,Asia  Caribbean and Overseas Territories ,OPTIONS CONSULTANCY SERVICES LIMITED ,202871-101 ,"2,075.86",
DFID,DFID,08/04/2014,Air fares ,East and Central Africa ,Corporate Travel Provider ,101625-103 ,874.74,
DFID,DFID,08/04/2014,Air fares ,East and Central Africa ,Corporate Travel Provider ,101625-103 ,688.69,
DFID,DFID,08/04/2014,Air fares ,East and Central Africa ,Corporate Travel Provider ,101625-103 ,738.84,
DFID,DFID,08/04/2014,Air fares ,Western Asia and Stabilisation Division ,Corporate Travel Provider ,101601-110 ,"1,771.79",
DFID,DFID,08/04/2014,Air fares ,Western Asia and Stabilisation Division ,Corporate Travel Provider ,101601-110 ,"1,536.89",
DFID,DFID,08/04/2014,Air fares ,Western Asia and Stabilisation Division ,Corporate Travel Provider ,101601-110 ,"1,365.34",
DFID,DFID,08/04/2014,Air fares ,Western Asia and Stabilisation Division ,Corporate Travel Provider ,101601-110 ,553.95,
DFID,DFID,08/04/2014,Air fares ,Western Asia and Stabilisation Division ,Corporate Travel Provider ,101601-110 ,"1,672.20",
DFID,DFID,08/04/2014,Air fares ,Western Asia and Stabilisation Division ,Corporate Travel Provider ,101601-110 ,553.95,
DFID,DFID,08/04/2014,Air fares ,Western Asia and Stabilisation Division ,Corporate Travel Provider ,101601-110 ,"1,310.75",
DFID,DFID,08/04/2014,Air fares ,Western Asia and Stabilisation Division ,Corporate Travel Provider ,101601-110 ,933.90,
DFID,DFID,08/04/2014,Air fares ,Policy Division ,Corporate Travel Provider ,202419-102 ,633.03,
DFID,DFID,08/04/2014,Air fares ,Policy Division ,Corporate Travel Provider ,202419-102 ,849.05,
DFID,DFID,08/04/2014,Air fares ,Policy Division ,Corporate Travel Provider ,202419-102 ,956.35,
DFID,DFID,08/04/2014,Air fares ,Policy Division ,Corporate Travel Provider ,202419-102 ,749.65,
DFID,DFID,08/04/2014,Air fares ,Policy Division ,Corporate Travel Provider ,202419-102 ,607.75,
DFID,DFID,08/04/2014,Air fares ,Policy Division ,Corporate Travel Provider ,202419-102 ,633.03,
DFID,DFID,08/04/2014,Air fares ,Policy Division ,Corporate Travel Provider ,202419-103 ,"1,281.75",
DFID,DFID,08/04/2014,Air fares ,Policy Division ,Corporate Travel Provider ,202419-104 ,"1,089.15",
DFID,DFID,08/04/2014,Air fares ,Policy Division ,Corporate Travel Provider ,202419-104 ,842.22,
DFID,DFID,08/04/2014,Air fares ,Policy Division ,Corporate Travel Provider ,202419-105 ,709.94,
DFID,DFID,08/04/2014,Air fares ,Policy Division ,Corporate Travel Provider ,202419-105 ,852.72,
DFID,DFID,08/04/2014,Air fares ,Policy Division ,Corporate Travel Provider ,100274-103 ,733.53,
DFID,DFID,08/04/2014,Air fares ,Asia  Caribbean and Overseas Territories ,Corporate Travel Provider ,202123-106 ,594.50,
DFID,DFID,08/04/2014,Air fares ,Asia  Caribbean and Overseas Territories ,Corporate Travel Provider ,202972-107 ,762.35,
DFID,DFID,08/04/2014,Air fares ,Policy Division ,Corporate Travel Provider ,100277-102 ,854.95,
DFID,DFID,08/04/2014,Air fares ,Conflict Humanitarian and Security Division ,Corporate Travel Provider ,100049-101 ,869.15,
DFID,DFID,08/04/2014,Air fares ,Conflict Humanitarian and Security Division ,Corporate Travel Provider ,100049-101 ,874.95,
DFID,DFID,08/04/2014,Printer Consumables ,West and Southern Africa ,MFI OFFICE SOLUTIONS S.P.R.L. ,100068-101 ,831.83,
DFID,DFID,08/04/2014,Vehicle Petrol & Oil ,West and Southern Africa ,British Embassy Kinshasa (DRC) ,100068-101 ,"1,429.44",
DFID,DFID,08/04/2014,Air fares ,West and Southern Africa ,Corporate Travel Provider ,100096-101 ,894.23,
DFID,DFID,08/04/2014,Air fares ,International Finance Division ,Corporate Travel Provider ,100111-101 ,604.77,
DFID,DFID,08/04/2014,Air fares ,International Finance Division ,Corporate Travel Provider ,100111-101 ,574.65,
DFID,DFID,08/04/2014,Air fares ,International Finance Division ,Corporate Travel Provider ,100111-101 ,868.95,
DFID,DFID,08/04/2014,Air fares ,International Finance Division ,Corporate Travel Provider ,100120-101 ,"5,769.95",
DFID,DFID,08/04/2014,Air fares ,International Finance Division ,Corporate Travel Provider ,100120-101 ,"2,310.65",
DFID,DFID,08/04/2014,Air fares ,International Finance Division ,Corporate Travel Provider ,100120-101 ,"4,225.18",
DFID,DFID,08/04/2014,Air fares ,International Finance Division ,Corporate Travel Provider ,100120-101 ,570.20,
DFID,DFID,08/04/2014,Hotels - Accommodation only ,Internal Audit ,Recipient name withheld ,100121-101 ,553.97,
DFID,DFID,08/04/2014,Air fares ,Policy Division ,Corporate Travel Provider ,100191-101 ,"1,680.05",
DFID,DFID,08/04/2014,Air fares ,Policy Division ,Corporate Travel Provider ,100191-101 ,"1,385.95",
DFID,DFID,08/04/2014,Air fares ,Policy Division ,Corporate Travel Provider ,100191-101 ,916.13,
DFID,DFID,08/04/2014,Hotels - Accommodation only ,Policy Division ,Recipient name withheld ,100191-101 ,900.25,
DFID,DFID,08/04/2014,Air fares ,Communications Division ,Corporate Travel Provider ,100197-101 ,"2,719.45",
DFID,DFID,08/04/2014,Air fares ,Communications Division ,Corporate Travel Provider ,100197-101 ,"5,769.95",
DFID,DFID,08/04/2014,Air fares ,Communications Division ,Corporate Travel Provider ,100197-101 ,"1,357.24",
DFID,DFID,08/04/2014,Hostile Environment Training ,International Relations Division ,Pilgrims Group ,100238-101 ,968.28,
DFID,DFID,08/04/2014,Air fares ,International Relations Division ,Corporate Travel Provider ,100240-101 ,922.10,
DFID,DFID,08/04/2014,Air fares ,Business Solutions Division Level ,Corporate Travel Provider ,200001-101 ,683.53,
DFID,DFID,08/04/2014,Hotels - Accommodation only ,Business Solutions Division Level ,Corporate Travel Provider ,200001-101 ,967.24,
DFID,DFID,08/04/2014,Air fares ,Business Solutions Division Level ,Corporate Travel Provider ,200001-101 ,683.53,
DFID,DFID,08/04/2014,Hotels - Accommodation only ,Business Solutions Division Level ,Corporate Travel Provider ,200001-101 ,967.24,
DFID,DFID,08/04/2014,Air fares ,Business Solutions Division Level ,Corporate Travel Provider ,200001-101 ,683.53,
DFID,DFID,08/04/2014,Air fares ,Finance and Corporate Performance Division ,Corporate Travel Provider ,200173-101 ,641.35,
DFID,DFID,08/04/2014,Air fares ,Finance and Corporate Performance Division ,Corporate Travel Provider ,200173-101 ,756.94,
DFID,DFID,08/04/2014,Hotels - Accommodation only ,Finance and Corporate Performance Division ,Corporate Travel Provider ,200173-101 ,985.66,
DFID,DFID,08/04/2014,Hotels - Accommodation only ,Finance and Corporate Performance Division ,Corporate Travel Provider ,200173-101 ,"1,948.92",
DFID,DFID,08/04/2014,Air fares ,Top Management Group ,Corporate Travel Provider ,100232-102 ,605.50,
DFID,DFID,08/04/2014,Air fares ,Top Management Group ,Corporate Travel Provider ,100232-102 ,"5,157.15",
DFID,DFID,08/04/2014,Air fares ,Top Management Group ,Corporate Travel Provider ,100232-102 ,605.50,
DFID,DFID,08/04/2014,Air fares ,Top Management Group ,Corporate Travel Provider ,100232-102 ,"5,157.15",
DFID,DFID,08/04/2014,Air fares ,Top Management Group ,Corporate Travel Provider ,100232-102 ,"1,035.45",
DFID,DFID,08/04/2014,Air fares ,Top Management Group ,Corporate Travel Provider ,100232-103 ,"2,719.45",
DFID,DFID,08/04/2014,Air fares ,Top Management Group ,Corporate Travel Provider ,100232-103 ,"4,009.65",
DFID,DFID,08/04/2014,Air fares ,Western Asia and Stabilisation Division ,Corporate Travel Provider ,203941-102 ,890.15,
DFID,DFID,08/04/2014,Project delivery costs - supplier services ,Western Asia and Stabilisation Division ,Crown Agents. ,203942-102 ,"80,339.98",
DFID,DFID,08/04/2014,Aid Programme - Core contributions ,Middle East & North Africa Division (MENAD) ,CPS ,201021-105 ,"30,065.82",
DFID,DFID,08/04/2014,Secure Staff Accommodation ,Policy Division ,Supplier Name withheld ,201086-105 ,"6,329.11",
DFID,DFID,08/04/2014,Air fares ,Western Asia and Stabilisation Division ,Corporate Travel Provider ,203938-101 ,956.25,
DFID,DFID,08/04/2014,Project delivery costs - supplier services ,Western Asia and Stabilisation Division ,Crown Agents. ,203938-101 ,749.90,
DFID,DFID,08/04/2014,Air fares ,Western Asia and Stabilisation Division ,Corporate Travel Provider ,203944-106 ,"1,942.75",
DFID,DFID,08/04/2014,Air fares ,Middle East & North Africa Division (MENAD) ,Corporate Travel Provider ,204055-101 ,890.15,
DFID,DFID,08/04/2014,Project delivery costs - supplier services ,East and Central Africa ,Crown Agents. ,203775-107 ,"7,576.57",
DFID,DFID,08/04/2014,Air fares ,East and Central Africa ,Corporate Travel Provider ,202594-101 ,747.65,
DFID,DFID,08/04/2014,Aid Programme - Other Financial Aid to Government ,Policy Division ,Forestry Commission Ghana ,201724-131 ,"1,000,000.00",
DFID,DFID,08/04/2014,Air fares ,East and Central Africa ,Corporate Travel Provider ,202974-107 ,956.45,
DFID,DFID,08/04/2014,Air fares ,Group Operations ,Corporate Travel Provider ,204284-102 ,932.30,
DFID,DFID,08/04/2014,Air fares ,Group Operations ,Corporate Travel Provider ,204284-102 ,516.28,
DFID,DFID,08/04/2014,Air fares ,West and Southern Africa ,Corporate Travel Provider ,203823-104 ,623.00,
DFID,DFID,08/04/2014,Computer software maintenance ,Business Solutions Division Level ,COMPUTACENTER (UK) LTD ,200002-113 ,"5,970.00",
DFID,DFID,08/04/2014,Hardware - networking equipment ,Business Solutions Division Level ,COMPUTACENTER (UK) LTD ,200003-160 ,"19,425.82",
DFID,DFID,08/04/2014,Project delivery costs - supplier services ,Western Asia and Stabilisation Division ,DAI Europe ,114433-102 ,"728,557.22",
DFID,DFID,08/04/2014,Project delivery costs - supplier services ,Policy Division ,IOD PARC ,203493-101 ,"13,935.00",
DFID,DFID,08/04/2014,Project delivery costs - supplier services ,Policy Division ,ITAD LTD ,201724-134 ,"33,800.00",
DFID,DFID,08/04/2014,Project delivery costs - supplier services ,Research and Evidence Division ,IOD PARC ,203197-101 ,"24,390.34",
DFID,DFID,08/04/2014,Hardware - desktop PCs ,Business Solutions Division Level ,COMPUTACENTER (UK) LTD ,200005-119 ,"89,760.00",
DFID,DFID,08/04/2014,Aid Programme - Accountable Grant Payments ,West and Southern Africa ,Institute for Global Dialogue ,203622-104 ,"13,260.48",
DFID,DFID,08/04/2014,Aid Programme - Core contributions ,Policy Division ,INTOSAI Development Initiative ,203176-101 ,"215,423.87",
DFID,DFID,08/04/2014,Project delivery costs - supplier services ,Western Asia and Stabilisation Division ,Apex Consulting International Inc. ,200694-102 ,"9,523.59",
DFID,DFID,08/04/2014,Project delivery costs - supplier services ,West and Southern Africa ,Social Development Direct Ltd ,202416-111 ,"15,760.13",
DFID,DFID,08/04/2014,AV Conferencing systems -hardware ,Business Solutions Division Level ,COMPUTACENTER (UK) LTD ,200003-155 ,"61,675.16",
DFID,DFID,08/04/2014,AV conferencing systms -service & usage ,Business Solutions Division Level ,COMPUTACENTER (UK) LTD ,200003-155 ,"12,720.83",
DFID,DFID,08/04/2014,Aid Programme - Accountable Grant Payments ,Research and Evidence Division ,PRACTICAL ACTION ,200490-103 ,"24,375.00",
DFID,DFID,08/04/2014,Project delivery costs - supplier services ,East and Central Africa ,IMC Worldwide Ltd. ,202347-104 ,"48,624.00",
DFID,DFID,08/04/2014,Project delivery costs - supplier services ,East and Central Africa ,IMC Worldwide Ltd. ,202347-105 ,"48,624.00",
DFID,DFID,08/04/2014,Project delivery costs - supplier services ,Research and Evidence Division ,SCHOOL OF ORIENTAL & AFRICAN STUDIES ,201871-102 ,"2,000.00",
DFID,DFID,08/04/2014,Training - Course Fees ,Asia  Caribbean and Overseas Territories ,THE SPRINGFIELD CENTRE ,101603-101 ,"3,300.00",
DFID,DFID,08/04/2014,Project delivery costs - supplier services ,Asia  Caribbean and Overseas Territories ,FAMILY HEALTH INTERNATIONAL ,113707-101 ,"140,000.00",
DFID,DFID,09/04/2014,Project delivery costs - supplier services ,International Finance Division ,Nathan Associates London Ltd ,114009-102 ,"303,842.33",
DFID,DFID,09/04/2014,Project delivery costs - supplier services ,International Finance Division ,Nathan Associates London Ltd ,114009-102 ,558.00,
DFID,DFID,09/04/2014,Aid Programme - Humanitarian Material Relief Assistance and Services ,Middle East & North Africa Division (MENAD) ,UNOPS - support for Access Cell unit ,202400-101 ,"265,753.00",
DFID,DFID,09/04/2014,Secure Staff Accommodation ,East and Central Africa ,Supplier Name withheld ,101625-102 ,"28,933.09",Secure Staff Accommodation (12 months) DFID Tanzania
DFID,DFID,09/04/2014,Aid Programme - Accountable Grant Payments ,Research and Evidence Division ,ALNAP ,203131-101 ,"30,240.00",
DFID,DFID,09/04/2014,Training - Course Fees ,International Relations Division ,Language Services Direct Ltd ,202319-101 ,708.00,
DFID,DFID,09/04/2014,Project delivery costs - supplier services ,Asia  Caribbean and Overseas Territories ,Harewelle International Limited. ,107402-101 ,"146,054.06",
DFID,DFID,09/04/2014,Aid Programme - Challenge Fund payments ,Asia  Caribbean and Overseas Territories ,Harewelle International Limited. ,107402-102 ,"1,620,924.94",
DFID,DFID,09/04/2014,Project delivery costs - supplier services ,Asia  Caribbean and Overseas Territories ,Harewelle International Limited. ,107402-105 ,"4,676.00",
DFID,DFID,09/04/2014,Aid Programme - Challenge Fund payments ,Asia  Caribbean and Overseas Territories ,Harewelle International Limited. ,107402-106 ,"189,651.00",
DFID,DFID,09/04/2014,Project delivery costs - supplier services ,West and Southern Africa ,HLSP LIMITED ,200325-101 ,"527,635.26",
DFID,DFID,09/04/2014,Interview expenses ,Research and Evidence Division ,Recipient name withheld ,202348-104 ,938.90,
DFID,DFID,09/04/2014,Vehicle Petrol & Oil ,Western Asia and Stabilisation Division ,Pakistan State Oil Company Ltd ,101624-101 ,"2,624.56",
DFID,DFID,09/04/2014,Project delivery costs - supplier services ,Asia  Caribbean and Overseas Territories ,OPTIONS CONSULTANCY SERVICES LIMITED ,201375-103 ,"85,240.00",
DFID,DFID,09/04/2014,Hotels - Accommodation only ,Asia  Caribbean and Overseas Territories ,TI Bangladesh ,101603-101 ,601.65,
DFID,DFID,09/04/2014,Project delivery costs - supplier services ,Asia  Caribbean and Overseas Territories ,ERNST &  YOUNG PRIVATE LTD ,200599-101 ,"58,655.10",
DFID,DFID,09/04/2014,Project delivery costs - supplier services ,Asia  Caribbean and Overseas Territories ,ERNST &  YOUNG PRIVATE LTD ,200599-101 ,"49,893.50",
DFID,DFID,09/04/2014,Hardware - networking equipment ,Western Asia and Stabilisation Division ,Supplier Name withheld ,100061-101 ,"6,328.29",
DFID,DFID,09/04/2014,Aid Programme - Programme Contribution ,Asia  Caribbean and Overseas Territories ,CPS ,203478-104 ,"75,000.00",
DFID,DFID,09/04/2014,Aid Programme - Programme Contribution ,Asia  Caribbean and Overseas Territories ,CPS ,203478-104 ,"75,000.00",
DFID,DFID,09/04/2014,Project delivery costs - supplier services ,East and Central Africa ,Oloya Aliker Tebere ,200250-106 ,"1,280.20",
DFID,DFID,09/04/2014,Project delivery costs - supplier services ,Policy Division ,TROPICAL HEALTH AND EDUCATION TRUST ,202208-101 ,"529,577.00",
DFID,DFID,09/04/2014,Vehicle Repairs & Maintenance ,East and Central Africa ,Arrow Centre ( Uganda) Ltd. ,100234-101 ,"2,321.27",
DFID,DFID,09/04/2014,Facilities Management payments ,East and Central Africa ,THERMOCOOL UGANDA LIMITED ,100234-101 ,"3,800.74",
DFID,DFID,09/04/2014,Facilities Management payments ,East and Central Africa ,THERMOCOOL UGANDA LIMITED ,101635-101 ,"7,716.65",
DFID,DFID,09/04/2014,DFID Purchased Relief Supplies ,West and Southern Africa ,Crown Agents. ,104229-102 ,"18,165.87",
DFID,DFID,09/04/2014,Furniture & Fittings ,Western Asia and Stabilisation Division ,Supplier Name withheld ,100061-101 ,"2,109.70",
DFID,DFID,09/04/2014,Project delivery costs - supplier services ,Asia  Caribbean and Overseas Territories ,Nathan Associates London Ltd ,202180-102 ,"276,173.93",
DFID,DFID,09/04/2014,Training - Travel & Subsistence ,West and Southern Africa ,Jeffery Travels ,100068-101 ,822.78,
DFID,DFID,09/04/2014,Project delivery costs - supplier services ,Western Asia and Stabilisation Division ,Aghaz Consulting ,203029-104 ,"3,737.80",
DFID,DFID,09/04/2014,Project delivery costs - supplier services ,East and Central Africa ,ADAM SMITH INTERNATIONAL  LTD ,202693-102 ,"51,631.00",
DFID,DFID,09/04/2014,Secure Staff Accommodation ,East and Central Africa ,Supplier Name withheld ,101628-101 ,"7,956.60",
DFID,DFID,09/04/2014,Secure Staff Accommodation ,East and Central Africa ,Supplier Name withheld ,101628-101 ,"12,658.23",
DFID,DFID,09/04/2014,Secure Staff Accommodation ,East and Central Africa ,Supplier Name withheld ,101628-101 ,"21,699.82",
DFID,DFID,09/04/2014,Secure Staff Accommodation ,East and Central Africa ,Supplier Name withheld ,101628-101 ,"7,233.27",
DFID,DFID,09/04/2014,Secure Staff Accommodation ,East and Central Africa ,Supplier Name withheld ,101628-101 ,"7,233.27",
DFID,DFID,09/04/2014,Secure Staff Accommodation ,West and Southern Africa ,Supplier Name withheld ,101610-101 ,"8,138.67",
DFID,DFID,09/04/2014,Professional Services - Peer Review ,East and Central Africa ,PATRICK JAMES NOLEN ,200349-104 ,"1,000.00",
DFID,DFID,09/04/2014,Contract & Agency Staff ,Finance and Corporate Performance Division ,HUDSON GLOBAL RESOURCES LTD ,100008-101 ,"3,409.56",
DFID,DFID,09/04/2014,Hotels - Accommodation only ,Conflict Humanitarian and Security Division ,Recipient name withheld ,100049-101 ,771.07,
DFID,DFID,09/04/2014,Furniture & Fittings ,East and Central Africa ,Addis Fana General Merchendise and Hotel Trade S.C ,100082-101 ,"2,110.99",
DFID,DFID,09/04/2014,Postage Costs ,Group Operations ,NEOPOST LIMITED ,100106-101 ,"3,000.00",
DFID,DFID,09/04/2014,Training Providers/Facilitation Services ,Internal Audit ,INSTITUTE OF INTERNAL AUDITORS-UK ,100121-101 ,"2,360.00",
DFID,DFID,09/04/2014,Contract & Agency Staff ,Finance and Corporate Performance Division ,HUDSON GLOBAL RESOURCES LTD ,100201-101 ,"7,512.60",
DFID,DFID,09/04/2014,Contract & Agency Staff ,Finance and Corporate Performance Division ,HUDSON GLOBAL RESOURCES LTD ,100201-101 ,"7,040.40",
DFID,DFID,09/04/2014,Contract & Agency Staff ,Finance and Corporate Performance Division ,HUDSON GLOBAL RESOURCES LTD ,100201-101 ,"5,237.76",
DFID,DFID,09/04/2014,Vehicle Purchase Costs ,East and Central Africa ,Crown Agents. ,100219-101 ,"262,703.63",
DFID,DFID,09/04/2014,Contract & Agency Staff ,Human Resources ,HUDSON GLOBAL RESOURCES LTD ,100270-102 ,"3,307.15",
DFID,DFID,09/04/2014,Project delivery costs - supplier services ,International Relations Division ,ART OF LIVING ,202319-101 ,"2,281.00",
DFID,DFID,09/04/2014,Project delivery costs - supplier services ,Asia  Caribbean and Overseas Territories ,COFFEY INTERNATIONAL DEVELOPMENT LTD ,201645-106 ,"2,730.00",
DFID,DFID,09/04/2014,Project delivery costs - supplier services ,Asia  Caribbean and Overseas Territories ,COFFEY INTERNATIONAL DEVELOPMENT LTD ,107458-103 ,"3,832.00",
DFID,DFID,09/04/2014,Training Providers/Facilitation Services ,Group Operations ,Serco  Emergency Planning College ,201157-102 ,"7,524.00",
DFID,DFID,09/04/2014,Project delivery costs - supplier services ,East and Central Africa ,COFFEY INTERNATIONAL DEVELOPMENT LTD ,200120-111 ,"16,603.71",
DFID,DFID,09/04/2014,Project delivery costs - supplier services ,Western Asia and Stabilisation Division ,COFFEY INTERNATIONAL DEVELOPMENT LTD ,202368-102 ,"1,220,304.00",
DFID,DFID,09/04/2014,Research & Development costs ,Research and Evidence Division ,INASP ,204155-101 ,"219,230.75",
DFID,DFID,09/04/2014,Training - Travel & Subsistence ,East and Central Africa ,Safeway Travel and Tour ,101612-101 ,"2,743.94",
DFID,DFID,09/04/2014,Project delivery costs - supplier services ,West and Southern Africa ,IDEA international Institute LTD. ,203627-102 ,"1,617.57",
DFID,DFID,09/04/2014,Hotels - Accommodation only ,East and Central Africa ,Safeway Travel and Tour ,202913-101 ,"2,902.40",
DFID,DFID,09/04/2014,Air fares ,East and Central Africa ,Safeway Travel and Tour ,202913-101 ,"1,059.63",
DFID,DFID,09/04/2014,Contraceptives ,East and Central Africa ,CHARLES KENDALL & PARTNERS LIMITED (PROCUREMENT) ,202547-103 ,"24,260.77",
DFID,DFID,09/04/2014,Project delivery costs - supplier services ,East and Central Africa ,CHARLES KENDALL & PARTNERS LIMITED (PROCUREMENT) ,202547-103 ,849.13,
DFID,DFID,09/04/2014,Project delivery costs - supplier services ,West and Southern Africa ,IDEA international Institute LTD. ,203627-102 ,"33,759.29",
DFID,DFID,09/04/2014,Project delivery costs - supplier services ,Research and Evidence Division ,ODI ,203069-108 ,"18,779.51",
DFID,DFID,09/04/2014,Project delivery costs - supplier services ,Policy Division ,HTSPE LTD ,202948-118 ,"26,730.00",
DFID,DFID,09/04/2014,Project delivery costs - supplier services ,West and Southern Africa ,CHARLES KENDALL & PARTNERS LIMITED (PROCUREMENT) ,113961-106 ,653.62,
DFID,DFID,09/04/2014,Project delivery costs - supplier services ,Policy Division ,Sightsavers ,203146-103 ,"64,731.00",
DFID,DFID,10/04/2014,Project delivery costs - supplier services ,Business Solutions Division Level ,OPIN SYSTEMS LIMITED ,200002-151 ,"13,176.83",
DFID,DFID,10/04/2014,Contract & Agency Staff ,Business Solutions Division Level ,ALLEGIS GROUP LIMITED ,200003-169 ,"4,563.00",
DFID,DFID,10/04/2014,Computer software maintenance ,Business Solutions Division Level ,SOFTWARE BOX LTD (SBL) ,200002-206 ,"8,253.70",
DFID,DFID,10/04/2014,Contract & Agency Staff ,Business Solutions Division Level ,ALLEGIS GROUP LIMITED ,200001-101 ,"6,708.00",
DFID,DFID,10/04/2014,Contract & Agency Staff ,Business Solutions Division Level ,ALLEGIS GROUP LIMITED ,200001-101 ,936.00,
DFID,DFID,10/04/2014,Contract & Agency Staff ,Business Solutions Division Level ,ALLEGIS GROUP LIMITED ,200001-101 ,"2,250.00",
DFID,DFID,10/04/2014,Project delivery costs - supplier services ,Joint Trade Policy Division ,NATURAL RESOURCES INSTITUTE ,203535-104 ,"20,000.00",
DFID,DFID,10/04/2014,Facilities Management payments ,East and Central Africa ,JMC Umoja House ,100230-101 ,"1,928.87",
DFID,DFID,10/04/2014,Facilities Management payments ,East and Central Africa ,JMC Umoja House ,101634-101 ,"7,320.07",
DFID,DFID,10/04/2014,Project delivery costs - supplier services ,West and Southern Africa ,HLSP LIMITED ,200325-101 ,"107,952.94",
DFID,DFID,10/04/2014,Training - Course Fees ,Human Resources ,Capita  Business Services ,100269-158 ,"1,033.00",
DFID,DFID,10/04/2014,Aid Programme - Accountable Grant Payments ,Policy Division ,Chatham House Enterprises ,201724-111 ,"195,928.00",
DFID,DFID,10/04/2014,Research & Development costs ,Research and Evidence Division ,INTERNATIONAL DEVELOPMENT RESEARCH CENTRE ,203205-101 ,"608,834.00",
DFID,DFID,10/04/2014,Aid Programme - Joint programme contribution ,Research and Evidence Division ,INTERNATIONAL DEVELOPMENT RESEARCH CENTRE ,203205-101 ,"489,335.00",
DFID,DFID,10/04/2014,Aid Programme - Accountable Grant Payments ,West and Southern Africa ,AFRICAN MONITOR ,203622-103 ,"1,248.00",
DFID,DFID,10/04/2014,Computer hardware maintenance ,Asia  Caribbean and Overseas Territories ,FCO SERVICES ,100025-101 ,"7,281.62",
DFID,DFID,10/04/2014,Contraceptives ,East and Central Africa ,IPA-International Procurement Agency (BV) ,202420-103 ,"340,849.65",
DFID,DFID,10/04/2014,Contraceptives ,East and Central Africa ,IPA-International Procurement Agency (BV) ,202420-103 ,"10,055.06",
DFID,DFID,10/04/2014,Contraceptives ,East and Central Africa ,IPA-International Procurement Agency (BV) ,202420-103 ,"272,033.25",
DFID,DFID,10/04/2014,Other travel costs ,Asia  Caribbean and Overseas Territories ,Crown Agents. ,201689-101 ,"4,034.69",
DFID,DFID,10/04/2014,Project delivery costs - supplier services ,Asia  Caribbean and Overseas Territories ,Crown Agents. ,203275-102 ,"35,182.35",
DFID,DFID,10/04/2014,Project delivery costs - supplier services ,East and Central Africa ,Open Capital Advisors Ltd ,202844-109 ,"8,080.02",
DFID,DFID,10/04/2014,Hardware - networking equipment ,Asia  Caribbean and Overseas Territories ,Crown Agents. ,201652-106 ,"18,074.39",
DFID,DFID,10/04/2014,Project delivery costs - supplier services ,East and Central Africa ,Cambridge  Education Limited ,202989-103 ,"29,252.66",
DFID,DFID,10/04/2014,Project delivery costs - supplier services ,Business Solutions Division Level ,LRQA LTD ,200001-106 ,"33,121.44",Audit of Information Security Management System for Re-Certification FY 13-14 
DFID,DFID,10/04/2014,Project delivery costs - supplier services ,West and Southern Africa ,Optimoz Lda ,104038-101 ,757.55,
DFID,DFID,10/04/2014,Vehicle Petrol & Oil ,Asia  Caribbean and Overseas Territories ,Nepal Oil Corporation ,100150-103 ,910.71,
DFID,DFID,10/04/2014,Vehicle Petrol & Oil ,Asia  Caribbean and Overseas Territories ,Nepal Oil Corporation ,101621-103 ,"1,691.31",
DFID,DFID,10/04/2014,Secure Staff Accommodation ,Western Asia and Stabilisation Division ,Supplier Name withheld ,101601-110 ,"6,201.47",
DFID,DFID,10/04/2014,Secure Staff Accommodation ,Western Asia and Stabilisation Division ,Supplier Name withheld ,101601-110 ,"6,201.47",
DFID,DFID,10/04/2014,Secure Staff Accommodation ,Western Asia and Stabilisation Division ,Supplier Name withheld ,101601-110 ,"15,932.97",
DFID,DFID,10/04/2014,Secure Staff Accommodation ,Western Asia and Stabilisation Division ,Supplier Name withheld ,100011-110 ,826.86,
DFID,DFID,10/04/2014,Secure Staff Accommodation ,Western Asia and Stabilisation Division ,Supplier Name withheld ,100011-110 ,"2,124.40",
DFID,DFID,10/04/2014,Secure Staff Accommodation ,Western Asia and Stabilisation Division ,Supplier Name withheld ,100011-110 ,826.86,
DFID,DFID,10/04/2014,Electricity ,East and Central Africa ,Recipient name withheld ,100234-101 ,838.77,
DFID,DFID,10/04/2014,Mobile telephones & accessories ,West and Southern Africa ,ECONET ,101638-101 ,626.87,
DFID,DFID,10/04/2014,Project delivery costs - supplier services ,Policy Division ,Crown Agents. ,203146-102 ,990.00,
DFID,DFID,10/04/2014,DFID Purchased Relief Supplies ,West and Southern Africa ,Crown Agents. ,104229-102 ,"2,327.65",
DFID,DFID,10/04/2014,DFID Purchased Relief Supplies ,West and Southern Africa ,Crown Agents. ,114206-102 ,"61,494.53",
DFID,DFID,10/04/2014,Aid Programme - Accountable Grant Payments ,West and Southern Africa ,INTERNATIONAL RESCUE COMMITTEE UK ,105862-103 ,"21,714.41",
DFID,DFID,10/04/2014,Contract & Agency Staff ,Finance and Corporate Performance Division ,HUDSON GLOBAL RESOURCES LTD ,100201-101 ,"4,546.08",
DFID,DFID,10/04/2014,Project delivery costs - supplier services ,East and Central Africa ,Pauline Akinyi Gogo ,202619-106 ,"2,099.44",
DFID,DFID,10/04/2014,Aid Programme - Accountable Grant Payments ,Asia  Caribbean and Overseas Territories ,ACTION AID INTERNATIONAL ,203400-104 ,"2,577.00",
DFID,DFID,10/04/2014,Project delivery costs - supplier services ,Western Asia and Stabilisation Division ,Crown Agents. ,204308-105 ,"3,872.59",
DFID,DFID,10/04/2014,Project delivery costs - supplier services ,East and Central Africa ,Isobel Birch ,202619-106 ,"4,725.00",
DFID,DFID,10/04/2014,Aid Programme - Core contributions ,International Finance Division ,IBRD-IFFIm ,111073-101 ,"32,906,250.00",
DFID,DFID,10/04/2014,Hostile Environment Training ,Human Resources ,Pilgrims Group ,100268-101 ,752.11,
DFID,DFID,10/04/2014,Aid Programme - Core contributions ,International Finance Division ,IBRD-IFFIm ,201185-101 ,"3,721,603.30",
DFID,DFID,10/04/2014,Secure Staff Accommodation ,West and Southern Africa ,Supplier Name withheld ,101610-101 ,"8,159.33",
DFID,DFID,10/04/2014,Mobile telephones & accessories ,West and Southern Africa ,MCell ,101620-101 ,"1,035.38",
DFID,DFID,10/04/2014,Medical/Health Services ,West and Southern Africa ,MediPlus ,101620-101 ,"3,433.51",
DFID,DFID,10/04/2014,Training Providers/Facilitation Services ,West and Southern Africa ,Maria Dulce Tavares ,101620-101 ,"1,912.88",
DFID,DFID,10/04/2014,Medical/Health Services ,West and Southern Africa ,MediPlus ,101620-101 ,"4,836.77",
DFID,DFID,10/04/2014,Project delivery costs - supplier services ,Asia  Caribbean and Overseas Territories ,TURNER & TOWNSEND ,202433-108 ,"100,552.29",
DFID,DFID,10/04/2014,Hotels - Accommodation only ,East and Central Africa ,Country Lodge ,101625-102 ,548.18,
DFID,DFID,10/04/2014,Repairs  Maint  Alter - Removal & waste disposal services ,Group Operations ,BYWATERS ,203717-101 ,"2,707.34",
DFID,DFID,10/04/2014,Secure Staff Accommodation ,West and Southern Africa ,Supplier Name withheld ,113961-108 ,"9,415.35",
DFID,DFID,10/04/2014,Project delivery costs - supplier services ,East and Central Africa ,Crown Agents. ,203928-101 ,626.00,
DFID,DFID,10/04/2014,Project delivery costs - supplier services ,Western Asia and Stabilisation Division ,UBIQUS UK LTD ,203939-107 ,681.60,
DFID,DFID,10/04/2014,DFID Purchased Relief Supplies ,West and Southern Africa ,Crown Agents. ,114230-102 ,712.84,
DFID,DFID,10/04/2014,DFID Purchased Relief Supplies ,West and Southern Africa ,Crown Agents. ,114230-102 ,"19,527.31",
DFID,DFID,10/04/2014,Project delivery costs - supplier services ,West and Southern Africa ,Crown Agents. ,114230-102 ,732.00,
DFID,DFID,10/04/2014,Project delivery costs - supplier services ,Western Asia and Stabilisation Division ,UBIQUS UK LTD ,203938-108 ,681.60,
DFID,DFID,10/04/2014,Hostile Environment Training ,Internal Audit ,Pilgrims Group ,100121-101 ,752.11,
DFID,DFID,10/04/2014,Medical/Health Services ,West and Southern Africa ,MediPlus ,100148-101 ,"1,970.90",
DFID,DFID,10/04/2014,Contract & Agency Staff ,Finance and Corporate Performance Division ,HUDSON GLOBAL RESOURCES LTD ,100201-101 ,"6,347.77",
DFID,DFID,10/04/2014,Aid Programme - Voluntary contributions ,Policy Division ,FAO ,201724-146 ,"250,000.00",
DFID,DFID,10/04/2014,Aid Programme - Joint programme contribution ,Finance and Corporate Performance Division ,NEPAD (International Partnership for Africa Fisheries) ,204296-102 ,"67,107.00",
DFID,DFID,10/04/2014,Project delivery costs - supplier services ,East and Central Africa ,Susan Amlango Aletia ,204258-101 ,"1,795.52",
DFID,DFID,10/04/2014,Project delivery costs - supplier services ,East and Central Africa ,Carree Njeri Ndoka ,204258-101 ,"2,028.51",
DFID,DFID,10/04/2014,Project delivery costs - supplier services ,East and Central Africa ,AccessKenya Group Ltd ,204258-101 ,510.73,
DFID,DFID,10/04/2014,Hardware - desktop PCs ,Communications Division ,COMPUTACENTER (UK) LTD ,100154-101 ,"3,315.32",
DFID,DFID,10/04/2014,Aid Programme - Accountable Grant Payments ,Research and Evidence Division ,OVERSEAS DEVELOPMENT INSTITUTE ,203210-101 ,"586,620.97",
DFID,DFID,10/04/2014,Project delivery costs - supplier services ,Asia  Caribbean and Overseas Territories ,IOD PARC ,202744-101 ,"49,880.40",
DFID,DFID,10/04/2014,Project delivery costs - supplier services ,East and Central Africa ,COFFEY INTERNATIONAL DEVELOPMENT LTD ,202843-102 ,"46,324.90",
DFID,DFID,10/04/2014,other information and communication technologies ,Business Solutions Division Level ,ICM Business Continuity Services Limited ,200002-202 ,"136,135.20",Disaster Recovery Contract FY 14/15 
DFID,DFID,10/04/2014,Contract Catering Services ,West and Southern Africa ,MITIE Catering Services Ltd ,201763-101 ,"3,139.20",
DFID,DFID,10/04/2014,Project delivery costs - supplier services ,West and Southern Africa ,COFFEY INTERNATIONAL DEVELOPMENT LTD ,202633-101 ,"14,787.20",
DFID,DFID,10/04/2014,Project delivery costs - supplier services ,West and Southern Africa ,Ojobo Atuluku ,202370-103 ,"3,814.94",
DFID,DFID,10/04/2014,Training Providers/Facilitation Services ,Joint Trade Policy Division ,EML Learning Ltd. ,100124-101 ,"1,380.00",
DFID,DFID,10/04/2014,Project delivery costs - supplier services ,Policy Division ,HTSPE LTD ,203134-101 ,"17,435.88",
DFID,DFID,10/04/2014,DFID Purchased Relief Supplies ,West and Southern Africa ,CHARLES KENDALL & PARTNERS LIMITED (PROCUREMENT) ,202214-106 ,"177,404.26",
DFID,DFID,10/04/2014,Project delivery costs - supplier services ,Research and Evidence Division ,OXFORD POLICY MANAGEMENT ,203193-101 ,"50,792.40",
DFID,DFID,10/04/2014,Print Services ,Communications Division ,COPYPRINT UK LTD ,100177-101 ,760.80,
DFID,DFID,11/04/2014,Project delivery costs - supplier services ,West and Southern Africa ,Crown Agents. ,104025-101 ,"25,954.00",
DFID,DFID,11/04/2014,Contract & Agency Staff ,Business Solutions Division Level ,OPIN SYSTEMS LIMITED ,200001-101 ,"7,056.00",
DFID,DFID,11/04/2014,Project delivery costs - supplier services ,Business Solutions Division Level ,OPIN SYSTEMS LIMITED ,200001-101 ,"12,000.00",
DFID,DFID,11/04/2014,Research & Development costs ,Research and Evidence Division ,Humanitarian Outcomes Limited ,203704-105 ,"76,942.00",
DFID,DFID,11/04/2014,Project delivery costs - supplier services ,West and Southern Africa ,Crown Agents. ,104025-101 ,"70,207.36",
DFID,DFID,11/04/2014,Facilities Management payments ,East and Central Africa ,Scott Combustion Ltd ,100227-101 ,"28,587.00",Facilities Management Services - AC System Refurbishment in DFID Office
DFID,DFID,11/04/2014,Facilities Management payments ,Group Operations ,MITIE Technical Facilities Management Ltd ,100106-101 ,"12,794.04",
DFID,DFID,11/04/2014,Cleaning Costs ,Group Operations ,MITIE Technical Facilities Management Ltd ,100106-101 ,"12,518.18",
DFID,DFID,11/04/2014,Electricity ,Group Operations ,EDF ENERGY ,203717-101 ,"8,304.86",
DFID,DFID,11/04/2014,Cleaning Costs ,Group Operations ,MITIE Technical Facilities Management Ltd ,203717-101 ,"15,698.00",
DFID,DFID,11/04/2014,Repairs  Maint  Alter - Property & Constrct. Services ,Group Operations ,MITIE Technical Facilities Management Ltd ,203717-101 ,"8,589.86",
DFID,DFID,11/04/2014,Project delivery costs - supplier services ,Group Operations ,MITIE Technical Facilities Management Ltd ,203717-101 ,660.23,
DFID,DFID,11/04/2014,Facilities Management payments ,Group Operations ,MITIE Technical Facilities Management Ltd ,203717-101 ,"20,878.62",
DFID,DFID,11/04/2014,Electricity ,Group Operations ,EDF ENERGY ,203717-101 ,"12,362.60",
DFID,DFID,11/04/2014,Aid Programme - Accountable Grant Payments ,Asia  Caribbean and Overseas Territories ,Royal Institute for Int. Affairs ,202775-106 ,"25,300.00",
DFID,DFID,11/04/2014,Air fares ,Human Resources ,LAURA HOTCHKISS ,100269-128 ,"1,369.95",
DFID,DFID,11/04/2014,Training - Course Fees ,Human Resources ,Capita  Business Services ,100269-153 ,"4,672.15",
DFID,DFID,11/04/2014,Legal costs ,Finance and Corporate Performance Division ,MICHELMORES SOLICITORS ,100008-101 ,"5,336.17",
DFID,DFID,11/04/2014,Contract & Agency Staff ,Finance and Corporate Performance Division ,HUDSON GLOBAL RESOURCES LTD ,100201-101 ,"5,538.77",
DFID,DFID,11/04/2014,Air fares ,West and Southern Africa ,RWANDAIR Express ,101631-101 ,566.41,
DFID,DFID,11/04/2014,Project delivery costs - supplier services ,East and Central Africa ,Crown Agents. ,200221-105 ,"355,762.40",
DFID,DFID,11/04/2014,Project delivery costs - supplier services ,Asia  Caribbean and Overseas Territories ,Deloitte Touche Tohmatsu India Private Limited ,203224-101 ,"40,820.39",
DFID,DFID,11/04/2014,Project delivery costs - supplier services ,Asia  Caribbean and Overseas Territories ,Deloitte Touche Tohmatsu India Private Limited ,203224-101 ,"21,194.47",
DFID,DFID,11/04/2014,Facilities Management payments ,Asia  Caribbean and Overseas Territories ,KONE ELEVATOR INDIA PRIVATE LIMITED ,201689-105 ,"2,557.99",
DFID,DFID,11/04/2014,Vehicle Petrol & Oil ,Asia  Caribbean and Overseas Territories ,QUTAB SERVICE STATION ,201689-105 ,713.05,
DFID,DFID,11/04/2014,Electricity ,Asia  Caribbean and Overseas Territories ,BSES RAJDHANI POWER LIMITED ,201689-105 ,"4,209.14",
DFID,DFID,11/04/2014,Facilities Management payments ,Asia  Caribbean and Overseas Territories ,CB RICHARD ELLIS SOUTH ASIA PVT LTD ,201689-105 ,"1,679.54",
DFID,DFID,11/04/2014,Hostile Environment Training ,Asia  Caribbean and Overseas Territories ,Pilgrims Group ,201689-102 ,"1,172.53",
DFID,DFID,11/04/2014,Project delivery costs - supplier services ,Asia  Caribbean and Overseas Territories ,SPC MANAGEMENT SERVICES PRIVATE LIMI ,114177-101 ,"2,099.13",
DFID,DFID,11/04/2014,Project delivery costs - supplier services ,Asia  Caribbean and Overseas Territories ,Sameer Deep Lepcha ,203274-101 ,503.85,
DFID,DFID,11/04/2014,Project delivery costs - supplier services ,Asia  Caribbean and Overseas Territories ,Crown Agents. ,202433-103 ,754.75,
DFID,DFID,11/04/2014,Air fares ,Asia  Caribbean and Overseas Territories ,Jaya Travels & Tours Ltd ,101621-101 ,"1,392.57",
DFID,DFID,11/04/2014,Secure Staff Accommodation ,Asia  Caribbean and Overseas Territories ,Supplier Name withheld ,100150-103 ,"2,304.20",
DFID,DFID,11/04/2014,Secure Staff Accommodation ,Asia  Caribbean and Overseas Territories ,Supplier Name withheld ,101621-103 ,"2,212.04",
DFID,DFID,11/04/2014,Secure Staff Accommodation ,Asia  Caribbean and Overseas Territories ,Supplier Name withheld ,101621-103 ,975.14,
DFID,DFID,11/04/2014,Secure Staff Accommodation ,Asia  Caribbean and Overseas Territories ,Supplier Name withheld ,101621-103 ,"2,212.04",
DFID,DFID,11/04/2014,Secure Staff Accommodation ,Asia  Caribbean and Overseas Territories ,Supplier Name withheld ,101621-103 ,"2,089.15",
DFID,DFID,11/04/2014,Secure Staff Accommodation ,Asia  Caribbean and Overseas Territories ,Supplier Name withheld ,101621-103 ,"1,843.36",
DFID,DFID,11/04/2014,Secure Staff Accommodation ,Asia  Caribbean and Overseas Territories ,Supplier Name withheld ,101621-103 ,"4,147.57",
DFID,DFID,11/04/2014,Secure Staff Accommodation ,Asia  Caribbean and Overseas Territories ,Supplier Name withheld ,101621-103 ,"1,843.36",
DFID,DFID,11/04/2014,Secure Staff Accommodation ,Asia  Caribbean and Overseas Territories ,Supplier Name withheld ,101621-103 ,"1,843.36",
DFID,DFID,11/04/2014,Water charges ,Asia  Caribbean and Overseas Territories ,Bal Krishna Dahal ,101621-103 ,651.32,
DFID,DFID,11/04/2014,Secure Staff Accommodation ,Asia  Caribbean and Overseas Territories ,Supplier Name withheld ,101621-103 ,"1,843.36",
DFID,DFID,11/04/2014,Water charges ,Asia  Caribbean and Overseas Territories ,Bal Krishna Dahal ,101621-103 ,614.45,
DFID,DFID,11/04/2014,Secure Staff Accommodation ,Asia  Caribbean and Overseas Territories ,Supplier Name withheld ,101621-103 ,"2,119.87",
DFID,DFID,11/04/2014,Secure Staff Accommodation ,Asia  Caribbean and Overseas Territories ,Supplier Name withheld ,101621-103 ,"2,212.04",
DFID,DFID,11/04/2014,Secure Staff Accommodation ,Asia  Caribbean and Overseas Territories ,Supplier Name withheld ,101621-103 ,"2,212.04",
DFID,DFID,11/04/2014,Secure Staff Accommodation ,Asia  Caribbean and Overseas Territories ,Supplier Name withheld ,101621-103 ,"2,765.04",
DFID,DFID,11/04/2014,Secure Staff Accommodation ,Asia  Caribbean and Overseas Territories ,Supplier Name withheld ,101621-103 ,"2,765.04",
DFID,DFID,11/04/2014,Secure Staff Accommodation ,Asia  Caribbean and Overseas Territories ,Supplier Name withheld ,101621-103 ,"3,225.89",
DFID,DFID,11/04/2014,Project delivery costs - supplier services ,East and Central Africa ,Crown Agents. ,114318-105 ,"4,073.14",
DFID,DFID,11/04/2014,Hotels - Accommodation only ,West and Southern Africa ,Wood lands Guest Lodge ,101638-101 ,759.49,
DFID,DFID,11/04/2014,Aid Programme - Humanitarian Material Relief Assistance and Services ,East and Central Africa ,Crown Agents. ,204400-101 ,"24,045.94",
DFID,DFID,11/04/2014,Project delivery costs - supplier services ,Research and Evidence Division ,critical faculty ,202242-103 ,"1,000.00",
DFID,DFID,11/04/2014,Project delivery costs - supplier services ,Asia  Caribbean and Overseas Territories ,SIDBI MUMBAI ,114293-103 ,"701,052.98",
DFID,DFID,11/04/2014,Project delivery costs - supplier services ,West and Southern Africa ,Andre Alfredo Z. Uandela ,201123-102 ,"4,701.49",
DFID,DFID,11/04/2014,Telephone Usage & services ,West and Southern Africa ,Ghana Telecommunications Company Ltd ,101613-101 ,670.10,
DFID,DFID,11/04/2014,Hotels - Accommodation only ,West and Southern Africa ,Hotel Inter - Chimoio ,101620-101 ,"1,198.13",
DFID,DFID,11/04/2014,Hotels - Accommodation only ,Asia  Caribbean and Overseas Territories ,Patrick Thomas ,201739-101 ,550.00,
DFID,DFID,11/04/2014,Project delivery costs - supplier services ,Asia  Caribbean and Overseas Territories ,NextGen PMS Pvt. Ltd. ,202927-103 ,"5,567.50",
DFID,DFID,11/04/2014,Medical/Health Services ,Western Asia and Stabilisation Division ,INTERHEALTH ,203940-103 ,"1,276.00",
DFID,DFID,11/04/2014,Project delivery costs - supplier services ,Asia  Caribbean and Overseas Territories ,KRAN CONSULTING PVT. LTD. ,114506-101 ,"1,725.93",
DFID,DFID,11/04/2014,Project delivery costs - supplier services ,Asia  Caribbean and Overseas Territories ,Ranjan B Verma ,202871-102 ,"2,309.54",
DFID,DFID,11/04/2014,Hotels - Accommodation only ,Conflict Humanitarian and Security Division ,Wood lands Guest Lodge ,202410-101 ,759.49,
DFID,DFID,11/04/2014,Project delivery costs - supplier services ,West and Southern Africa ,Hilary Coulby Consultancy ,202370-103 ,"9,300.00",
DFID,DFID,11/04/2014,Contract & Agency Staff ,Finance and Corporate Performance Division ,Hays Specialist Recruitment Ltd ,100008-101 ,"1,684.98",
DFID,DFID,11/04/2014,Computer hardware maintenance ,Asia  Caribbean and Overseas Territories ,Power Solution Services. ,100113-101 ,612.43,
DFID,DFID,11/04/2014,Contract & Agency Staff ,Finance and Corporate Performance Division ,Hays Specialist Recruitment Ltd ,100201-101 ,"1,790.58",
DFID,DFID,11/04/2014,Contract & Agency Staff ,Finance and Corporate Performance Division ,HUDSON GLOBAL RESOURCES LTD ,100201-101 ,"9,000.00",
DFID,DFID,11/04/2014,Contract & Agency Staff ,Finance and Corporate Performance Division ,Hays Specialist Recruitment Ltd ,100201-101 ,932.40,
DFID,DFID,11/04/2014,Legal costs ,Finance and Corporate Performance Division ,TREASURY SOLICITORS CASH ACC ,200173-101 ,"2,181.60",
DFID,DFID,11/04/2014,Project delivery costs - supplier services ,Asia  Caribbean and Overseas Territories ,Crown Agents. ,202433-103 ,"15,177.60",
DFID,DFID,11/04/2014,Project delivery costs - supplier services ,Asia  Caribbean and Overseas Territories ,Crown Agents. ,202433-103 ,888.25,
DFID,DFID,11/04/2014,Hotels - Accommodation only ,Western Asia and Stabilisation Division ,Recipient name withheld ,203944-103 ,755.35,
DFID,DFID,11/04/2014,Hardware -Laptop PCs ,Business Solutions Division Level ,INSIGHT DIRECT (UK) LTD ,200003-170 ,"5,760.00",
DFID,DFID,11/04/2014,Contract & Agency Staff ,Business Solutions Division Level ,Networkers Recruitment Services Ltd ,200001-101 ,"7,034.70",
DFID,DFID,11/04/2014,Project delivery costs - supplier services ,International Relations Division ,ART OF LIVING ,202319-101 ,"3,575.00",
DFID,DFID,11/04/2014,Project delivery costs - supplier services ,Asia  Caribbean and Overseas Territories ,INFRASTRUCTURE PROFESSIONALS ENTERPRISE ,114040-101 ,"23,404.59",
DFID,DFID,11/04/2014,Project delivery costs - supplier services ,Asia  Caribbean and Overseas Territories ,INFRASTRUCTURE PROFESSIONALS ENTERPRISE ,114040-101 ,"60,173.27",
DFID,DFID,11/04/2014,Project delivery costs - supplier services ,Asia  Caribbean and Overseas Territories ,INFRASTRUCTURE PROFESSIONALS ENTERPRISE ,114040-101 ,"15,598.94",
DFID,DFID,11/04/2014,Project delivery costs - supplier services ,Asia  Caribbean and Overseas Territories ,INFRASTRUCTURE PROFESSIONALS ENTERPRISE ,114040-101 ,"30,086.64",
DFID,DFID,11/04/2014,Project delivery costs - supplier services ,Asia  Caribbean and Overseas Territories ,INFRASTRUCTURE PROFESSIONALS ENTERPRISE ,114040-101 ,"42,121.52",
DFID,DFID,11/04/2014,Project delivery costs - supplier services ,West and Southern Africa ,DAI Europe ,201018-102 ,"995,194.52",
DFID,DFID,11/04/2014,Project delivery costs - supplier services ,West and Southern Africa ,COFFEY INTERNATIONAL DEVELOPMENT LTD ,201590-102 ,"197,100.29",
DFID,DFID,11/04/2014,Project delivery costs - supplier services ,West and Southern Africa ,IMA World Health - ASSP ,202732-102 ,"690,572.00",
DFID,DFID,11/04/2014,Project delivery costs - supplier services ,Asia  Caribbean and Overseas Territories ,INFRASTRUCTURE PROFESSIONALS ENTERPRISE ,203217-101 ,"84,427.30",
DFID,DFID,11/04/2014,Project delivery costs - supplier services ,Asia  Caribbean and Overseas Territories ,INFRASTRUCTURE PROFESSIONALS ENTERPRISE ,203217-101 ,"84,427.30",
DFID,DFID,11/04/2014,Project delivery costs - supplier services ,Asia  Caribbean and Overseas Territories ,INFRASTRUCTURE PROFESSIONALS ENTERPRISE ,203217-101 ,"84,427.30",
DFID,DFID,11/04/2014,Project delivery costs - supplier services ,Asia  Caribbean and Overseas Territories ,INFRASTRUCTURE PROFESSIONALS ENTERPRISE ,203217-101 ,"86,755.40",
DFID,DFID,11/04/2014,Project delivery costs - supplier services ,Asia  Caribbean and Overseas Territories ,INFRASTRUCTURE PROFESSIONALS ENTERPRISE ,203217-101 ,"84,427.30",
DFID,DFID,11/04/2014,Furniture & Fittings ,Group Operations ,J S  SEATING LIMITED ,203716-101 ,"1,119.98",
DFID,DFID,11/04/2014,Project delivery costs - supplier services ,Asia  Caribbean and Overseas Territories ,OXFORD POLICY MANAGEMENT ,203123-101 ,"84,978.21",
DFID,DFID,11/04/2014,Project delivery costs - supplier services ,Western Asia and Stabilisation Division ,McKinsey & Co  Inc UK ,202697-109 ,"124,650.00",
DFID,DFID,11/04/2014,Project delivery costs - supplier services ,Research and Evidence Division ,OXFORD POLICY MANAGEMENT ,203704-108 ,"1,363.26",
DFID,DFID,11/04/2014,Legal costs ,Policy Division ,Marriott Davies Yapp LLP ,202604-101 ,"7,920.60",
DFID,DFID,11/04/2014,Project delivery costs - supplier services ,Asia  Caribbean and Overseas Territories ,OXFORD POLICY MANAGEMENT ,203186-105 ,"64,511.90",
DFID,DFID,11/04/2014,Air fares ,Human Resources ,OLIVIA KALIS ,100269-128 ,629.66,
DFID,DFID,11/04/2014,Project delivery costs - supplier services ,Asia  Caribbean and Overseas Territories ,Web Werks India Pvt. Ltd. ,114506-101 ,760.52,
DFID,DFID,11/04/2014,Project delivery costs - supplier services ,East and Central Africa ,HTSPE LTD ,200221-105 ,"18,068.34",
DFID,DFID,11/04/2014,Project delivery costs - supplier services ,West and Southern Africa ,CHARLES KENDALL & PARTNERS LIMITED (PROCUREMENT) ,113961-106 ,"18,313.69",
DFID,DFID,11/04/2014,Project delivery costs - supplier services ,West and Southern Africa ,CHARLES KENDALL & PARTNERS LIMITED (PROCUREMENT) ,113961-106 ,"3,661.88",
DFID,DFID,14/04/2014,Repairs  Maintenance and Alterations - Other Building Costs ,Group Operations ,MITIE Technical Facilities Management Ltd ,203717-101 ,"26,341.26",Replenishment of stock lighting consumables in DFID HQ
DFID,DFID,14/04/2014,Computer software maintenance ,Business Solutions Division Level ,CHUBB SYSTEMS LTD ,200002-149 ,"6,728.90",
DFID,DFID,14/04/2014,Project delivery costs - supplier services ,Business Solutions Division Level ,OPIN SYSTEMS LIMITED ,200001-101 ,810.00,
DFID,DFID,14/04/2014,Contract Catering Services ,International Relations Division ,House of Commons ,100262-101 ,"1,318.80",
DFID,DFID,14/04/2014,Repairs  Maintenance and Alterations - Other Building Costs ,Group Operations ,MITIE Technical Facilities Management Ltd ,203717-101 ,"1,280.24",
DFID,DFID,14/04/2014,Repairs  Maintenance and Alterations - Other Building Costs ,Group Operations ,MITIE Technical Facilities Management Ltd ,203717-101 ,"11,797.50",
DFID,DFID,14/04/2014,Repairs  Maintenance and Alterations - Other Building Costs ,Group Operations ,MITIE Technical Facilities Management Ltd ,203717-101 ,"1,430.00",
DFID,DFID,14/04/2014,Repairs  Maintenance and Alterations - Other Building Costs ,Group Operations ,MITIE Technical Facilities Management Ltd ,203717-101 ,"1,377.75",
DFID,DFID,14/04/2014,Repairs  Maintenance and Alterations - Other Building Costs ,Group Operations ,MITIE Technical Facilities Management Ltd ,203717-101 ,"3,146.88",
DFID,DFID,14/04/2014,Repairs  Maintenance and Alterations - Other Building Costs ,Group Operations ,MITIE Technical Facilities Management Ltd ,203717-101 ,731.61,
DFID,DFID,14/04/2014,Repairs  Maintenance and Alterations - Other Building Costs ,Group Operations ,MITIE Technical Facilities Management Ltd ,203717-101 ,"3,327.50",
DFID,DFID,14/04/2014,Repairs  Maintenance and Alterations - Other Building Costs ,Group Operations ,MITIE Technical Facilities Management Ltd ,203717-101 ,786.72,
DFID,DFID,14/04/2014,Repairs  Maintenance and Alterations - Other Building Costs ,Group Operations ,MITIE Technical Facilities Management Ltd ,203717-101 ,"1,089.90",
DFID,DFID,14/04/2014,Repairs  Maintenance and Alterations - Other Building Costs ,Group Operations ,MITIE Technical Facilities Management Ltd ,203717-101 ,"13,182.97",
DFID,DFID,14/04/2014,Repairs  Maintenance and Alterations - Other Building Costs ,Group Operations ,MITIE Technical Facilities Management Ltd ,203717-101 ,"3,377.55",
DFID,DFID,14/04/2014,Repairs  Maintenance and Alterations - Other Building Costs ,Group Operations ,MITIE Technical Facilities Management Ltd ,203717-101 ,"15,812.50",
DFID,DFID,14/04/2014,Aid Programme - Accountable Grant Payments ,West and Southern Africa ,BasicNeeds-GHANA ,203536-105 ,"178,656.37",
DFID,DFID,14/04/2014,Air fares ,East and Central Africa ,BCD Travel (USD) ,101625-104 ,506.33,
DFID,DFID,14/04/2014,Secure Staff Accommodation ,West and Southern Africa ,Supplier Name withheld ,101620-101 ,"30,089.55",Secure Staff Accommodation (12 months) DFID Mozambique
DFID,DFID,14/04/2014,Hostile Environment Training ,Policy Division ,Pilgrims Group ,202402-105 ,760.97,
DFID,DFID,14/04/2014,Hostile Environment Training ,Policy Division ,Pilgrims Group ,100274-108 ,760.97,
DFID,DFID,14/04/2014,Aid Programme - Trust Funds contributions ,Middle East & North Africa Division (MENAD) ,IBRD (HSBC)  C/O THE WORLD BANK ,203054-101 ,"870,000.00",
DFID,DFID,14/04/2014,Research & Development costs ,Research and Evidence Division ,CAB INTERNATIONAL ,200574-102 ,"379,500.00",
DFID,DFID,14/04/2014,Training - Course Fees ,Human Resources ,Capita  Business Services ,100269-153 ,"2,986.99",
DFID,DFID,14/04/2014,Project delivery costs - supplier services ,Research and Evidence Division ,Michaela Raab ,203069-110 ,"14,645.27",
DFID,DFID,14/04/2014,Contract & Agency Staff ,Finance and Corporate Performance Division ,Anderson Knight Ltd ,200173-103 ,597.18,
DFID,DFID,14/04/2014,Project delivery costs - supplier services ,East and Central Africa ,Crown Agents. ,202850-103 ,"17,649.57",
DFID,DFID,14/04/2014,Aid Programme - Accountable Grant Payments ,Policy Division ,WILTON PARK ,202035-101 ,"30,000.00",
DFID,DFID,14/04/2014,Project delivery costs - supplier services ,West and Southern Africa ,Crown Agents. ,202978-106 ,555.30,
DFID,DFID,14/04/2014,Project delivery costs - supplier services ,Asia  Caribbean and Overseas Territories ,Nicholas Freeland ,114175-108 ,"8,737.32",
DFID,DFID,14/04/2014,Aid Programme - Accountable Grant Payments ,Asia  Caribbean and Overseas Territories ,Jhpiego ,203224-104 ,"5,736.15",
DFID,DFID,14/04/2014,Project delivery costs - supplier services ,West and Southern Africa ,Crown Agents. ,104223-102 ,"31,239.85",
DFID,DFID,14/04/2014,Air fares ,East and Central Africa ,BCD Travel (USD) ,202974-107 ,"3,542.50",
DFID,DFID,14/04/2014,Air fares ,East and Central Africa ,BCD Travel (USD) ,202974-107 ,"1,396.02",
DFID,DFID,14/04/2014,Air fares ,East and Central Africa ,BCD Travel (USD) ,101616-101 ,971.07,
DFID,DFID,14/04/2014,Air fares ,East and Central Africa ,BCD Travel (USD) ,101616-101 ,701.02,
DFID,DFID,14/04/2014,Air fares ,East and Central Africa ,BCD Travel (USD) ,101630-101 ,"4,458.11",
DFID,DFID,14/04/2014,Storage & Distribution costs ,Western Asia and Stabilisation Division ,Recipient name withheld ,101601-110 ,"1,155.00",
DFID,DFID,14/04/2014,Hotels - Accommodation only ,Western Asia and Stabilisation Division ,Supplier Name withheld ,101601-110 ,540.00,
DFID,DFID,14/04/2014,Hostile Environment Training ,Western Asia and Stabilisation Division ,Supplier Name withheld ,101601-110 ,"1,504.22",
DFID,DFID,14/04/2014,Project delivery costs - supplier services ,East and Central Africa ,Crown Agents. ,203466-103 ,"12,859.20",
DFID,DFID,14/04/2014,Project delivery costs - supplier services ,East and Central Africa ,Futures Group Europe ,202547-102 ,"311,922.16",
DFID,DFID,14/04/2014,DFID Purchased Relief Supplies ,West and Southern Africa ,Crown Agents. ,202694-103 ,"7,653.06",
DFID,DFID,14/04/2014,Project delivery costs - supplier services ,West and Southern Africa ,PRICEWATERHOUSECOOPERS ,113961-102 ,"410,204.33",
DFID,DFID,14/04/2014,Project delivery costs - supplier services ,West and Southern Africa ,PRICEWATERHOUSECOOPERS ,113961-103 ,"97,051.46",
DFID,DFID,14/04/2014,Project delivery costs - supplier services ,International Finance Division ,PRICEWATERHOUSECOOPERS ,202939-103 ,"38,401.76",
DFID,DFID,14/04/2014,Project delivery costs - supplier services ,International Finance Division ,PRICEWATERHOUSECOOPERS ,202939-106 ,"35,911.51",
DFID,DFID,14/04/2014,Air fares ,Western Asia and Stabilisation Division ,Gerry's Travel Agency Private Limited ,101624-101 ,734.06,
DFID,DFID,14/04/2014,FCO shared service charges ,East and Central Africa ,FCO SERVICES ,101628-101 ,773.77,
DFID,DFID,14/04/2014,Project delivery costs - supplier services ,West and Southern Africa ,Crown Agents. ,202416-103 ,"3,306.11",
DFID,DFID,14/04/2014,Repairs  Maint  Alter - Property & Constrct. Services ,East and Central Africa ,SAFECON Electro Mechanical Works PLC ,101612-101 ,698.96,
DFID,DFID,14/04/2014,Computer Consumables - Cds/memory/accessories ,West and Southern Africa ,DATASERV Lda ,101620-101 ,"3,740.96",
DFID,DFID,14/04/2014,Office Supplies ,West and Southern Africa ,Papirus Plus Lda ,101620-101 ,"3,186.78",
DFID,DFID,14/04/2014,Air fares ,West and Southern Africa ,DANA Agency ,101620-101 ,"3,618.74",
DFID,DFID,14/04/2014,Aid Programme - Trust Funds contributions ,Policy Division ,IBRD HSBC T ,202737-102 ,"1,882,000.00",
DFID,DFID,14/04/2014,Project delivery costs - supplier services ,East and Central Africa ,Paulina Mrosso ,203213-103 ,"3,020.90",
DFID,DFID,14/04/2014,Cleaning Costs ,Group Operations ,MITIE Technical Facilities Management Ltd ,203717-101 ,"1,992.32",
DFID,DFID,14/04/2014,Repairs  Maintenance and Alterations - Other Building Costs ,Group Operations ,MITIE Technical Facilities Management Ltd ,203717-101 ,"3,225.86",
DFID,DFID,14/04/2014,Electricity ,Group Operations ,EDF ENERGY ,203717-101 ,"1,036.80",
DFID,DFID,14/04/2014,Repairs  Maintenance and Alterations - Other Building Costs ,Group Operations ,MITIE Technical Facilities Management Ltd ,203717-101 ,"9,487.50",
DFID,DFID,14/04/2014,Project delivery costs - supplier services ,Western Asia and Stabilisation Division ,Crown Agents. ,203939-102 ,"10,302.00",
DFID,DFID,14/04/2014,Project delivery costs - supplier services ,Western Asia and Stabilisation Division ,Crown Agents. ,203939-108 ,"10,713.60",
DFID,DFID,14/04/2014,Project delivery costs - supplier services ,Western Asia and Stabilisation Division ,ADAM SMITH INTERNATIONAL  LTD ,202328-102 ,"301,679.24",
DFID,DFID,14/04/2014,Project delivery costs - supplier services ,West and Southern Africa ,Futures Group Europe ,202295-102 ,"504,149.42",
DFID,DFID,14/04/2014,Hostile Environment Training ,Policy Division ,Pilgrims Group ,202402-103 ,760.97,
DFID,DFID,14/04/2014,Project delivery costs - supplier services ,East and Central Africa ,BCD Travel (USD) ,202963-101 ,743.22,
DFID,DFID,14/04/2014,Aid Programme - Core contributions ,Research and Evidence Division ,THE WORLD VEGETABLE CENTER (AVRDC) ,202748-101 ,"760,000.00",
DFID,DFID,14/04/2014,Aid Programme - Core contributions ,Research and Evidence Division ,CABI ,202748-101 ,"1,984,000.00",
DFID,DFID,14/04/2014,Project delivery costs - supplier services ,East and Central Africa ,Lestrade Consultancy Ltd ,202913-101 ,"4,125.00",
DFID,DFID,14/04/2014,Other travel costs ,Conflict Humanitarian and Security Division ,Crown Agents. ,100049-101 ,"3,225.66",
DFID,DFID,14/04/2014,Vehicle Purchase Costs ,West and Southern Africa ,Toyota Ghana Company Limited ,100097-101 ,"30,527.39",
DFID,DFID,14/04/2014,Office Equipment - Maintenance ,West and Southern Africa ,DATASERV Lda ,100148-101 ,660.17,
DFID,DFID,14/04/2014,Office Supplies ,West and Southern Africa ,Papirus Plus Lda ,100148-101 ,796.70,
DFID,DFID,14/04/2014,Repairs  Maintenance and Alterations - Other Building Costs ,Group Operations ,MITIE Technical Facilities Management Ltd ,203717-101 ,"64,849.40",Supply and installation of fire detection & life safety systems in DFID HQ
DFID,DFID,14/04/2014,Hotels - Accommodation only ,Western Asia and Stabilisation Division ,Avari Lahore ,100185-101 ,539.51,
DFID,DFID,14/04/2014,Contract & Agency Staff ,Finance and Corporate Performance Division ,Hays Specialist Recruitment Ltd ,100201-101 ,"1,106.10",
DFID,DFID,14/04/2014,Contract & Agency Staff ,Finance and Corporate Performance Division ,HUDSON GLOBAL RESOURCES LTD ,100201-101 ,"4,648.51",
DFID,DFID,14/04/2014,Contract & Agency Staff ,Finance and Corporate Performance Division ,Hays Specialist Recruitment Ltd ,100201-101 ,"1,322.28",
DFID,DFID,14/04/2014,Project delivery costs - supplier services ,Western Asia and Stabilisation Division ,Crown Agents. ,203942-101 ,"2,424.00",
DFID,DFID,14/04/2014,Project delivery costs - supplier services ,Western Asia and Stabilisation Division ,Crown Agents. ,203938-101 ,"1,627.80",
DFID,DFID,14/04/2014,Hotels - Accommodation only ,Western Asia and Stabilisation Division ,Recipient name withheld ,203944-105 ,734.75,
DFID,DFID,14/04/2014,Project delivery costs - supplier services ,East and Central Africa ,Crown Agents. ,204317-101 ,"1,998.35",
DFID,DFID,14/04/2014,Project delivery costs - supplier services ,East and Central Africa ,Crown Agents. ,204317-101 ,"7,827.50",
DFID,DFID,14/04/2014,Aid Programme - Trust Funds contributions ,Policy Division ,International Monetary Fund (GBP) ,203563-104 ,"300,000.00",
DFID,DFID,14/04/2014,Project delivery costs - supplier services ,West and Southern Africa ,COFFEY INTERNATIONAL DEVELOPMENT LTD ,203824-101 ,"17,548.16",
DFID,DFID,14/04/2014,Aid Programme - Joint programme contribution ,Western Asia and Stabilisation Division ,The World Bank (EFO) ,203508-102 ,"20,000.00",
DFID,DFID,14/04/2014,Project delivery costs - supplier services ,Policy Division ,PATH ,202674-101 ,"17,753.77",
DFID,DFID,14/04/2014,Project delivery costs - supplier services ,Research and Evidence Division ,COFFEY INTERNATIONAL DEVELOPMENT LTD ,203193-101 ,"26,464.80",
DFID,DFID,14/04/2014,Training Providers/Facilitation Services ,Internal Audit ,CEB ,100121-101 ,"20,000.00",
DFID,DFID,14/04/2014,Aid Programme - Accountable Grant Payments ,East and Central Africa ,CANADEM ,204400-101 ,"13,092.75",
DFID,DFID,14/04/2014,Project delivery costs - supplier services ,East and Central Africa ,COFFEY INTERNATIONAL DEVELOPMENT LTD ,203988-102 ,"18,990.17",
DFID,DFID,14/04/2014,Data Network - land lines ,Business Solutions Division Level ,KUBE NETWORKS LTD ,200002-130 ,"1,119.90",
DFID,DFID,14/04/2014,Aid Programme - Accountable Grant Payments ,Communications Division ,CAFOD ,202197-101 ,"765,690.19",
DFID,DFID,14/04/2014,Project delivery costs - supplier services ,Policy Division ,PATH ,202674-101 ,"16,016.10",
DFID,DFID,14/04/2014,Project delivery costs - supplier services ,Policy Division ,PATH ,202674-101 ,"8,823.89",
DFID,DFID,14/04/2014,Aid Programme - Accountable Grant Payments ,Asia  Caribbean and Overseas Territories ,ROBERT GORDON UNIVERSITY ,202833-111 ,"4,000.00",
DFID,DFID,14/04/2014,Aid Programme - Accountable Grant Payments ,East and Central Africa ,Gatsby Charitable Foundation UK ,202379-101 ,"237,949.00",
DFID,DFID,14/04/2014,Project delivery costs - supplier services ,Asia  Caribbean and Overseas Territories ,OXFORD POLICY MANAGEMENT ,202123-105 ,"20,341.00",
DFID,DFID,14/04/2014,Project delivery costs - supplier services ,Asia  Caribbean and Overseas Territories ,OXFORD POLICY MANAGEMENT ,202123-105 ,"26,723.25",
DFID,DFID,14/04/2014,Project delivery costs - supplier services ,East and Central Africa ,Groupe URD  ,203775-107 ,"37,009.69",
DFID,DFID,14/04/2014,Project delivery costs - supplier services ,Policy Division ,GBRW LIMITED ,201733-107 ,"1,149.75",
DFID,DFID,14/04/2014,Aid Programme - Core contributions ,Research and Evidence Division ,MEDICAL RESEARCH COUNCIL ,201267-101 ,"2,831,016.00",
DFID,DFID,14/04/2014,Aid Programme - Core contributions ,Research and Evidence Division ,Program for Appropriate Technology in Health ,202045-101 ,"1,046,858.00",
DFID,DFID,14/04/2014,Aid Programme - Core contributions ,Research and Evidence Division ,Program for Appropriate Technology in Health ,204139-103 ,"286,989.00",
DFID,DFID,14/04/2014,Aid Programme - Core contributions ,Research and Evidence Division ,Program for Appropriate Technology in Health ,204139-101 ,"715,842.00",
DFID,DFID,14/04/2014,Aid Programme - Core contributions ,Research and Evidence Division ,Program for Appropriate Technology in Health ,204139-102 ,"389,712.00",
DFID,DFID,14/04/2014,Data Network - land lines ,Business Solutions Division Level ,VERIZON UK LIMITED ,200002-126 ,"2,514.22",
DFID,DFID,14/04/2014,Office Equipment - Purchases ,East and Central Africa , FCO SERVICES ,100211-101 ,"1,540.64",
DFID,DFID,14/04/2014,Office Equipment - Purchases ,East and Central Africa , FCO SERVICES ,100234-101 ,"4,279.60",
DFID,DFID,14/04/2014,DFID Purchased Relief Supplies ,West and Southern Africa ,CHARLES KENDALL & PARTNERS LIMITED (PROCUREMENT) ,202214-106 ,"170,638.20",
DFID,DFID,14/04/2014,Project delivery costs - supplier services ,Asia  Caribbean and Overseas Territories ,Shenglan Tang ,202708-103 ,"9,307.92",
DFID,DFID,14/04/2014,Project delivery costs - supplier services ,West and Southern Africa ,HTSPE LTD ,203164-103 ,"22,044.68",
DFID,DFID,14/04/2014,Project delivery costs - supplier services ,West and Southern Africa ,CHARLES KENDALL & PARTNERS LIMITED (PROCUREMENT) ,113961-106 ,"2,544.23",
DFID,DFID,15/04/2014,Aid Programme - Other Financial Aid to Government ,West and Southern Africa ,Ministry of Finance  Mozambique  Tax Authority of Mozamique ,203313-102 ,"360,000.00",
DFID,DFID,15/04/2014,Data Network - land lines ,Business Solutions Division Level ,VODAFONE LIMITED ,200002-187 ,"11,704.27",
DFID,DFID,15/04/2014,Courier & Bag Services ,East and Central Africa ,FCO SERVICES ,202594-101 ,553.28,
DFID,DFID,15/04/2014,Repairs  Maintenance and Alterations - Other Building Costs ,Group Operations ,MITIE Technical Facilities Management Ltd ,203717-101 ,"1,063.79",
DFID,DFID,15/04/2014,Repairs  Maintenance and Alterations - Other Building Costs ,Group Operations ,MITIE Technical Facilities Management Ltd ,203717-101 ,508.50,
DFID,DFID,15/04/2014,Repairs  Maintenance and Alterations - Other Building Costs ,Group Operations ,MITIE Technical Facilities Management Ltd ,203717-101 ,"7,784.98",
DFID,DFID,15/04/2014,Repairs  Maintenance and Alterations - Other Building Costs ,Group Operations ,MITIE Technical Facilities Management Ltd ,203717-101 ,"1,227.35",
DFID,DFID,15/04/2014,Project delivery costs - supplier services ,West and Southern Africa ,ATOS CONSULTING LIMITED ,200452-101 ,"579,169.00",
DFID,DFID,15/04/2014,Aid Programme - Accountable Grant Payments ,West and Southern Africa ,Christian Health Association of Ghana (CHAG) ,203536-104 ,"171,550.03",
DFID,DFID,15/04/2014,Computer software maintenance ,Business Solutions Division Level ,MICRO FOCUS LTD ,200002-115 ,"13,810.80",
DFID,DFID,15/04/2014,Aid Programme - Humanitarian Material Relief Assistance and Services ,Conflict Humanitarian and Security Division ,HANDICAP INTERNATIONAL UK ,204351-101 ,"124,215.00",
DFID,DFID,15/04/2014,Air fares ,Human Resources ,ANDERS JENSEN ,100269-128 ,923.69,
DFID,DFID,15/04/2014,Air fares ,Human Resources ,Umar Anwer ,100269-128 ,845.93,
DFID,DFID,15/04/2014,Air fares ,Western Asia and Stabilisation Division ,Gerry's Travel Agency Private Limited ,101624-101 ,506.55,
DFID,DFID,15/04/2014,Aid Programme - Accountable Grant Payments ,Research and Evidence Division ,INSTITUTE OF DEV  STUDIES UNIVER ,201841-101 ,"24,564.00",
DFID,DFID,15/04/2014,Project delivery costs - supplier services ,East and Central Africa ,Crown Agents. ,200498-105 ,"319,322.73",
DFID,DFID,15/04/2014,Electricity ,Asia  Caribbean and Overseas Territories ,Dhaka Electric Supply Company Ltd ,101603-101 ,"1,496.33",
DFID,DFID,15/04/2014,Project delivery costs - supplier services ,Asia  Caribbean and Overseas Territories ,OPTIONS CONSULTANCY SERVICES LIMITED ,113963-101 ,"263,166.68",
DFID,DFID,15/04/2014,Project delivery costs - supplier services ,Research and Evidence Division ,School of Environment and Development  University of Manchester ,203523-101 ,"220,984.00",
DFID,DFID,15/04/2014,Project delivery costs - supplier services ,West and Southern Africa ,Crown Agents. ,104223-102 ,"1,925.37",
DFID,DFID,15/04/2014,DFID Purchased Relief Supplies ,West and Southern Africa ,Crown Agents. ,104223-102 ,"81,480.03",
DFID,DFID,15/04/2014,Facilities Management payments ,Asia  Caribbean and Overseas Territories ,R M B Engineers and Builders Pvt Ltd ,101621-103 ,987.03,
DFID,DFID,15/04/2014,Hotels - Accommodation only ,West and Southern Africa ,InterContinental Hotel ,100214-101 ,522.12,
DFID,DFID,15/04/2014,Hotels - Accommodation only ,West and Southern Africa ,InterContinental Hotel ,100214-101 ,522.12,
DFID,DFID,15/04/2014,Project delivery costs - supplier services ,Policy Division ,Crown Agents. ,200706-102 ,"549,393.00",
DFID,DFID,15/04/2014,Project delivery costs - supplier services ,Western Asia and Stabilisation Division ,National Testing Service ,202697-109 ,"18,403.55",
DFID,DFID,15/04/2014,Project delivery costs - supplier services ,West and Southern Africa ,DAI EUROPE LIMITED ,113961-104 ,"188,285.29",
DFID,DFID,15/04/2014,Aid Programme - Core contributions ,Conflict Humanitarian and Security Division ,UN OCHA ,202456-101 ,"10,000,000.00",
DFID,DFID,15/04/2014,Relocation costs ,Policy Division ,Mukwa Travel and Tours ,202419-101 ,"1,961.62",
DFID,DFID,15/04/2014,Project delivery costs - supplier services ,West and Southern Africa ,Paul Deverill ,201123-102 ,"7,050.91",
DFID,DFID,15/04/2014,Medical/Health Services ,West and Southern Africa ,Professional Life Assurance Limited ,100254-101 ,"3,856.58",
DFID,DFID,15/04/2014,Repairs  Maint  Alter - Property & Constrct. Services ,West and Southern Africa ,Turtle Blinds ,101637-101 ,"2,066.32",
DFID,DFID,15/04/2014,Medical/Health Services ,West and Southern Africa ,Professional Life Assurance Limited ,101637-101 ,"9,328.30",
DFID,DFID,15/04/2014,Contract & Agency Staff ,Finance and Corporate Performance Division ,Hays Specialist Recruitment Ltd ,100201-101 ,"1,507.74",
DFID,DFID,15/04/2014,Office Supplies ,West and Southern Africa ,Nkwazi Office Supplies Ltd ,101637-101 ,"10,640.76",
DFID,DFID,15/04/2014,Facilities Management payments ,East and Central Africa ,PATRONICS SERVICES RWANDA LTD ,101628-101 ,561.51,
DFID,DFID,15/04/2014,Secure Staff Accommodation ,East and Central Africa ,Supplier Name withheld ,101628-101 ,"7,168.46",
DFID,DFID,15/04/2014,Secure Staff Accommodation ,West and Southern Africa ,Supplier Name withheld ,101637-101 ,"4,248.17",
DFID,DFID,15/04/2014,Aid Programme - Core contributions ,East and Central Africa ,   THE WORLD BANK ,201722-102 ,"595,000.00",
DFID,DFID,15/04/2014,Project delivery costs - supplier services ,West and Southern Africa ,ATOS CONSULTING LIMITED ,203230-101 ,"190,812.00",
DFID,DFID,15/04/2014,Project delivery costs - supplier services ,Western Asia and Stabilisation Division ,Crown Agents. ,203939-108 ,"1,075.20",
DFID,DFID,15/04/2014,Project delivery costs - supplier services ,Western Asia and Stabilisation Division ,Crown Agents. ,203944-101 ,"1,931.00",
DFID,DFID,15/04/2014,Medical/Health Services ,West and Southern Africa ,MASM ,100144-101 ,"1,281.13",
DFID,DFID,15/04/2014,Project delivery costs - supplier services ,Western Asia and Stabilisation Division ,Supplier Name withheld ,202112-102 ,"146,658.91",
DFID,DFID,15/04/2014,Electricity ,West and Southern Africa ,The British High Commission ,101613-101 ,"2,959.55",
DFID,DFID,15/04/2014,Facilities Management payments ,West and Southern Africa ,The British High Commission ,101613-101 ,"1,722.69",
DFID,DFID,15/04/2014,Repairs  Maint  Alter - Property & Constrct. Services ,West and Southern Africa ,Tiger Center Lda ,101620-101 ,663.92,
DFID,DFID,15/04/2014,Telephone Usage & services ,Western Asia and Stabilisation Division ,Telenor Pakistan ,101624-101 ,853.83,
DFID,DFID,15/04/2014,Hotels - Accommodation only ,East and Central Africa ,Recipient name withheld ,101625-102 ,604.75,
DFID,DFID,15/04/2014,Office Equipment - Purchases ,Group Operations ,MITIE Technical Facilities Management Ltd ,203716-101 ,"6,514.20",
DFID,DFID,15/04/2014,Project delivery costs - supplier services ,Western Asia and Stabilisation Division ,Crown Agents. ,203939-107 ,"3,030.00",
DFID,DFID,15/04/2014,Secure Staff Accommodation ,East and Central Africa ,Supplier Name withheld ,101634-101 ,"21,634.62",
DFID,DFID,15/04/2014,Facilities Management payments ,East and Central Africa ,Anis Yusuf Mamdani ,101634-101 ,"2,790.87",
DFID,DFID,15/04/2014,Project delivery costs - supplier services ,West and Southern Africa ,Crown Agents. ,200625-105 ,"14,664.03",
DFID,DFID,15/04/2014,Project delivery costs - supplier services ,Asia  Caribbean and Overseas Territories ,Ranjan B Verma ,202871-102 ,"1,943.80",
DFID,DFID,15/04/2014,Project delivery costs - supplier services ,East and Central Africa ,Crown Agents. ,200498-101 ,"570,202.63",
DFID,DFID,15/04/2014,Hotels - Accommodation only ,West and Southern Africa ,InterContinental Hotel ,100144-101 ,522.12,
DFID,DFID,15/04/2014,Hotels - Accommodation only ,Business Solutions Division Level ,InterContinental Hotel ,200001-101 ,870.20,
DFID,DFID,15/04/2014,Aid Programme - Accountable Grant Payments ,East and Central Africa ,CARE INTERNATIONAL UK ,203775-113 ,"77,854.50",
DFID,DFID,15/04/2014,Project delivery costs - supplier services ,West and Southern Africa ,Crown Agents. ,113961-109 ,"19,612.80",
DFID,DFID,15/04/2014,Fund monies to be managed and dispersed by the supplier ,East and Central Africa ,Crown Agents. ,203382-115 ,"39,990.42",
DFID,DFID,15/04/2014,Fund monies to be managed and dispersed by the supplier ,East and Central Africa ,Crown Agents. ,203382-115 ,"13,143.55",
DFID,DFID,15/04/2014,Fund monies to be managed and dispersed by the supplier ,East and Central Africa ,Crown Agents. ,203382-115 ,"13,557.43",
DFID,DFID,15/04/2014,Fund monies to be managed and dispersed by the supplier ,East and Central Africa ,Crown Agents. ,203382-115 ,"69,109.63",
DFID,DFID,15/04/2014,Project delivery costs - supplier services ,Middle East & North Africa Division (MENAD) ,COFFEY INTERNATIONAL DEVELOPMENT LTD ,203789-101 ,"24,130.01",
DFID,DFID,15/04/2014,Aid Programme - Accountable Grant Payments ,Policy Division ,OVERSEAS DEVELOPMENT INSTITUTE ,202814-101 ,"723,954.92",
DFID,DFID,15/04/2014,Conferences  Seminars & Meeting/Event Resource ,Research and Evidence Division ,MS-TCDC ,202334-102 ,"7,751.84",
DFID,DFID,15/04/2014,Research & Development costs ,Research and Evidence Division ,THE UNIVERSITY OF MANCHESTER ,201010-101 ,"275,375.43",
DFID,DFID,15/04/2014,Project delivery costs - supplier services ,Communications Division ,VOLUNTARY SERVICE OVERSEAS ,202883-101 ,"2,201,896.80",
DFID,DFID,15/04/2014,Promotional Print Advertising ,Western Asia and Stabilisation Division ,Verdant Media Ltd ,203940-101 ,720.00,
DFID,DFID,15/04/2014,Water charges ,West and Southern Africa ,ETS Abeer ,100068-101 ,822.88,
DFID,DFID,15/04/2014,Project delivery costs - supplier services ,Western Asia and Stabilisation Division ,HTSPE LTD ,202491-102 ,"354,933.07",
DFID,DFID,15/04/2014,Project delivery costs - supplier services ,West and Southern Africa ,OXFORD POLICY MANAGEMENT ,203627-101 ,"19,227.69",
DFID,DFID,15/04/2014,Project delivery costs - supplier services ,Business Solutions Division Level ,SCC Ltd ,200005-112 ,"2,595.43",
DFID,DFID,15/04/2014,Project delivery costs - supplier services ,Asia  Caribbean and Overseas Territories ,HTSPE LTD ,202775-109 ,"30,000.00",
DFID,DFID,15/04/2014,Project delivery costs - supplier services ,West and Southern Africa ,Prof  Chris Tapscott ,203861-102 ,"2,927.93",
DFID,DFID,16/04/2014,Project delivery costs - supplier services ,West and Southern Africa ,Carlos Manuel ,104038-101 ,"1,195.46",
DFID,DFID,16/04/2014,Project delivery costs - supplier services ,West and Southern Africa ,Feliciano S. Chimbutane ,104038-101 ,"1,195.46",
DFID,DFID,16/04/2014,Conferences  Seminars & Meeting/Event Resource ,West and Southern Africa ,Ideialab Limitada ,204497-102 ,"12,530.29",
DFID,DFID,16/04/2014,Data Network - land lines ,Business Solutions Division Level ,Keltec Ltd ,200002-124 ,"1,125.00",
DFID,DFID,16/04/2014,Computer software maintenance ,Business Solutions Division Level ,VTEQ LIMITED ,200002-137 ,"5,412.82",
DFID,DFID,16/04/2014,Storage & Distribution costs ,East and Central Africa ,PICKFORDS LTD ,202586-101 ,"5,185.34",
DFID,DFID,16/04/2014,Project delivery costs - supplier services ,East and Central Africa ,ATOS CONSULTING LIMITED ,113400-103 ,"191,225.14",
DFID,DFID,16/04/2014,Project delivery costs - supplier services ,East and Central Africa ,ATOS CONSULTING LIMITED ,113400-103 ,"19,286.19",
DFID,DFID,16/04/2014,FCO shared service charges ,Group Operations ,FCO SERVICES ,203717-101 ,691.04,
DFID,DFID,16/04/2014,Vehicle Purchase Costs ,Middle East & North Africa Division (MENAD) ,Crown Agents. ,202486-111 ,678.77,
DFID,DFID,16/04/2014,Project delivery costs - supplier services ,East and Central Africa ,Crown Agents. ,200239-113 ,"8,190.00",
DFID,DFID,16/04/2014,Project delivery costs - supplier services ,International Finance Division ,Nathan Associates London Ltd ,114009-101 ,"29,038.96",
DFID,DFID,16/04/2014,Repairs  Maintenance and Alterations - Other Building Costs ,Group Operations ,MITIE Technical Facilities Management Ltd ,100106-101 ,712.80,
DFID,DFID,16/04/2014,Gas ,Group Operations ,CORONA ENERGY ,100106-101 ,"1,277.41",
DFID,DFID,16/04/2014,Gas ,Group Operations ,CORONA ENERGY ,100106-101 ,"1,117.74",
DFID,DFID,16/04/2014,Training - Course Fees ,Human Resources ,Capita  Business Services ,100269-153 ,"3,892.29",
DFID,DFID,16/04/2014,Interview expenses ,Research and Evidence Division ,Recipient name withheld ,202348-104 ,924.02,
DFID,DFID,16/04/2014,Electricity ,Group Operations ,EDF ENERGY ,100106-101 ,"15,298.51",
DFID,DFID,16/04/2014,Air fares ,Asia  Caribbean and Overseas Territories ,Saimon Overseas Ltd ,101603-101 ,"1,015.97",
DFID,DFID,16/04/2014,Aid Programme - Accountable Grant Payments ,Western Asia and Stabilisation Division ,Supplier Name withheld ,203748-101 ,"386,157.69",
DFID,DFID,16/04/2014,Aid Programme - Accountable Grant Payments ,Asia  Caribbean and Overseas Territories ,British Council Division. ,108003-103 ,"116,645.92",
DFID,DFID,16/04/2014,Aid Programme - Core contributions ,Asia  Caribbean and Overseas Territories ,SBICAP Ventures Limited (global) ,203911-103 ,"5,489.29",
DFID,DFID,16/04/2014,Aid Programme - Voluntary contributions ,West and Southern Africa ,COMESA (GBP) ,201927-107 ,"13,076.33",
DFID,DFID,16/04/2014,Hotels - Accommodation only ,East and Central Africa ,Doubletree by Hilton Dar es Salaam ,101634-101 ,651.14,
DFID,DFID,16/04/2014,Aid Programme - Joint programme contribution ,Asia  Caribbean and Overseas Territories ,GTZ Office  Kathmandu ,204293-101 ,"43,927.51",
DFID,DFID,16/04/2014,Courier & Bag Services ,Western Asia and Stabilisation Division ,Supplier Name withheld ,101601-110 ,755.38,
DFID,DFID,16/04/2014,Aid Programme - Accountable Grant Payments ,East and Central Africa ,NATIONAL DEMOCRATIC INSTITUTE (NDI) ,204030-101 ,"114,173.00",
DFID,DFID,16/04/2014,Project delivery costs - supplier services ,East and Central Africa ,Crown Agents. ,114318-105 ,"19,470.00",
DFID,DFID,16/04/2014,FCO shared service charges ,West and Southern Africa ,FCO SERVICES ,101638-101 ,"2,114.34",
DFID,DFID,16/04/2014,Project delivery costs - supplier services ,Policy Division ,Crown Agents. ,200706-102 ,"26,965.82",
DFID,DFID,16/04/2014,Project delivery costs - supplier services ,Policy Division ,TROPICAL HEALTH AND EDUCATION TRUST ,202208-101 ,"65,510.03",
DFID,DFID,16/04/2014,Project delivery costs - supplier services ,Policy Division ,Crown Agents. ,203146-102 ,"5,176.78",
DFID,DFID,16/04/2014,Training Providers/Facilitation Services ,Finance and Corporate Performance Division ,Capita  Business Services ,100201-101 ,"34,302.44",Senior Civil Service Commercial Leadership Course March 2014
DFID,DFID,16/04/2014,Project delivery costs - supplier services ,East and Central Africa ,Mennonite Economic Development Associates of Canada ,202481-104 ,"681,038.01",
DFID,DFID,16/04/2014,Project delivery costs - supplier services ,East and Central Africa ,Mennonite Economic Development Associates of Canada ,202481-104 ,"175,510.66",
DFID,DFID,16/04/2014,Air fares ,West and Southern Africa ,Ulendo Safaris ,101618-101 ,"1,849.14",
DFID,DFID,16/04/2014,Project delivery costs - supplier services ,West and Southern Africa ,Adebukola OluSeye Adetunmbi ,204438-101 ,"3,070.18",
DFID,DFID,16/04/2014,Contract & Agency Staff ,Finance and Corporate Performance Division ,Hays Specialist Recruitment Ltd ,100201-101 ,"1,165.50",
DFID,DFID,16/04/2014,Relocation costs ,East and Central Africa ,PICKFORDS LTD ,101628-101 ,"6,221.83",
DFID,DFID,16/04/2014,Contract & Agency Staff ,Finance and Corporate Performance Division ,Computer Futures ,200173-102 ,"3,360.20",
DFID,DFID,16/04/2014,Vehicle Repairs & Maintenance ,West and Southern Africa ,Kanengo Engineering & Maintenance ,101618-101 ,704.86,
DFID,DFID,16/04/2014,Project delivery costs - supplier services ,West and Southern Africa ,ADAM SMITH INTERNATIONAL  LTD ,203628-101 ,"23,398.49",
DFID,DFID,16/04/2014,Project delivery costs - supplier services ,East and Central Africa ,ADAM SMITH INTERNATIONAL  LTD ,202698-108 ,"62,135.32",
DFID,DFID,16/04/2014,Project delivery costs - supplier services ,Western Asia and Stabilisation Division ,Tsamota ,204304-103 ,"33,531.00",
DFID,DFID,16/04/2014,Project delivery costs - supplier services ,Western Asia and Stabilisation Division ,Tsamota ,204304-103 ,"20,160.00",
DFID,DFID,16/04/2014,Project delivery costs - supplier services ,Western Asia and Stabilisation Division ,Tsamota ,204304-103 ,"67,782.20",
DFID,DFID,16/04/2014,Repairs  Maintenance and Alterations - Other Building Costs ,West and Southern Africa ,Peace and Joy Construction ,101618-101 ,"4,266.78",
DFID,DFID,16/04/2014,Hotels - Accommodation only ,West and Southern Africa ,Alpha Investments Ltd ,200469-117 ,"1,096.13",
DFID,DFID,16/04/2014,Aid Programme - Humanitarian Material Relief Assistance and Services ,Western Asia and Stabilisation Division ,CONCERN WORLDWIDE ,203967-104 ,"137,100.00",
DFID,DFID,16/04/2014,Project delivery costs - supplier services ,West and Southern Africa ,Andre Alfredo Z. Uandela ,201123-102 ,"4,673.04",
DFID,DFID,16/04/2014,Aid Programme - Joint programme contribution ,Middle East & North Africa Division (MENAD) , Social Fund for Development  ,201427-101 ,"14,000,000.00",
DFID,DFID,16/04/2014,Repairs  Maint  Alter - Property & Constrct. Services ,East and Central Africa ,SAFECON Electro Mechanical Works PLC ,101612-101 ,"7,788.90",
DFID,DFID,16/04/2014,Hotels - Accommodation only ,West and Southern Africa ,Livingstonia Beach Hotel ,101618-101 ,583.01,
DFID,DFID,16/04/2014,Courier & Bag Services ,Middle East & North Africa Division (MENAD) ,FCO SERVICES ,101619-101 ,"3,405.54",
DFID,DFID,16/04/2014,Data Network - land lines ,West and Southern Africa ,TV Cabo Comunicacoes Multimedia ,101620-101 ,949.97,
DFID,DFID,16/04/2014,Training - Course Fees ,West and Southern Africa ,TBS services ,101620-101 ,880.18,
DFID,DFID,16/04/2014,Data Network - land lines ,West and Southern Africa ,TV Cabo Comunicacoes Multimedia ,101620-101 ,620.39,
DFID,DFID,16/04/2014,Computer Consumables - Cds/memory/accessories ,West and Southern Africa ,DATASERV Lda ,101620-101 ,734.40,
DFID,DFID,16/04/2014,Furniture & Fittings ,West and Southern Africa ,Cecil Nurse Business Furniture ,101620-101 ,723.44,
DFID,DFID,16/04/2014,Electricity ,West and Southern Africa ,Electricidade de Mocambique ,101620-101 ,"1,111.49",
DFID,DFID,16/04/2014,Storage & Distribution costs ,Western Asia and Stabilisation Division ,PICKFORDS LTD ,101624-101 ,"1,016.16",
DFID,DFID,16/04/2014,Aid Programme - Accountable Grant Payments ,Asia  Caribbean and Overseas Territories ,INTERNATIONAL INSTITUTE FOR SUSTAINABLE DEVELOPMENT ,203174-101 ,"106,800.00",
DFID,DFID,16/04/2014,Vehicle Repairs & Maintenance ,West and Southern Africa ,Aniagboso Chukwuma Nig. Enter. ,101622-105 ,"2,877.49",
DFID,DFID,16/04/2014,Project delivery costs - supplier services ,Western Asia and Stabilisation Division ,PARTY INGREDIENTS LTD ,203939-103 ,"1,455.84",
DFID,DFID,16/04/2014,Project delivery costs - supplier services ,East and Central Africa ,Lestrade Consultancy Ltd ,202913-101 ,"1,341.00",
DFID,DFID,16/04/2014,Repairs  Maintenance and Alterations - Other Building Costs ,Group Operations ,MITIE Technical Facilities Management Ltd ,100106-101 ,"12,650.00",
DFID,DFID,16/04/2014,Hotels - Accommodation only ,Internal Audit ,Recipient name withheld ,100121-101 ,575.05,
DFID,DFID,16/04/2014,Other rentals ,West and Southern Africa ,Condominios JAT ,100148-101 ,"2,469.28",
DFID,DFID,16/04/2014,Contract & Agency Staff ,Finance and Corporate Performance Division ,Hays Specialist Recruitment Ltd ,100201-101 ,"1,322.28",
DFID,DFID,16/04/2014,Contract & Agency Staff ,Finance and Corporate Performance Division ,Hays Specialist Recruitment Ltd ,100201-101 ,"1,790.58",
DFID,DFID,16/04/2014,Computer Software Licenses ,Business Solutions Division Level ,Bartsch Software ,200002-153 ,907.94,
DFID,DFID,16/04/2014,Project delivery costs - supplier services ,Asia  Caribbean and Overseas Territories ,VASUDHA FOUNDATION ,203757-101 ,"2,146.03",
DFID,DFID,16/04/2014,Project delivery costs - supplier services ,West and Southern Africa ,INFRASTRUCTURE PROFESSIONALS ENTERPRISE ,203164-102 ,"52,810.00",
DFID,DFID,16/04/2014,Computer software maintenance ,Business Solutions Division Level ,Phoenix Software Ltd ,200002-139 ,"143,636.40",12 months licence and support of the DFID Firewall/IT security service
DFID,DFID,16/04/2014,Secure Staff Accommodation ,East and Central Africa ,Supplier Name withheld ,101628-101 ,"7,172.74",
DFID,DFID,16/04/2014,Training Providers/Facilitation Services ,Group Operations ,Phoenix Health & Safety  ,100264-101 ,695.00,
DFID,DFID,16/04/2014,Office Equipment - Purchases ,West and Southern Africa ,WiNoSuppliers ,101620-101 ,"3,478.60",
DFID,DFID,16/04/2014,Aid Programme - Accountable Grant Payments ,Asia  Caribbean and Overseas Territories ,ActionAid International Nepal ,202433-107 ,"185,545.00",
DFID,DFID,16/04/2014,Office Equipment - Purchases ,West and Southern Africa ,WiNoSuppliers ,100148-101 ,613.87,
DFID,DFID,16/04/2014,Vehicle Repairs & Maintenance ,West and Southern Africa ,De Bright Auto Link Nig Ltd ,101622-105 ,"1,903.03",
DFID,DFID,16/04/2014,Aid Programme - Accountable Grant Payments ,East and Central Africa ,Gatsby Charitable Foundation UK ,202844-107 ,"120,000.00",
DFID,DFID,16/04/2014,Project delivery costs - supplier services ,East and Central Africa ,Mannion Daniels Limited ,113303-112 ,"1,884.36",
DFID,DFID,16/04/2014,Project delivery costs - supplier services ,East and Central Africa ,HTSPE LTD ,204258-101 ,"8,858.96",
DFID,DFID,16/04/2014,Aid Programme - Other Financial Aid to Government ,East and Central Africa ,MET OFFICE ,202534-107 ,"30,000.00",
DFID,DFID,16/04/2014,Research & Development costs ,Research and Evidence Division ,ODI ,204776-101 ,"29,945.00",
DFID,DFID,16/04/2014,Project delivery costs - supplier services ,Asia  Caribbean and Overseas Territories ,HTSPE LTD ,203035-102 ,650.00,
DFID,DFID,16/04/2014,Project delivery costs - supplier services ,Policy Division ,GBRW LIMITED ,201733-107 ,"1,095.00",
DFID,DFID,16/04/2014,Computer Consumables ,East and Central Africa , FCO SERVICES ,100082-101 ,"2,054.05",
DFID,DFID,16/04/2014,Project delivery costs - supplier services ,Policy Division ,HTSPE LTD ,202921-101 ,"16,502.65",
DFID,DFID,16/04/2014,Office Equipment - Purchases ,East and Central Africa , FCO SERVICES ,100211-101 ,"1,540.64",
DFID,DFID,16/04/2014,Project delivery costs - supplier services ,East and Central Africa ,OXFORD POLICY MANAGEMENT ,202974-103 ,"4,254.50",
DFID,DFID,16/04/2014,Project delivery costs - supplier services ,West and Southern Africa ,OXFORD POLICY MANAGEMENT ,202857-104 ,"52,182.36",
DFID,DFID,17/04/2014,Aid Programme - Voluntary contributions ,East and Central Africa ,UNOPS ,201622-101 ,"321,935.00",
DFID,DFID,17/04/2014,Contract & Agency Staff ,International Finance Division ,Hays Specialist Recruitment Ltd ,100120-101 ,"2,169.60",
DFID,DFID,17/04/2014,Project delivery costs - supplier services ,Asia  Caribbean and Overseas Territories ,Crown Agents. ,201645-105 ,"60,877.50",
DFID,DFID,17/04/2014,Project delivery costs - supplier services ,West and Southern Africa ,Crown Agents. ,202463-103 ,"32,467.00",
DFID,DFID,17/04/2014,Project delivery costs - supplier services ,East and Central Africa ,HEALTH PARTNERS INTERNATIONAL ,200250-115 ,"214,178.71",
DFID,DFID,17/04/2014,Aid Programme - Humanitarian Material Relief Assistance and Services ,Middle East & North Africa Division (MENAD) ,Crown Agents. ,204007-103 ,"9,734.09",
DFID,DFID,17/04/2014,Operating Lease rental of buildings ,Asia  Caribbean and Overseas Territories ,CENTRAL BUILDING LTD ,100244-101 ,"28,525.25",Office rental and management fee from 01 Apr 2014 to 31 Mar 2015 
DFID,DFID,17/04/2014,Storage & Distribution costs ,Asia  Caribbean and Overseas Territories ,PICKFORDS LTD ,201739-101 ,"14,655.70",
DFID,DFID,17/04/2014,Aid Programme - Core contributions ,Conflict Humanitarian and Security Division ,IBRD (HSBC)  C/O THE WORLD BANK ,202459-101 ,"3,000,000.00",
DFID,DFID,17/04/2014,Project delivery costs - supplier services ,Conflict Humanitarian and Security Division ,Crown Agents. ,203416-101 ,"22,564.24",
DFID,DFID,17/04/2014,Project delivery costs - supplier services ,Conflict Humanitarian and Security Division ,Crown Agents. ,203416-101 ,"4,304.89",
DFID,DFID,17/04/2014,Project delivery costs - supplier services ,Conflict Humanitarian and Security Division ,Crown Agents. ,203249-103 ,"12,223.03",
DFID,DFID,17/04/2014,Project delivery costs - supplier services ,Conflict Humanitarian and Security Division ,Crown Agents. ,203249-103 ,"1,039.07",
DFID,DFID,17/04/2014,Aid Programme - Strategic Grant Arrangement payments ,West and Southern Africa ,Supplier Name withheld ,203292-101 ,543.34,
DFID,DFID,17/04/2014,Aid Programme - Accountable Grant Payments ,Research and Evidence Division ,MIT/J-PAL ,202247-102 ,"36,911.00",
DFID,DFID,17/04/2014,Project delivery costs - supplier services ,West and Southern Africa ,HLSP LIMITED ,200325-101 ,"852,791.49",
DFID,DFID,17/04/2014,Project delivery costs - supplier services ,Policy Division ,Triple Line Crown Agents JV. ,201242-101 ,"54,225.60",
DFID,DFID,17/04/2014,Project delivery costs - supplier services ,Policy Division ,Triple Line Crown Agents JV. ,201242-101 ,"6,684.37",
DFID,DFID,17/04/2014,Oil - Other Utilities ,East and Central Africa ,TAAM Petroleum Ltd(US$) ,202594-101 ,"10,212.96",
DFID,DFID,17/04/2014,Oil - Other Utilities ,East and Central Africa ,TAAM Petroleum Ltd(US$) ,202586-101 ,"10,212.96",
DFID,DFID,17/04/2014,Training - Course Fees ,Human Resources ,Capita  Business Services ,100269-153 ,"13,565.22",
DFID,DFID,17/04/2014,Interview expenses ,Research and Evidence Division ,Recipient name withheld ,202348-104 ,"1,357.53",
DFID,DFID,17/04/2014,Interview expenses ,Research and Evidence Division ,Recipient name withheld ,202348-104 ,"1,298.05",
DFID,DFID,17/04/2014,Repairs  Maint  Alter - Property & Constrct. Services ,West and Southern Africa ,Shell Nigeria Closed pension Fund Administration Ltd ,100152-110 ,"14,814.06",
DFID,DFID,17/04/2014,Repairs  Maint  Alter - Property & Constrct. Services ,West and Southern Africa ,Shell Nigeria Closed pension Fund Administration Ltd ,101622-105 ,"14,245.21",
DFID,DFID,17/04/2014,Repairs  Maint  Alter - Property & Constrct. Services ,West and Southern Africa ,Shell Nigeria Closed pension Fund Administration Ltd ,101622-105 ,"14,814.06",
DFID,DFID,17/04/2014,Project delivery costs - supplier services ,West and Southern Africa ,Abu Sesay ,203585-102 ,915.38,
DFID,DFID,17/04/2014,Aid Programme - Accountable Grant Payments ,East and Central Africa ,PRIVATE SECTOR FOUNDATION UGANDA - BUDS ,200250-129 ,"1,239,362.23",
DFID,DFID,17/04/2014,Research & Development costs ,Research and Evidence Division ,CENTRE FOR ECONOMIC POLICY RESEARCH ,202835-101 ,"161,956.00",
DFID,DFID,17/04/2014,Project delivery costs - supplier services ,East and Central Africa ,Acak Paul Herimos ,200250-106 ,673.19,
DFID,DFID,17/04/2014,Project delivery costs - supplier services ,East and Central Africa ,Acak Paul Herimos ,200250-106 ,673.19,
DFID,DFID,17/04/2014,Project delivery costs - supplier services ,West and Southern Africa ,Crown Agents. ,203330-103 ,"435,512.10",
DFID,DFID,17/04/2014,Operating Lease rental of buildings ,West and Southern Africa ,JAT Constroi ,100148-101 ,"34,990.18",Quarterly rental payment for DFID Mozambique office and car park (April to June 2014)
DFID,DFID,17/04/2014,Project delivery costs - supplier services ,Asia  Caribbean and Overseas Territories ,OXFAM INSTITUTIONAL INCOME ACCOUNT ,202951-102 ,"156,582.00",
DFID,DFID,17/04/2014,DFID Purchased Relief Supplies ,West and Southern Africa ,Crown Agents. ,202942-103 ,"92,169.44",
DFID,DFID,17/04/2014,Telephone Usage & services ,Western Asia and Stabilisation Division ,Supplier Name withheld ,101601-110 ,"1,427.79",
DFID,DFID,17/04/2014,Aid Programme - Joint programme contribution ,Research and Evidence Division ,ASIAN DEVELOPMENT.BANK ,202125-103 ,"200,000.00",
DFID,DFID,17/04/2014,FCO shared service charges ,West and Southern Africa ,FCO SERVICES ,100068-101 ,711.95,
DFID,DFID,17/04/2014,Project delivery costs - supplier services ,Western Asia and Stabilisation Division ,Supplier Name withheld ,202336-101 ,"4,724.51",
DFID,DFID,17/04/2014,Storage & Distribution costs ,Western Asia and Stabilisation Division ,PICKFORDS LTD ,100185-101 ,"2,448.75",
DFID,DFID,17/04/2014,FCO shared service charges ,East and Central Africa ,FCO SERVICES ,100227-101 ,714.46,
DFID,DFID,17/04/2014,Project delivery costs - supplier services ,Western Asia and Stabilisation Division ,Sterling International Group  LLC ,204310-101 ,"150,000.00",
DFID,DFID,17/04/2014,Aid Programme - Accountable Grant Payments ,Asia  Caribbean and Overseas Territories ,ACTION AID INTERNATIONAL ,203400-104 ,"175,879.00",
DFID,DFID,17/04/2014,Project delivery costs - supplier services ,West and Southern Africa ,Odete da Graca Semiao ,201791-103 ,"3,887.56",
DFID,DFID,17/04/2014,Project delivery costs - supplier services ,Western Asia and Stabilisation Division ,Crown Agents. ,204308-105 ,"19,528.51",
DFID,DFID,17/04/2014,Project delivery costs - supplier services ,Western Asia and Stabilisation Division ,Crown Agents. ,204308-105 ,"29,109.16",
DFID,DFID,17/04/2014,Project delivery costs - supplier services ,Western Asia and Stabilisation Division ,Tsamota ,204304-103 ,"16,796.08",
DFID,DFID,17/04/2014,Project delivery costs - supplier services ,Western Asia and Stabilisation Division ,Tsamota ,204304-103 ,"113,824.40",
DFID,DFID,17/04/2014,FCO shared service charges ,Human Resources ,Cabinet Office RM Shared Services ,100269-151 ,"15,307.00",
DFID,DFID,17/04/2014,Government Car Scheme UK ,Top Management Group ,FCO SERVICES ,100232-108 ,"3,545.20",
DFID,DFID,17/04/2014,Project delivery costs - supplier services ,Asia  Caribbean and Overseas Territories ,ADAM SMITH INTERNATIONAL  LTD ,114234-102 ,"7,703.00",
DFID,DFID,17/04/2014,Storage & Distribution costs ,West and Southern Africa ,PICKFORDS LTD ,101610-101 ,"4,650.04",
DFID,DFID,17/04/2014,Data Network - land lines ,West and Southern Africa ,TV Cabo Comunicacoes Multimedia ,101620-101 ,729.87,
DFID,DFID,17/04/2014,Hotels - Accommodation only ,Asia  Caribbean and Overseas Territories ,Recipient name withheld ,203035-102 ,629.87,
DFID,DFID,17/04/2014,Data Network - land lines ,East and Central Africa ,CallKey (E.A) Ltd ,202913-104 ,"1,346.92",
DFID,DFID,17/04/2014,Project delivery costs - supplier services ,East and Central Africa ,John Graham Carrington ,200250-111 ,895.87,
DFID,DFID,17/04/2014,Project delivery costs - supplier services ,East and Central Africa ,John Graham Carrington ,200250-111 ,"3,396.50",
DFID,DFID,17/04/2014,Aid Programme - Poverty Reduction Budget Support ,West and Southern Africa ,Ministry of Finance and Economic Development Sierra Leone ,203585-101 ,"2,937,500.00",
DFID,DFID,17/04/2014,Aid Programme - Other Financial Aid to Government ,Asia  Caribbean and Overseas Territories ,Government of Montserrat - Montserrat Budget Support Grant ,203896-101 ,"377,700.00",
DFID,DFID,17/04/2014,Repairs  Maint  Alter - Property & Constrct. Services ,West and Southern Africa ,Circuit Board (Nig) Ltd ,101622-105 ,"3,566.45",
DFID,DFID,17/04/2014,Aid Programme - Accountable Grant Payments ,East and Central Africa ,THE AEGIS TRUST ,203923-101 ,"353,011.00",
DFID,DFID,17/04/2014,Project delivery costs - supplier services ,Group Operations ,EVAC+CHAIR INTERNATIONAL LTD ,100106-101 ,780.00,
DFID,DFID,17/04/2014,Operating Lease rental of buildings ,Asia  Caribbean and Overseas Territories ,CENTRAL BUILDING LTD ,101636-101 ,"114,101.59",DFID Vietnam office rental and management fee (01 Apr 2014 to 31 Mar 2015)
DFID,DFID,17/04/2014,Government Car Scheme UK ,Top Management Group ,FCO SERVICES ,100232-106 ,"7,090.40",
DFID,DFID,17/04/2014,Aid Programme - Other Financial Aid to Government ,East and Central Africa ,Ministry of Finance Tanzania  (BRN) ,202770-101 ,"1,350,000.00",
DFID,DFID,17/04/2014,Computer software maintenance ,Research and Evidence Division ,Tableau Ireland Company ,100039-114 ,955.04,
DFID,DFID,17/04/2014,Project delivery costs - supplier services ,West and Southern Africa ,DAI Europe ,201958-102 ,"44,239.79",
DFID,DFID,17/04/2014,Aid Programme - Core contributions ,International Relations Division ,UN World Food Programme ,203707-108 ,"252,064.15",
DFID,DFID,17/04/2014,Project delivery costs - supplier services ,East and Central Africa ,Susanna Gable ,202913-101 ,"15,681.21",
DFID,DFID,17/04/2014,Data Network - land lines ,Business Solutions Division Level ,Level 3 ,200002-117 ,"12,103.66",
DFID,DFID,17/04/2014,Project delivery costs - supplier services ,Policy Division ,TRIPLE LINE CONSULTING LTD ,202035-101 ,"181,765.21",
DFID,DFID,17/04/2014,Project delivery costs - supplier services ,West and Southern Africa ,FAD GLOBAL SERVICES ,204438-101 ,"9,654.00",
DFID,DFID,17/04/2014,Training - Course Fees ,West and Southern Africa ,LINGUARAMA ,101610-101 ,"4,950.76",
DFID,DFID,17/04/2014,Data Network - land lines ,Business Solutions Division Level ,Vodacom Business Nigeria USD ,203329-102 ,575.90,
DFID,DFID,17/04/2014,Data Network - land lines ,Business Solutions Division Level ,Vodacom Business Nigeria USD ,203329-102 ,"1,041.15",
DFID,DFID,17/04/2014,Project delivery costs - supplier services ,West and Southern Africa ,Armitage Consultants ,202370-103 ,"2,250.00",
DFID,DFID,17/04/2014,Data Network - land lines ,Business Solutions Division Level ,Vodacom Business Nigeria USD ,200002-121 ,"2,021.07",
DFID,DFID,17/04/2014,Data Network - land lines ,Business Solutions Division Level ,Vodacom Business Nigeria USD ,200002-121 ,"1,117.91",
DFID,DFID,17/04/2014,Aid Programme - Accountable Grant Payments ,East and Central Africa ,THE SAVE THE CHILDREN FUND ,203775-111 ,"555,576.00",
DFID,DFID,17/04/2014,Aid Programme - Humanitarian Material Relief Assistance and Services ,Conflict Humanitarian and Security Division ,CFOA National Resilience Ltd ,203423-101 ,"62,246.25",
DFID,DFID,17/04/2014,Project delivery costs - supplier services ,Policy Division ,OXFORD POLICY MANAGEMENT ,201055-102 ,"2,664.00",
DFID,DFID,17/04/2014,Project delivery costs - supplier services ,East and Central Africa ,Mannion Daniels Limited ,202547-104 ,"11,087.98",
DFID,DFID,17/04/2014,Project delivery costs - supplier services ,East and Central Africa ,THE POLICY PRACTICE LTD ,203927-101 ,"9,498.72",
DFID,DFID,17/04/2014,Project delivery costs - supplier services ,West and Southern Africa ,HTSPE LTD ,200681-101 ,"316,359.91",
DFID,DFID,17/04/2014,Project delivery costs - supplier services ,West and Southern Africa ,Deutsche Gesellschaft für Internationale Zusammenarbeit (GIZ) GmbH ,104187-103 ,"84,073.02",
DFID,DFID,17/04/2014,Legal costs ,West and Southern Africa ,Marriott Davies Yapp LLP ,203161-105 ,"1,771.20",
DFID,DFID,17/04/2014,Legal costs ,West and Southern Africa ,Marriott Davies Yapp LLP ,203161-105 ,"8,400.00",
DFID,DFID,17/04/2014,Aid Programme - Accountable Grant Payments ,West and Southern Africa ,CAMFED ,203292-101 ,"694,255.00",
DFID,DFID,17/04/2014,Project delivery costs - supplier services ,Research and Evidence Division ,CAB INTERNATIONAL ,112152-102 ,"39,669.53",
DFID,DFID,17/04/2014,Project delivery costs - supplier services ,West and Southern Africa ,HTSPE LTD ,201944-104 ,"81,638.29",
DFID,DFID,17/04/2014,Legal costs ,East and Central Africa ,Marriott Davies Yapp LLP ,203469-102 ,"10,100.00",
DFID,DFID,17/04/2014,Project delivery costs - supplier services ,West and Southern Africa ,Michael Brewin ,202978-103 ,"7,375.04",
DFID,DFID,17/04/2014,Project delivery costs - supplier services ,East and Central Africa ,OXFORD POLICY MANAGEMENT ,202974-103 ,"12,805.00",
DFID,DFID,18/04/2014,Storage & Distribution costs ,East and Central Africa ,PICKFORDS LTD ,101633-101 ,"7,430.84",
DFID,DFID,19/04/2014,Project delivery costs - supplier services ,East and Central Africa ,Crown Agents. ,203928-101 ,"1,252.00",
DFID,DFID,19/04/2014,Project delivery costs - supplier services ,East and Central Africa ,Crown Agents. ,203928-101 ,"13,130.00",
DFID,DFID,21/04/2014,Electricity ,East and Central Africa ,UMEME Ltd ,101635-101 ,759.94,
DFID,DFID,21/04/2014,Telephone Usage & services ,East and Central Africa ,MTN Uganda Ltd ,101635-101 ,599.14,
DFID,DFID,21/04/2014,Oil - Other Utilities ,Western Asia and Stabilisation Division ,Supplier Name withheld ,101601-110 ,"20,003.63",
DFID,DFID,21/04/2014,Oil - Other Utilities ,Western Asia and Stabilisation Division ,Supplier Name withheld ,100011-110 ,"1,935.83",
DFID,DFID,21/04/2014,Repairs  Maintenance and Alterations - Other Building Costs ,East and Central Africa ,Sebhatu & Sons  Security Service PLC ,202891-107 ,"1,419.28",
DFID,DFID,21/04/2014,Project delivery costs - supplier services ,East and Central Africa ,Felegebirhan Belesti Mihret ,202913-101 ,798.74,
DFID,DFID,21/04/2014,Furniture & Fittings ,East and Central Africa ,Shoa Shopping Centre ,100082-101 ,"2,319.64",
DFID,DFID,21/04/2014,Project delivery costs - supplier services ,East and Central Africa ,Arsema Solomon ,202913-101 ,798.74,
DFID,DFID,22/04/2014,Aid Programme - Trust Funds contributions ,West and Southern Africa ,IBRD (HSBC)  C/O THE WORLD BANK ,204064-101 ,"3,500,000.00",
DFID,DFID,22/04/2014,Project delivery costs - supplier services ,West and Southern Africa ,Crown Agents. ,202640-103 ,"39,254.45",
DFID,DFID,22/04/2014,Contract & Agency Staff ,Business Solutions Division Level ,OPIN SYSTEMS LIMITED ,200001-101 ,"1,920.00",
DFID,DFID,22/04/2014,Project delivery costs - supplier services ,West and Southern Africa ,Crown Agents. ,104025-101 ,"60,935.82",
DFID,DFID,22/04/2014,Aid Programme - Voluntary contributions ,Middle East & North Africa Division (MENAD) ,UNDP CONTRIBUTIONS ACCOUNT ,203351-101 ,"500,000.00",
DFID,DFID,22/04/2014,Project delivery costs - supplier services ,Conflict Humanitarian and Security Division ,Crown Agents. ,203416-101 ,"23,270.00",
DFID,DFID,22/04/2014,Project delivery costs - supplier services ,Conflict Humanitarian and Security Division ,Crown Agents. ,203416-101 ,"80,784.00",
DFID,DFID,22/04/2014,Secure Staff Accommodation ,East and Central Africa ,Supplier Name withheld ,101625-102 ,"10,765.55",
DFID,DFID,22/04/2014,Project delivery costs - supplier services ,Conflict Humanitarian and Security Division ,Crown Agents. ,203249-103 ,"24,750.00",
DFID,DFID,22/04/2014,Project delivery costs - supplier services ,Conflict Humanitarian and Security Division ,Crown Agents. ,203249-103 ,"1,719.94",
DFID,DFID,22/04/2014,Aid Programme - Accountable Grant Payments ,Policy Division ,Global Canopy Programme ,201724-114 ,"46,347.90",
DFID,DFID,22/04/2014,Hotels - Accommodation only ,East and Central Africa ,Kuriftu Resort and Spa ,203961-106 ,"9,033.09",
DFID,DFID,22/04/2014,Storage & Distribution costs ,West and Southern Africa ,PICKFORDS LTD ,101629-101 ,"4,684.68",
DFID,DFID,22/04/2014,Printer Consumables ,East and Central Africa ,Crown Agents. ,202594-101 ,"1,221.11",
DFID,DFID,22/04/2014,Training - Course Fees ,Human Resources ,Capita  Business Services ,100269-153 ,680.00,
DFID,DFID,22/04/2014,Interview expenses ,Research and Evidence Division ,Recipient name withheld ,202348-104 ,"1,350.03",
DFID,DFID,22/04/2014,Contract & Agency Staff ,Finance and Corporate Performance Division ,Anderson Knight Ltd ,200173-103 ,597.18,
DFID,DFID,22/04/2014,Air fares ,Business Solutions Division Level ,African (Wings) Travels Ltd ,200001-101 ,599.08,
DFID,DFID,22/04/2014,Office Supplies ,Group Operations ,AKROS PRINT LTD ,100182-101 ,546.00,
DFID,DFID,22/04/2014,Project delivery costs - supplier services ,Policy Division ,WCMC ,203034-105 ,"6,632.40",
DFID,DFID,22/04/2014,Secure Staff Accommodation ,West and Southern Africa ,Supplier Name withheld ,101622-105 ,"31,435.77",Secure Staff Accommodation (12 months) DFID Nigeria
DFID,DFID,22/04/2014,Hotels - Accommodation only ,West and Southern Africa ,Courtyard Hotel ,101631-101 ,514.93,
DFID,DFID,22/04/2014,Training - Travel & Subsistence ,West and Southern Africa ,British Airways PLC ,101622-106 ,700.52,
DFID,DFID,22/04/2014,Hotels - Accommodation only ,West and Southern Africa ,Supplier Name withheld ,101622-105 ,"1,431.40",
DFID,DFID,22/04/2014,Vehicle Repairs & Maintenance ,West and Southern Africa ,Recipient name withheld ,101622-105 ,838.86,
DFID,DFID,22/04/2014,Secure Staff Accommodation ,Asia  Caribbean and Overseas Territories ,Supplier Name withheld ,101603-101 ,"1,844.78",
DFID,DFID,22/04/2014,Computer Consumables ,East and Central Africa ,FCO SERVICES ,100082-101 ,"2,054.05",
DFID,DFID,22/04/2014,Telephone Usage & services ,East and Central Africa ,VODACOM TANZANIA LTD ,100230-101 ,"1,488.40",
DFID,DFID,22/04/2014,Facilities Management payments ,East and Central Africa ,KILLPESTS CHEMICAL (T) LTD ,101634-101 ,"1,348.66",
DFID,DFID,22/04/2014,Project delivery costs - supplier services ,West and Southern Africa ,Crown Agents. ,114206-102 ,"2,760.17",
DFID,DFID,22/04/2014,Project delivery costs - supplier services ,West and Southern Africa ,Crown Agents. ,114206-102 ,"20,750.98",
DFID,DFID,22/04/2014,Aid Programme - Accountable Grant Payments ,East and Central Africa ,NORWEGIAN PEOPLE'S AID(NPA) ,203738-101 ,"285,210.65",
DFID,DFID,22/04/2014,Training Providers/Facilitation Services ,International Finance Division ,Pilgrims Group ,100098-101 ,540.00,
DFID,DFID,22/04/2014,Training Providers/Facilitation Services ,International Finance Division ,Pilgrims Group ,100098-101 ,"5,630.70",
DFID,DFID,22/04/2014,Storage & Distribution costs ,East and Central Africa ,PICKFORDS LTD ,101635-101 ,"1,029.89",
DFID,DFID,22/04/2014,Project delivery costs - supplier services ,Western Asia and Stabilisation Division ,Sarah Saeed ,113484-106 ,"2,345.65",
DFID,DFID,22/04/2014,Aid Programme - Programme Contribution ,Asia  Caribbean and Overseas Territories ,CPS ,203478-104 ,"65,000.00",
DFID,DFID,22/04/2014,Aid Programme - Other Financial Aid to Government ,Asia  Caribbean and Overseas Territories ,Ministry of Finance and Planning Jamaica  Financial Investigation Division ,203478-102 ,"20,000.00",
DFID,DFID,22/04/2014,Project delivery costs - supplier services ,West and Southern Africa ,Paul Deverill ,201123-102 ,"7,647.54",
DFID,DFID,22/04/2014,Contract & Agency Staff ,Finance and Corporate Performance Division ,Hays Specialist Recruitment Ltd ,100201-101 ,"1,507.74",
DFID,DFID,22/04/2014,Contract & Agency Staff ,Finance and Corporate Performance Division ,Hays Specialist Recruitment Ltd ,100201-101 ,"1,507.74",
DFID,DFID,22/04/2014,Aid Programme - Voluntary contributions ,East and Central Africa ,UNDP CONTRIBUTIONS ACCOUNT ,202821-102 ,"1,352,319.00",
DFID,DFID,22/04/2014,Storage & Distribution costs ,West and Southern Africa ,Worldwide Movers Ltd ,202051-104 ,767.96,
DFID,DFID,22/04/2014,Project delivery costs - supplier services ,Finance and Corporate Performance Division ,ATOS CONSULTING LIMITED ,204296-103 ,"6,860.00",
DFID,DFID,22/04/2014,Storage & Distribution costs ,East and Central Africa ,Green International Logistics Service PLC ,202891-109 ,"26,171.14",
DFID,DFID,22/04/2014,Project delivery costs - supplier services ,Western Asia and Stabilisation Division ,Hampshire Police Authority ,204309-101 ,"6,676.39",
DFID,DFID,22/04/2014,Legal costs ,Western Asia and Stabilisation Division ,Crown Agents. ,204309-101 ,"3,225.92",
DFID,DFID,22/04/2014,Relocation costs ,East and Central Africa ,PICKFORDS LTD ,101628-101 ,"6,224.48",
DFID,DFID,22/04/2014,Aid Programme - Humanitarian Material Relief Assistance and Services ,Conflict Humanitarian and Security Division ,Crown Agents. ,204351-101 ,"6,943.20",
DFID,DFID,22/04/2014,Aid Programme - Humanitarian Material Relief Assistance and Services ,Conflict Humanitarian and Security Division ,Crown Agents. ,204351-101 ,"25,754.16",
DFID,DFID,22/04/2014,Aid Programme - Humanitarian Material Relief Assistance and Services ,Conflict Humanitarian and Security Division ,Crown Agents. ,204351-101 ,"2,124.00",
DFID,DFID,22/04/2014,Project delivery costs - supplier services ,West and Southern Africa ,Crown Agents. ,202416-103 ,"28,482.00",
DFID,DFID,22/04/2014,Project delivery costs - supplier services ,Western Asia and Stabilisation Division ,Crown Agents. ,203942-103 ,"7,786.80",
DFID,DFID,22/04/2014,Legal costs ,West and Southern Africa ,TREASURY SOLICITORS CASH ACC ,101613-101 ,738.00,
DFID,DFID,22/04/2014,Air fares ,West and Southern Africa ,DANA Agency ,101620-101 ,"1,409.28",
DFID,DFID,22/04/2014,Training - Travel & Subsistence ,Western Asia and Stabilisation Division ,BONDS TRAVEL BUREAU ,101624-101 ,836.17,
DFID,DFID,22/04/2014,Project delivery costs - supplier services ,Conflict Humanitarian and Security Division ,THE HALO TRUST ,201745-105 ,"158,032.00",
DFID,DFID,22/04/2014,Project delivery costs - supplier services ,Western Asia and Stabilisation Division ,Crown Agents. ,203939-101 ,"2,121.00",
DFID,DFID,22/04/2014,Project delivery costs - supplier services ,Western Asia and Stabilisation Division ,Crown Agents. ,203940-104 ,"75,474.98",
DFID,DFID,22/04/2014,Hotels - Accommodation only ,Policy Division ,Southern Sun Hotels(T) Ltd (USD) ,202373-101 ,742.82,
DFID,DFID,22/04/2014,Contract & Agency Staff ,Finance and Corporate Performance Division ,Hays Specialist Recruitment Ltd ,100008-101 ,"1,684.98",
DFID,DFID,22/04/2014,Training Providers/Facilitation Services ,Finance and Corporate Performance Division ,Capita  Business Services ,100201-101 ,"1,829.27",
DFID,DFID,22/04/2014,Legal costs ,Business Change and Strategy Division ,TREASURY SOLICITORS CASH ACC ,100225-101 ,"1,414.50",
DFID,DFID,22/04/2014,Project delivery costs - supplier services ,Western Asia and Stabilisation Division ,Crown Agents. ,203940-104 ,"5,174.87",
DFID,DFID,22/04/2014,Project delivery costs - supplier services ,Western Asia and Stabilisation Division ,Crown Agents. ,203942-101 ,"3,030.00",
DFID,DFID,22/04/2014,Project delivery costs - supplier services ,Western Asia and Stabilisation Division ,Crown Agents. ,203938-101 ,"1,443.16",
DFID,DFID,22/04/2014,Project delivery costs - supplier services ,East and Central Africa ,Monalety Services ,204258-101 ,562.48,
DFID,DFID,22/04/2014,Project delivery costs - supplier services ,East and Central Africa ,Johnson Ngutta Mwambanga ,204258-101 ,"3,740.80",
DFID,DFID,22/04/2014,Project delivery costs - supplier services ,West and Southern Africa ,Pranvera Kirkbride ,202742-101 ,"4,050.76",
DFID,DFID,22/04/2014,Project delivery costs - supplier services ,Middle East & North Africa Division (MENAD) ,COFFEY INTERNATIONAL DEVELOPMENT LTD ,204325-101 ,"61,101.50",
DFID,DFID,22/04/2014,Project delivery costs - supplier services ,Middle East & North Africa Division (MENAD) ,COFFEY INTERNATIONAL DEVELOPMENT LTD ,204325-101 ,"43,762.42",
DFID,DFID,22/04/2014,Project delivery costs - supplier services ,Asia  Caribbean and Overseas Territories ,DAI Europe ,203186-104 ,"59,578.40",
DFID,DFID,22/04/2014,Secure Staff Accommodation ,Asia  Caribbean and Overseas Territories ,Supplier Name withheld ,100025-101 ,"1,556.53",
DFID,DFID,22/04/2014,Secure Staff Accommodation ,Asia  Caribbean and Overseas Territories ,Supplier Name withheld ,101603-101 ,"3,228.36",
DFID,DFID,22/04/2014,Electricity ,Asia  Caribbean and Overseas Territories ,British High Commission (Dhaka) ,101603-101 ,960.41,
DFID,DFID,22/04/2014,Project delivery costs - supplier services ,West and Southern Africa , Damian Kofi Mereku ,103269-101 ,"1,499.68",
DFID,DFID,22/04/2014,Furniture & Fittings ,Group Operations ,J S  SEATING LIMITED ,203716-101 ,559.99,
DFID,DFID,22/04/2014,Hotels - Accommodation only ,Western Asia and Stabilisation Division ,Recipient name withheld ,101624-101 ,"1,434.54",
DFID,DFID,22/04/2014,Project delivery costs - supplier services ,East and Central Africa ,I T TRANSPORT LTD ,203596-101 ,"8,391.99",
DFID,DFID,22/04/2014,Project delivery costs - supplier services ,East and Central Africa ,I T TRANSPORT LTD ,203596-101 ,"24,972.04",
DFID,DFID,22/04/2014,Aid Programme - Accountable Grant Payments ,Research and Evidence Division ,INASP ,203962-101 ,"351,751.56",
DFID,DFID,22/04/2014,Project delivery costs - supplier services ,Business Solutions Division Level ,SCC Ltd ,200005-112 ,"5,263.84",
DFID,DFID,22/04/2014,Project delivery costs - supplier services ,East and Central Africa ,CHARLES KENDALL & PARTNERS LIMITED (PROCUREMENT) ,202547-103 ,549.59,
DFID,DFID,22/04/2014,Contraceptives ,East and Central Africa ,CHARLES KENDALL & PARTNERS LIMITED (PROCUREMENT) ,202547-103 ,"15,702.44",
DFID,DFID,22/04/2014,Aid Programme - Accountable Grant Payments ,Middle East & North Africa Division (MENAD) ,Business Development Center ,203236-106 ,"17,823.16",
DFID,DFID,22/04/2014,Storage & Distribution costs ,Business Solutions Division Level ,TNT Express (UK) Ltd ,200001-101 ,"4,694.47",
DFID,DFID,22/04/2014,Project delivery costs - supplier services ,West and Southern Africa ,SAANA CONSULTING LTD ,114050-101 ,"29,512.20",
DFID,DFID,22/04/2014,DFID Purchased Relief Supplies ,West and Southern Africa ,CHARLES KENDALL & PARTNERS LIMITED (PROCUREMENT) ,202214-106 ,"79,353.03",
DFID,DFID,22/04/2014,Project delivery costs - supplier services ,East and Central Africa ,Gayathri Butler ,202347-103 ,"3,850.00",
DFID,DFID,22/04/2014,Project delivery costs - supplier services ,Asia  Caribbean and Overseas Territories ,IMC Worldwide Ltd. ,203186-102 ,"1,263,769.20",
DFID,DFID,22/04/2014,Project delivery costs - supplier services ,Asia  Caribbean and Overseas Territories ,IMC Worldwide Ltd. ,203186-103 ,"151,627.98",
DFID,DFID,22/04/2014,Project delivery costs - supplier services ,West and Southern Africa ,CHARLES KENDALL & PARTNERS LIMITED (PROCUREMENT) ,113961-106 ,"59,155.94",
DFID,DFID,23/04/2014,Hostile Environment Training ,East and Central Africa ,Pilgrims Group ,101625-102 ,580.97,
DFID,DFID,23/04/2014,Aid Programme - Other Financial Aid to Government ,Asia  Caribbean and Overseas Territories ,St Helena Department of Finance ,203955-102 ,"1,340,000.00",
DFID,DFID,23/04/2014,Aid Programme - Other Financial Aid to Government ,Asia  Caribbean and Overseas Territories ,St Helena Department of Finance ,203955-101 ,"4,516,666.00",
DFID,DFID,23/04/2014,Project delivery costs - supplier services ,West and Southern Africa ,Futures Group Europe ,202819-102 ,"100,766.47",
DFID,DFID,23/04/2014,Recruitment costs ,Human Resources ,Hays Specialist Recruitment Ltd ,100270-106 ,"1,080.00",
DFID,DFID,23/04/2014,Generators & spares ,West and Southern Africa ,NP (SL) Ltd ,100214-101 ,"1,560.81",
DFID,DFID,23/04/2014,Generators & spares ,West and Southern Africa ,NP (SL) Ltd ,101629-101 ,"3,641.88",
DFID,DFID,23/04/2014,Aid Programme - Joint programme contribution ,Asia  Caribbean and Overseas Territories ,Deutsche Gesellschaft fuer Internationale Zusammenarbeit (GIZ) GmbH ,203227-101 ,"948,422.57",
DFID,DFID,23/04/2014,Training - Course Fees ,Human Resources ,Capita  Business Services ,100269-158 ,"1,250.00",
DFID,DFID,23/04/2014,Storage & Distribution costs ,West and Southern Africa ,PICKFORDS LTD ,101622-101 ,"11,095.35",
DFID,DFID,23/04/2014,Storage & Distribution costs ,West and Southern Africa ,PICKFORDS LTD ,101622-101 ,"3,654.76",
DFID,DFID,23/04/2014,Hostile Environment Training ,West and Southern Africa ,Pilgrims Group ,101622-106 ,"1,483.50",
DFID,DFID,23/04/2014,Hotels - Accommodation only ,West and Southern Africa ,Harvey World Travel Centurion ,101631-101 ,582.16,
DFID,DFID,23/04/2014,Vehicle Repairs & Maintenance ,West and Southern Africa ,Ubeeco Procurement Services Ltd ,100152-110 ,"1,523.16",
DFID,DFID,23/04/2014,Hotels - Accommodation only ,West and Southern Africa ,Supplier Name withheld ,101622-105 ,964.51,
DFID,DFID,23/04/2014,Project delivery costs - supplier services ,West and Southern Africa ,Tiwai Memory Masters Dollar ,203585-102 ,"7,678.57",
DFID,DFID,23/04/2014,Project delivery costs - supplier services ,West and Southern Africa ,United Nassar Motors ,203861-102 ,"5,411.80",
DFID,DFID,23/04/2014,Project delivery costs - supplier services ,West and Southern Africa ,MSI ,202656-101 ,"289,849.00",
DFID,DFID,23/04/2014,Other non-passenger transportation ,Asia  Caribbean and Overseas Territories ,G4S FACILITY SERVICES (INDIA) PVT. L ,201689-105 ,"2,935.96",
DFID,DFID,23/04/2014,Contract Catering Services ,Asia  Caribbean and Overseas Territories ,NARINDER PAL SINGH ,201689-105 ,635.34,
DFID,DFID,23/04/2014,Project delivery costs - supplier services ,Asia  Caribbean and Overseas Territories ,SAMBODHI RESEARCH AND ,203455-101 ,"11,051.77",
DFID,DFID,23/04/2014,Storage & Distribution costs ,Western Asia and Stabilisation Division ,Supplier Name withheld ,100011-110 ,"2,807.38",
DFID,DFID,23/04/2014,Aid Programme - Poverty Reduction Budget Support ,East and Central Africa ,Rwanda Education Sector Delivery Grant 2011-14 ,202377-101 ,"1,883,420.00",
DFID,DFID,23/04/2014,Vehicle Repairs & Maintenance ,Asia  Caribbean and Overseas Territories ,Eco Vision ,101621-103 ,623.24,
DFID,DFID,23/04/2014,Project delivery costs - supplier services ,West and Southern Africa ,Charles Kendall & Partners ,202214-103 ,"11,380.39",
DFID,DFID,23/04/2014,Hotels - Accommodation only ,West and Southern Africa ,The Country Lodge Complex ,101629-101 ,588.09,
DFID,DFID,23/04/2014,Aid Programme - Accountable Grant Payments ,Asia  Caribbean and Overseas Territories ,INTERNATIONAL RESCUE COMMITTEE UK ,203400-102 ,"251,557.00",
DFID,DFID,23/04/2014,Print Services ,West and Southern Africa ,Publifix  Publicidade e Servicos ,103993-102 ,"3,334.47",
DFID,DFID,23/04/2014,Contract & Agency Staff ,Finance and Corporate Performance Division ,Hays Specialist Recruitment Ltd ,100201-101 ,691.20,
DFID,DFID,23/04/2014,Contract & Agency Staff ,Finance and Corporate Performance Division ,Hays Specialist Recruitment Ltd ,100201-101 ,"1,152.00",
DFID,DFID,23/04/2014,Contract & Agency Staff ,Finance and Corporate Performance Division ,Hays Specialist Recruitment Ltd ,100201-101 ,"1,152.00",
DFID,DFID,23/04/2014,Project delivery costs - supplier services ,East and Central Africa ,ADAM SMITH INTERNATIONAL  LTD ,202698-101 ,"6,926.64",
DFID,DFID,23/04/2014,Project delivery costs - supplier services ,West and Southern Africa ,Sara Emilia Taibo ,201791-103 ,"1,653.35",
DFID,DFID,23/04/2014,Data network- remote working ,West and Southern Africa ,Skyband Corporation LTD ,100144-101 ,"1,988.27",
DFID,DFID,23/04/2014,Project delivery costs - supplier services ,West and Southern Africa ,ACIS - Associacao de Comercio e Industria ,114255-101 ,"31,194.64",
DFID,DFID,23/04/2014,Aid Programme - Core contributions ,International Relations Division ,UN WOMEN ,202723-101 ,"5,000,000.00",
DFID,DFID,23/04/2014,Aid Programme - Core contributions ,International Relations Division ,UN WOMEN ,202723-103 ,"1,250,000.00",
DFID,DFID,23/04/2014,Air fares ,Top Management Group ,Corporate Travel Provider ,100232-108 ,"3,175.25",
DFID,DFID,23/04/2014,Air fares ,Top Management Group ,Corporate Travel Provider ,100232-108 ,"3,175.25",
DFID,DFID,23/04/2014,Air fares ,Middle East & North Africa Division (MENAD) ,Corporate Travel Provider ,204084-101 ,589.50,
DFID,DFID,23/04/2014,Hotels - Accommodation only ,Policy Division ,Corporate Travel Provider ,100277-101 ,"1,003.80",
DFID,DFID,23/04/2014,Air fares ,International Relations Division ,Corporate Travel Provider ,100262-101 ,572.27,
DFID,DFID,23/04/2014,Air fares ,International Relations Division ,Corporate Travel Provider ,100262-101 ,"2,294.95",
DFID,DFID,23/04/2014,Air fares ,International Relations Division ,Corporate Travel Provider ,100262-101 ,585.76,
DFID,DFID,23/04/2014,Air fares ,International Relations Division ,Corporate Travel Provider ,100262-101 ,"1,029.10",
DFID,DFID,23/04/2014,Air fares ,Research and Evidence Division ,Corporate Travel Provider ,100039-108 ,502.30,
DFID,DFID,23/04/2014,Project delivery costs - supplier services ,Asia  Caribbean and Overseas Territories ,SIDBI MUMBAI ,114293-103 ,"66,200.50",
DFID,DFID,23/04/2014,Project delivery costs - supplier services ,Asia  Caribbean and Overseas Territories ,SIDBI MUMBAI ,114293-103 ,"10,223.98",
DFID,DFID,23/04/2014,Project delivery costs - supplier services ,Research and Evidence Division ,PRICEWATERHOUSECOOPERS ,200822-101 ,"28,247.56",
DFID,DFID,23/04/2014,Air fares ,Asia  Caribbean and Overseas Territories ,Corporate Travel Provider ,101605-101 ,767.45,
DFID,DFID,23/04/2014,Air fares ,West and Southern Africa ,Corporate Travel Provider ,101610-101 ,767.20,
DFID,DFID,23/04/2014,Air fares ,West and Southern Africa ,Corporate Travel Provider ,101610-101 ,"1,233.30",
DFID,DFID,23/04/2014,Air fares ,West and Southern Africa ,Corporate Travel Provider ,101610-101 ,503.90,
DFID,DFID,23/04/2014,Air fares ,West and Southern Africa ,Corporate Travel Provider ,101610-101 ,503.90,
DFID,DFID,23/04/2014,Air fares ,West and Southern Africa ,Corporate Travel Provider ,101610-101 ,911.73,
DFID,DFID,23/04/2014,Air fares ,West and Southern Africa ,Corporate Travel Provider ,101610-101 ,974.30,
DFID,DFID,23/04/2014,Air fares ,West and Southern Africa ,Corporate Travel Provider ,101610-101 ,"2,596.15",
DFID,DFID,23/04/2014,Air fares ,West and Southern Africa ,Corporate Travel Provider ,101610-101 ,"1,233.30",
DFID,DFID,23/04/2014,Air fares ,West and Southern Africa ,Corporate Travel Provider ,101610-101 ,743.05,
DFID,DFID,23/04/2014,Air fares ,West and Southern Africa ,Corporate Travel Provider ,101610-101 ,588.94,
DFID,DFID,23/04/2014,Air fares ,West and Southern Africa ,Corporate Travel Provider ,101610-101 ,703.24,
DFID,DFID,23/04/2014,Air fares ,West and Southern Africa ,Corporate Travel Provider ,101610-101 ,853.05,
DFID,DFID,23/04/2014,Air fares ,West and Southern Africa ,Corporate Travel Provider ,101610-101 ,743.05,
DFID,DFID,23/04/2014,Air fares ,West and Southern Africa ,Corporate Travel Provider ,101610-101 ,853.05,
DFID,DFID,23/04/2014,Air fares ,West and Southern Africa ,Corporate Travel Provider ,101610-101 ,"2,596.15",
DFID,DFID,23/04/2014,Storage & Distribution costs ,West and Southern Africa ,PICKFORDS LTD ,101610-101 ,"7,613.57",
DFID,DFID,23/04/2014,Hotels - Accommodation only ,Asia  Caribbean and Overseas Territories ,Recipient name withheld ,101611-101 ,902.51,
DFID,DFID,23/04/2014,UK Staff overseas - Flexi Travel Allowance ,East and Central Africa ,Corporate Travel Provider ,101612-101 ,"1,711.82",
DFID,DFID,23/04/2014,UK Staff overseas - Flexi Travel Allowance ,East and Central Africa ,Corporate Travel Provider ,101612-101 ,"1,711.82",
DFID,DFID,23/04/2014,UK Staff overseas - Flexi Travel Allowance ,East and Central Africa ,Corporate Travel Provider ,101612-101 ,"1,374.82",
DFID,DFID,23/04/2014,Air fares ,Asia  Caribbean and Overseas Territories ,Corporate Travel Provider ,101615-101 ,506.68,
DFID,DFID,23/04/2014,Air fares ,West and Southern Africa ,Corporate Travel Provider ,101618-101 ,938.25,
DFID,DFID,23/04/2014,Air fares ,West and Southern Africa ,Corporate Travel Provider ,101618-101 ,938.25,
DFID,DFID,23/04/2014,Air fares ,West and Southern Africa ,Corporate Travel Provider ,101618-101 ,938.25,
DFID,DFID,23/04/2014,Air fares ,West and Southern Africa ,Corporate Travel Provider ,101618-101 ,"1,087.25",
DFID,DFID,23/04/2014,Air fares ,West and Southern Africa ,Corporate Travel Provider ,101618-101 ,"1,080.15",
DFID,DFID,23/04/2014,Air fares ,Middle East & North Africa Division (MENAD) ,Corporate Travel Provider ,101619-101 ,550.41,
DFID,DFID,23/04/2014,Air fares ,West and Southern Africa ,Corporate Travel Provider ,101620-101 ,847.83,
DFID,DFID,23/04/2014,Air fares ,West and Southern Africa ,Corporate Travel Provider ,101620-101 ,847.83,
DFID,DFID,23/04/2014,UK Staff overseas - Flexi Travel Allowance ,West and Southern Africa ,Corporate Travel Provider ,101620-101 ,592.75,
DFID,DFID,23/04/2014,Air fares ,West and Southern Africa ,Supplier Name withheld ,101622-101 ,753.39,
DFID,DFID,23/04/2014,Air fares ,West and Southern Africa ,Supplier Name withheld ,101622-101 ,708.85,
DFID,DFID,23/04/2014,Air fares ,Western Asia and Stabilisation Division ,Corporate Travel Provider ,101624-101 ,755.65,
DFID,DFID,23/04/2014,Air fares ,Western Asia and Stabilisation Division ,Corporate Travel Provider ,101624-101 ,575.30,
DFID,DFID,23/04/2014,Air fares ,Western Asia and Stabilisation Division ,Corporate Travel Provider ,101624-101 ,575.30,
DFID,DFID,23/04/2014,Air fares ,East and Central Africa ,Corporate Travel Provider ,101625-101 ,587.84,
DFID,DFID,23/04/2014,Hotels - Accommodation only ,East and Central Africa ,Corporate Travel Provider ,101628-101 ,878.19,
DFID,DFID,23/04/2014,Generators & spares ,West and Southern Africa ,Abrahim A H Daklalah ($) ,101629-101 ,595.24,
DFID,DFID,23/04/2014,Generators & spares ,West and Southern Africa ,Tommy Kaitibie ,101629-101 ,710.58,
DFID,DFID,23/04/2014,Vehicle Petrol & Oil ,West and Southern Africa ,British High Commission ,101629-101 ,766.03,
DFID,DFID,23/04/2014,Air fares ,West and Southern Africa ,Corporate Travel Provider ,101629-101 ,683.65,
DFID,DFID,23/04/2014,Air fares ,West and Southern Africa ,Corporate Travel Provider ,101629-101 ,719.85,
DFID,DFID,23/04/2014,Air fares ,West and Southern Africa ,Corporate Travel Provider ,101629-101 ,832.05,
DFID,DFID,23/04/2014,Air fares ,Policy Division ,Corporate Travel Provider ,100274-108 ,887.95,
DFID,DFID,23/04/2014,Project delivery costs - supplier services ,Asia  Caribbean and Overseas Territories ,Futures Group Europe ,203455-101 ,"303,396.27",
DFID,DFID,23/04/2014,Project delivery costs - supplier services ,Asia  Caribbean and Overseas Territories ,Futures Group Europe ,203455-101 ,"177,606.00",
DFID,DFID,23/04/2014,Project delivery costs - supplier services ,Asia  Caribbean and Overseas Territories ,Futures Group Europe ,203455-101 ,"71,042.00",
DFID,DFID,23/04/2014,Air fares ,Asia  Caribbean and Overseas Territories ,Corporate Travel Provider ,201739-101 ,701.99,
DFID,DFID,23/04/2014,Air fares ,Asia  Caribbean and Overseas Territories ,Corporate Travel Provider ,201739-101 ,832.79,
DFID,DFID,23/04/2014,Project delivery costs - supplier services ,East and Central Africa ,Crown Agents Bank ,202657-106 ,"87,054.54",
DFID,DFID,23/04/2014,Air fares ,Western Asia and Stabilisation Division ,Corporate Travel Provider ,100011-110 ,"1,631.58",
DFID,DFID,23/04/2014,Air fares ,Research and Evidence Division ,Corporate Travel Provider ,203874-102 ,"1,118.24",
DFID,DFID,23/04/2014,Air fares ,Research and Evidence Division ,Corporate Travel Provider ,203874-102 ,560.08,
DFID,DFID,23/04/2014,Air fares ,Research and Evidence Division ,Corporate Travel Provider ,203874-102 ,"1,118.24",
DFID,DFID,23/04/2014,Air fares ,Research and Evidence Division ,Corporate Travel Provider ,202392-104 ,752.59,
DFID,DFID,23/04/2014,Air fares ,Research and Evidence Division ,Corporate Travel Provider ,202392-104 ,857.00,
DFID,DFID,23/04/2014,Air fares ,Research and Evidence Division ,Corporate Travel Provider ,202392-104 ,677.83,
DFID,DFID,23/04/2014,Air fares ,Asia  Caribbean and Overseas Territories ,Corporate Travel Provider ,202403-101 ,746.85,
DFID,DFID,23/04/2014,Hotels - Accommodation only ,Asia  Caribbean and Overseas Territories ,Corporate Travel Provider ,202403-101 ,691.85,
DFID,DFID,23/04/2014,Air fares ,Asia  Caribbean and Overseas Territories ,Corporate Travel Provider ,202403-101 ,"1,051.16",
DFID,DFID,23/04/2014,Air fares ,West and Southern Africa ,Supplier Name withheld ,101622-106 ,"1,520.51",
DFID,DFID,23/04/2014,Air fares ,West and Southern Africa ,Supplier Name withheld ,101622-106 ,"1,052.85",
DFID,DFID,23/04/2014,Air fares ,West and Southern Africa ,Supplier Name withheld ,101622-106 ,536.10,
DFID,DFID,23/04/2014,Air fares ,West and Southern Africa ,Supplier Name withheld ,101622-106 ,"1,653.91",
DFID,DFID,23/04/2014,Air fares ,West and Southern Africa ,Supplier Name withheld ,101622-106 ,845.43,
DFID,DFID,23/04/2014,Air fares ,West and Southern Africa ,Supplier Name withheld ,101622-106 ,"1,520.51",
DFID,DFID,23/04/2014,Air fares ,West and Southern Africa ,Supplier Name withheld ,101622-106 ,822.25,
DFID,DFID,23/04/2014,Air fares ,West and Southern Africa ,Supplier Name withheld ,101622-106 ,"1,357.81",
DFID,DFID,23/04/2014,Air fares ,West and Southern Africa ,Supplier Name withheld ,101622-106 ,"1,615.95",
DFID,DFID,23/04/2014,Air fares ,West and Southern Africa ,Supplier Name withheld ,101622-106 ,"1,357.81",
DFID,DFID,23/04/2014,Air fares ,West and Southern Africa ,Supplier Name withheld ,101622-106 ,536.10,
DFID,DFID,23/04/2014,Air fares ,West and Southern Africa ,Supplier Name withheld ,101622-106 ,"1,865.15",
DFID,DFID,23/04/2014,Air fares ,West and Southern Africa ,Supplier Name withheld ,101622-106 ,"2,053.85",
DFID,DFID,23/04/2014,Project delivery costs - supplier services ,Western Asia and Stabilisation Division ,Crown Agents. ,203939-107 ,"2,525.00",
DFID,DFID,23/04/2014,Air fares ,West and Southern Africa ,Supplier Name withheld ,100152-114 ,"1,110.94",
DFID,DFID,23/04/2014,Air fares ,West and Southern Africa ,Corporate Travel Provider ,101629-101 ,664.20,
DFID,DFID,23/04/2014,Generators & spares ,West and Southern Africa ,Abrahim A H Daklalah ($) ,101629-101 ,595.24,
DFID,DFID,23/04/2014,Air fares ,West and Southern Africa ,Corporate Travel Provider ,101629-101 ,719.85,
DFID,DFID,23/04/2014,Air fares ,West and Southern Africa ,Corporate Travel Provider ,101629-101 ,"2,772.15",
DFID,DFID,23/04/2014,Air fares ,West and Southern Africa ,Corporate Travel Provider ,101629-101 ,664.20,
DFID,DFID,23/04/2014,Air fares ,East and Central Africa ,Corporate Travel Provider ,101630-101 ,"1,361.35",
DFID,DFID,23/04/2014,Air fares ,West and Southern Africa ,Corporate Travel Provider ,101631-101 ,873.75,
DFID,DFID,23/04/2014,Air fares ,West and Southern Africa ,Corporate Travel Provider ,101631-101 ,873.75,
DFID,DFID,23/04/2014,Air fares ,West and Southern Africa ,Corporate Travel Provider ,101631-101 ,"1,102.31",
DFID,DFID,23/04/2014,Air fares ,East and Central Africa ,Corporate Travel Provider ,101633-101 ,913.95,
DFID,DFID,23/04/2014,Air fares ,East and Central Africa ,Corporate Travel Provider ,101633-101 ,734.80,
DFID,DFID,23/04/2014,Air fares ,East and Central Africa ,Corporate Travel Provider ,101634-101 ,567.25,
DFID,DFID,23/04/2014,Air fares ,East and Central Africa ,Corporate Travel Provider ,101635-101 ,535.40,
DFID,DFID,23/04/2014,Air fares ,East and Central Africa ,Corporate Travel Provider ,101635-101 ,"1,371.20",
DFID,DFID,23/04/2014,Air fares ,West and Southern Africa ,Corporate Travel Provider ,101638-101 ,698.85,
DFID,DFID,23/04/2014,Air fares ,West and Southern Africa ,Corporate Travel Provider ,101638-101 ,703.67,
DFID,DFID,23/04/2014,Air fares ,Asia  Caribbean and Overseas Territories ,Corporate Travel Provider ,201689-106 ,560.92,
DFID,DFID,23/04/2014,Air fares ,Middle East & North Africa Division (MENAD) ,Corporate Travel Provider ,201705-101 ,782.45,
DFID,DFID,23/04/2014,Project delivery costs - supplier services ,East and Central Africa ,Crown Agents Bank ,200120-110 ,"87,054.54",
DFID,DFID,23/04/2014,Project delivery costs - supplier services ,Asia  Caribbean and Overseas Territories ,OPTIONS CONSULTANCY SERVICES LIMITED ,202871-101 ,"33,660.10",
DFID,DFID,23/04/2014,Air fares ,Western Asia and Stabilisation Division ,Corporate Travel Provider ,101601-110 ,946.98,
DFID,DFID,23/04/2014,Air fares ,Western Asia and Stabilisation Division ,Corporate Travel Provider ,101601-110 ,707.69,
DFID,DFID,23/04/2014,Air fares ,Western Asia and Stabilisation Division ,Corporate Travel Provider ,101601-110 ,"1,479.59",
DFID,DFID,23/04/2014,Air fares ,Western Asia and Stabilisation Division ,Corporate Travel Provider ,101601-110 ,946.98,
DFID,DFID,23/04/2014,Air fares ,Western Asia and Stabilisation Division ,Corporate Travel Provider ,101601-110 ,"1,377.40",
DFID,DFID,23/04/2014,Air fares ,Western Asia and Stabilisation Division ,Corporate Travel Provider ,101601-110 ,659.90,
DFID,DFID,23/04/2014,Air fares ,Western Asia and Stabilisation Division ,Corporate Travel Provider ,101601-110 ,605.30,
DFID,DFID,23/04/2014,Air fares ,Western Asia and Stabilisation Division ,Corporate Travel Provider ,101601-110 ,950.06,
DFID,DFID,23/04/2014,Air fares ,Western Asia and Stabilisation Division ,Corporate Travel Provider ,101601-110 ,"1,672.20",
DFID,DFID,23/04/2014,Air fares ,Western Asia and Stabilisation Division ,Corporate Travel Provider ,101601-110 ,"1,258.45",
DFID,DFID,23/04/2014,Air fares ,Western Asia and Stabilisation Division ,Corporate Travel Provider ,101601-110 ,536.19,
DFID,DFID,23/04/2014,Air fares ,Western Asia and Stabilisation Division ,Corporate Travel Provider ,101601-110 ,824.03,
